Service Area,Service Division,Expense Type,Expense Code,Detailed Expense Type,Payment Date,Transaction Number,Amount Exc VAT,Supplier Name
Adult and Health Services,Head of Adults,Third Party Payments 4THIRD,478151,Purchase of Care,01/08/2019,3623938-D720002408,"4,122.72",AUTISM CARE UK (4) LTD.
Adult and Health Services,Commissioning inc Supporting People,Supplies and Services,384700,Miscellaneous Expenses,01/08/2019,3623970-C-LE-STACTIVITIES2019-201STQUARTER,"3,750.00",DERWENTSIDE MIND.
Adult and Health Services,Head of Adults,Supplies and Services,384616,Miscellaneous Expenses,01/08/2019,3624037-6GRE/2019/JUNE-AUGUST,996.20,KARBON HOMES LTD FORMERLY CESTRIA HOUSING ASSOCIATION LTD.
Adult and Health Services,Public Health CC0450,Supplies and Services,384199,Miscellaneous Expenses,01/08/2019,3624173-UOTR4547783,"2,067.41",WESTERN UNION BUSINESS SOLUTIONS.
Children and Young Peoples Services,Head of Education and Skills,Transport,230008,Contract Hire,01/08/2019,3623923-62,795.00,A HJ JOBLING T/A CASTLE TAXIS.
Children and Young Peoples Services,Head of Education and Skills,Transport,230008,Contract Hire,01/08/2019,3623924-V7/SG,644.00,AABAT TAXIS.
Children and Young Peoples Services,Head of Education and Skills,Transport,230008,Contract Hire,01/08/2019,3623946-DC11,"1,620.00",BOWES TRAVEL.
Children and Young Peoples Services,Head of Education and Skills,Transport,230008,Contract Hire,01/08/2019,3623949-A028022,"1,000.35",C & R TAXIS.
Children and Young Peoples Services,Head of Education and Skills,Transport,230008,Contract Hire,01/08/2019,3623949-S026022,"1,075.35",C & R TAXIS.
Children and Young Peoples Services,Head of Education and Skills,Transport,230008,Contract Hire,01/08/2019,3623949-W078022,"1,846.80",C & R TAXIS.
Children and Young Peoples Services,Head of Education and Skills,Transport,230008,Contract Hire,01/08/2019,3623956-A050-08,600.00,CHRIS BELL T/A MEGAN`S TAXIS.
Children and Young Peoples Services,Head of Education and Skills,Transport,230008,Contract Hire,01/08/2019,3623964-109422,"2,136.27",CROFT BUSINESS SERVICES (UK) LTD T/A CROFT TAXIS.
Children and Young Peoples Services,Head of Education and Skills,Transport,230008,Contract Hire,01/08/2019,3623964-109424/M051,"3,343.65",CROFT BUSINESS SERVICES (UK) LTD T/A CROFT TAXIS.
Children and Young Peoples Services,Head of Education and Skills,Transport,230008,Contract Hire,01/08/2019,3623964-109424/N304,576.75,CROFT BUSINESS SERVICES (UK) LTD T/A CROFT TAXIS.
Children and Young Peoples Services,Head of Education and Skills,Transport,230006,Contract Hire,01/08/2019,3623964-109427,"1,185.69",CROFT BUSINESS SERVICES (UK) LTD T/A CROFT TAXIS.
Children and Young Peoples Services,Head of Education and Skills,Transport,230008,Contract Hire,01/08/2019,3623964-109428,878.85,CROFT BUSINESS SERVICES (UK) LTD T/A CROFT TAXIS.
Children and Young Peoples Services,Head of Education and Skills,Transport,230008,Contract Hire,01/08/2019,3623964-109429,"2,764.65",CROFT BUSINESS SERVICES (UK) LTD T/A CROFT TAXIS.
Children and Young Peoples Services,Head of Education and Skills,Transport,230008,Contract Hire,01/08/2019,3623964-109430,"2,431.21",CROFT BUSINESS SERVICES (UK) LTD T/A CROFT TAXIS.
Children and Young Peoples Services,Head of Education and Skills,Transport,230008,Contract Hire,01/08/2019,3623966-HOW0719,"1,074.50",D IRVING T/A BJ TAXIS.
Children and Young Peoples Services,Head of Education and Skills,Transport,230008,Contract Hire,01/08/2019,3623969-0719-001,"1,360.00",DCM TAXIS.
Children and Young Peoples Services,Head of Early Help Inclusion & Vulnerable Children.,Third Party Payments 4THIRD,486029,Service level agreements E486,01/08/2019,3623986-JUN19-0024,"55,500.00",FAMILY ACTION.
Children and Young Peoples Services,Head of Education and Skills,Transport,230008,Contract Hire,01/08/2019,3623988-M107-011,"1,620.00",FERRYHILL VILLAGE TRAVEL.
Children and Young Peoples Services,Head of Education and Skills,Transport,230008,Contract Hire,01/08/2019,3623988-N060-033,"1,050.00",FERRYHILL VILLAGE TRAVEL.
Children and Young Peoples Services,Head of Education and Skills,Transport,230008,Contract Hire,01/08/2019,3623991-0469,"1,243.80",FMR SILVA PITA.
Children and Young Peoples Services,Head of Education and Skills,Supplies and Services,372009,Subscriptions E372,01/08/2019,3623996-11311,"2,712.15",FRETWELL DOWNING HOSPITALITY.
Children and Young Peoples Services,Head of Education and Skills,Transport,230008,Contract Hire,01/08/2019,3623997-101299,"2,434.00",G & P JOHNSON LTD T/A NIGHTINGALE COACHES.
Children and Young Peoples Services,Head of Education and Skills,Transport,230007,Contract Hire,01/08/2019,3623997-101332,900.00,G & P JOHNSON LTD T/A NIGHTINGALE COACHES.
Children and Young Peoples Services,Head of Education and Skills,Transport,230003,Contract Hire,01/08/2019,3623997-101333,"3,047.25",G & P JOHNSON LTD T/A NIGHTINGALE COACHES.
Children and Young Peoples Services,Head of Education and Skills,Transport,230008,Contract Hire,01/08/2019,3623997-101334,"1,825.50",G & P JOHNSON LTD T/A NIGHTINGALE COACHES.
Children and Young Peoples Services,Head of Education and Skills,Transport,230008,Contract Hire,01/08/2019,3623997-101338,"1,077.30",G & P JOHNSON LTD T/A NIGHTINGALE COACHES.
Children and Young Peoples Services,Head of Education and Skills,Transport,230008,Contract Hire,01/08/2019,3623997-101339,"1,077.30",G & P JOHNSON LTD T/A NIGHTINGALE COACHES.
Children and Young Peoples Services,Head of Education and Skills,Transport,230008,Contract Hire,01/08/2019,3623997-101340,754.05,G & P JOHNSON LTD T/A NIGHTINGALE COACHES.
Children and Young Peoples Services,Head of Education and Skills,Transport,230008,Contract Hire,01/08/2019,3623997-101341,"1,071.90",G & P JOHNSON LTD T/A NIGHTINGALE COACHES.
Children and Young Peoples Services,Head of Education and Skills,Transport,230008,Contract Hire,01/08/2019,3623997-101342,"1,336.20",G & P JOHNSON LTD T/A NIGHTINGALE COACHES.
Children and Young Peoples Services,Head of Education and Skills,Transport,230008,Contract Hire,01/08/2019,3623997-101343,"1,170.00",G & P JOHNSON LTD T/A NIGHTINGALE COACHES.
Children and Young Peoples Services,Head of Education and Skills,Transport,230008,Contract Hire,01/08/2019,3623997-101344,"1,615.95",G & P JOHNSON LTD T/A NIGHTINGALE COACHES.
Children and Young Peoples Services,Head of Education and Skills,Transport,230008,Contract Hire,01/08/2019,3623997-101345,"1,308.15",G & P JOHNSON LTD T/A NIGHTINGALE COACHES.
Children and Young Peoples Services,Head of Education and Skills,Transport,230008,Contract Hire,01/08/2019,3623997-101346,692.55,G & P JOHNSON LTD T/A NIGHTINGALE COACHES.
Children and Young Peoples Services,Head of Education and Skills,Transport,230008,Contract Hire,01/08/2019,3623997-101347,"1,200.45",G & P JOHNSON LTD T/A NIGHTINGALE COACHES.
Children and Young Peoples Services,Head of Education and Skills,Transport,230008,Contract Hire,01/08/2019,3623997-101348,"1,335.00",G & P JOHNSON LTD T/A NIGHTINGALE COACHES.
Children and Young Peoples Services,Head of Education and Skills,Transport,230008,Contract Hire,01/08/2019,3623997-101350,840.00,G & P JOHNSON LTD T/A NIGHTINGALE COACHES.
Children and Young Peoples Services,Head of Education and Skills,Transport,230008,Contract Hire,01/08/2019,3623997-101352,"1,470.00",G & P JOHNSON LTD T/A NIGHTINGALE COACHES.
Children and Young Peoples Services,Head of Education and Skills,Transport,230007,Contract Hire,01/08/2019,3623997-101354,780.00,G & P JOHNSON LTD T/A NIGHTINGALE COACHES.
Children and Young Peoples Services,Head of Education and Skills,Transport,230007,Contract Hire,01/08/2019,3623999-21690,"2,139.15",GARNETTS LTD (COACHES).
Children and Young Peoples Services,Head of Education and Skills,Transport,230003,Contract Hire,01/08/2019,3623999-21691,"2,235.00",GARNETTS LTD (COACHES).
Children and Young Peoples Services,Head of Education and Skills,Transport,230007,Contract Hire,01/08/2019,3623999-21691-3182,"2,216.10",GARNETTS LTD (COACHES).
Children and Young Peoples Services,Head of Education and Skills,Transport,230003,Contract Hire,01/08/2019,3623999-21692,"2,446.95",GARNETTS LTD (COACHES).
Children and Young Peoples Services,Head of Education and Skills,Transport,230008,Contract Hire,01/08/2019,3623999-21696,"1,231.20",GARNETTS LTD (COACHES).
Children and Young Peoples Services,Head of Education and Skills,Transport,230007,Contract Hire,01/08/2019,3623999-21698,"2,854.80",GARNETTS LTD (COACHES).
Children and Young Peoples Services,Head of Education and Skills,Transport,230007,Contract Hire,01/08/2019,3623999-21701,"4,470.00",GARNETTS LTD (COACHES).
Children and Young Peoples Services,Head of Education and Skills,Transport,230007,Contract Hire,01/08/2019,3623999-21710-4034,"1,788.92",GARNETTS LTD (COACHES).
Children and Young Peoples Services,Head of Education and Skills,Transport,230007,Contract Hire,01/08/2019,3623999-21710-4035,"1,648.92",GARNETTS LTD (COACHES).
Children and Young Peoples Services,Head of Education and Skills,Transport,230007,Contract Hire,01/08/2019,3623999-21710-4036,"1,788.92",GARNETTS LTD (COACHES).
Children and Young Peoples Services,Head of Education and Skills,Transport,230007,Contract Hire,01/08/2019,3623999-21710-4037,"3,297.98",GARNETTS LTD (COACHES).
Children and Young Peoples Services,Head of Education and Skills,Transport,230007,Contract Hire,01/08/2019,3623999-21710-4038,"1,648.92",GARNETTS LTD (COACHES).
Children and Young Peoples Services,Head of Education and Skills,Transport,230007,Contract Hire,01/08/2019,3623999-21711,"1,694.98",GARNETTS LTD (COACHES).
Children and Young Peoples Services,Head of Education and Skills,Transport,230007,Contract Hire,01/08/2019,3623999-21712,"1,673.42",GARNETTS LTD (COACHES).
Children and Young Peoples Services,Head of Education and Skills,Transport,230008,Contract Hire,01/08/2019,3624000-M08,962.50,GARY MCGOWAN T/A MACKA`S PRIVATE HIRE.
Children and Young Peoples Services,Head of Education and Skills,Transport,230008,Contract Hire,01/08/2019,3624000-M09,"1,487.50",GARY MCGOWAN T/A MACKA`S PRIVATE HIRE.
Children and Young Peoples Services,Head of Education and Skills,Transport,230008,Contract Hire,01/08/2019,3624000-M10,"1,750.00",GARY MCGOWAN T/A MACKA`S PRIVATE HIRE.
Children and Young Peoples Services,Head of Education and Skills,Transport,230008,Contract Hire,01/08/2019,3624000-M11,"1,312.50",GARY MCGOWAN T/A MACKA`S PRIVATE HIRE.
Children and Young Peoples Services,Head of Education and Skills,Transport,230008,Contract Hire,01/08/2019,3624016-32/7,692.55,HENRY FOREMAN T/A HENRY`S TAXIS.
Children and Young Peoples Services,Head of Education and Skills,Transport,230008,Contract Hire,01/08/2019,3624025-0712,990.00,JACKSON`S TAXI.
Children and Young Peoples Services,Head of Education and Skills,Transport,230008,Contract Hire,01/08/2019,3624025-0713,"1,781.55",JACKSON`S TAXI.
Children and Young Peoples Services,Head of Education and Skills,Transport,230009,Contract Hire,01/08/2019,3624025-0715,583.50,JACKSON`S TAXI.
Children and Young Peoples Services,Head of Education and Skills,Transport,230008,Contract Hire,01/08/2019,3624025-0716,"1,050.00",JACKSON`S TAXI.
Children and Young Peoples Services,Head of Education and Skills,Transport,230007,Contract Hire,01/08/2019,3624028-73-5234,"1,350.00",JOHN CRAKE & SONS MINI BUSES LTD.
Children and Young Peoples Services,Head of Education and Skills,Transport,230008,Contract Hire,01/08/2019,3624031-M00923,"1,150.35",JOVIAL PRIVATE HIRE.
Children and Young Peoples Services,Head of Education and Skills,Transport,230008,Contract Hire,01/08/2019,3624031-M01722,677.10,JOVIAL PRIVATE HIRE.
Children and Young Peoples Services,Head of Education and Skills,Transport,230008,Contract Hire,01/08/2019,3624031-N30111,"1,425.75",JOVIAL PRIVATE HIRE.
Children and Young Peoples Services,Head of Education and Skills,Transport,230008,Contract Hire,01/08/2019,3624035-1012,"2,589.45",K & R TAXIS (STANLEY).
Children and Young Peoples Services,Head of Education and Skills,Transport,230006,Contract Hire,01/08/2019,3624035-1016,"2,160.00",K & R TAXIS (STANLEY).
Children and Young Peoples Services,Head of Education and Skills,Transport,230007,Contract Hire,01/08/2019,3624035-1017,"1,477.50",K & R TAXIS (STANLEY).
Children and Young Peoples Services,Head of Education and Skills,Transport,230008,Contract Hire,01/08/2019,3624039-S027/7,"1,263.15",KEITH GIBSON T/A KEITH`S TAXIS.
Children and Young Peoples Services,Head of Education and Skills,Transport,230006,Contract Hire,01/08/2019,3624047-1784,540.00,LD TAXIS.
Children and Young Peoples Services,Head of Education and Skills,Transport,230008,Contract Hire,01/08/2019,3624047-1785,"1,200.00",LD TAXIS.
Children and Young Peoples Services,Head of Education and Skills,Transport,230007,Contract Hire,01/08/2019,3624047-1788,786.00,LD TAXIS.
Children and Young Peoples Services,Head of Education and Skills,Transport,230008,Contract Hire,01/08/2019,3624047-1789,"1,750.00",LD TAXIS.
Children and Young Peoples Services,Head of Education and Skills,Transport,230007,Contract Hire,01/08/2019,3624047-1789/7,"1,410.00",LD TAXIS.
Children and Young Peoples Services,Head of Education and Skills,Transport,230007,Contract Hire,01/08/2019,3624050-4061,652.50,LINCAB TAXIS.
Children and Young Peoples Services,Head of Education and Skills,Transport,230008,Contract Hire,01/08/2019,3624050-4063,"1,640.40",LINCAB TAXIS.
Children and Young Peoples Services,Head of Early Help Inclusion & Vulnerable Children.,Supplies and Services,308013,Furniture,01/08/2019,3624051-4570164,506.61,LONDON GENERAL SALES LTD.
Children and Young Peoples Services,Head of Education and Skills,Transport,230008,Contract Hire,01/08/2019,3624053-32,"1,693.80",M&C`S CABS LTD.
Children and Young Peoples Services,Head of Education and Skills,Transport,230008,Contract Hire,01/08/2019,3624054-220-19/7/19,"1,050.00",MACS TAXIS LTD.
Children and Young Peoples Services,Head of Education and Skills,Transport,230008,Contract Hire,01/08/2019,3624058-INV06/1906,"1,928.80",MARK & JOHN CHISHOLM T/A (CHEVRON).
Children and Young Peoples Services,Head of Education and Skills,Transport,230008,Contract Hire,01/08/2019,3624058-INV07/1908,"1,391.40",MARK & JOHN CHISHOLM T/A (CHEVRON).
Children and Young Peoples Services,Head of Education and Skills,Transport,230008,Contract Hire,01/08/2019,3624058-INV07/1910,"1,600.50",MARK & JOHN CHISHOLM T/A (CHEVRON).
Children and Young Peoples Services,Head of Education and Skills,Transport,230007,Contract Hire,01/08/2019,3624058-INV07/1913,"1,110.00",MARK & JOHN CHISHOLM T/A (CHEVRON).
Children and Young Peoples Services,Head of Education and Skills,Transport,230016,Contract Hire,01/08/2019,3624058-INV07/1917,"1,125.00",MARK & JOHN CHISHOLM T/A (CHEVRON).
Children and Young Peoples Services,Head of Education and Skills,Transport,230009,Contract Hire,01/08/2019,3624058-INV07/1921,528.00,MARK & JOHN CHISHOLM T/A (CHEVRON).
Children and Young Peoples Services,Head of Education and Skills,Transport,230007,Contract Hire,01/08/2019,3624058-INV07/1923,"1,036.00",MARK & JOHN CHISHOLM T/A (CHEVRON).
Children and Young Peoples Services,Head of Education and Skills,Transport,230008,Contract Hire,01/08/2019,3624058-INV071909,"1,170.00",MARK & JOHN CHISHOLM T/A (CHEVRON).
Children and Young Peoples Services,Head of Education and Skills,Transport,230009,Contract Hire,01/08/2019,3624059-190719,600.00,MARK MUSGROVE T/A MARKS TAXIS.
Children and Young Peoples Services,Head of Education and Skills,Transport,230008,Contract Hire,01/08/2019,3624060-0017,"1,035.00",MARK WATSON T/A MARK`S TAXIS.
Children and Young Peoples Services,Head of Education and Skills,Transport,230008,Contract Hire,01/08/2019,3624062-MCD38009,"1,719.48",MCDONALD TRAVEL.
Children and Young Peoples Services,Head of Education and Skills,Transport,230008,Contract Hire,01/08/2019,3624064-9A/7,672.00,MICHAEL A BODDY T/A MBS TAXIS.
Children and Young Peoples Services,Head of Education and Skills,Transport,230008,Contract Hire,01/08/2019,3624066-0987,"2,579.70",MICHAELS TRAVEL.
Children and Young Peoples Services,Head of Education and Skills,Transport,230006,Contract Hire,01/08/2019,3624067-0239,590.40,MICKS TAXIS - MURTON.
Children and Young Peoples Services,Head of Education and Skills,Transport,230007,Contract Hire,01/08/2019,3624067-0241,675.00,MICKS TAXIS - MURTON.
Children and Young Peoples Services,Head of Education and Skills,Transport,230008,Contract Hire,01/08/2019,3624070-KDK/JULY19,848.25,MR IAN KELSEY T/A KDK TAXIS.
Children and Young Peoples Services,Head of Education and Skills,Transport,230008,Contract Hire,01/08/2019,3624071-OC/07/19,831.00,MR J AGAR T/A PARK TAXIS.
Children and Young Peoples Services,Head of Education and Skills,Transport,230008,Contract Hire,01/08/2019,3624071-SFB/07/19,"1,292.70",MR J AGAR T/A PARK TAXIS.
Children and Young Peoples Services,Head of Education and Skills,Transport,230008,Contract Hire,01/08/2019,3624073-0038,"1,800.00",MR PM MULLEN T/A CATHEDRAL TAXIS.
Children and Young Peoples Services,Head of Education and Skills,Transport,230008,Contract Hire,01/08/2019,3624074-20A/JULY,"1,169.70",MR RAYMOND RENWICK T/A RAY`S TAXIS & MINIBUSES.
Children and Young Peoples Services,Head of Education and Skills,Transport,230008,Contract Hire,01/08/2019,3624074-20B/JULY,"1,231.20",MR RAYMOND RENWICK T/A RAY`S TAXIS & MINIBUSES.
Children and Young Peoples Services,Head of Education and Skills,Transport,230007,Contract Hire,01/08/2019,3624075-6037/7,"1,800.00",MR STEVE TRETT T/A ADMIRE TAXIS.
Children and Young Peoples Services,Head of Education and Skills,Transport,230007,Contract Hire,01/08/2019,3624080-1/7,900.00,NC TAXI`S.
Children and Young Peoples Services,Head of Education and Skills,Transport,230007,Contract Hire,01/08/2019,3624080-2/7,"1,050.00",NC TAXI`S.
Children and Young Peoples Services,Head of Education and Skills,Transport,230008,Contract Hire,01/08/2019,3624081-55,"1,385.10",NEIL PASSMOOR T/A NEIL`S TAXI.
Children and Young Peoples Services,Head of Education and Skills,Transport,230003,Contract Hire,01/08/2019,3624092-7901,"1,600.50",OVERLANDER LTD.
Children and Young Peoples Services,Head of Education and Skills,Transport,230003,Contract Hire,01/08/2019,3624092-7902,"1,428.90",OVERLANDER LTD.
Children and Young Peoples Services,Head of Education and Skills,Transport,230007,Contract Hire,01/08/2019,3624094-4309/7,750.00,PAUL GREEN T/A GREEN TAXIS.
Children and Young Peoples Services,Head of Education and Skills,Transport,230007,Contract Hire,01/08/2019,3624095-1182-19/7/19,"1,723.68",PAUL WATSON TRAVEL.
Children and Young Peoples Services,Head of Education and Skills,Transport,230008,Contract Hire,01/08/2019,3624096-DCC255,"1,231.20",PAUL`S TAXIS..
Children and Young Peoples Services,Head of Education and Skills,Transport,230008,Contract Hire,01/08/2019,3624096-DCC256,900.00,PAUL`S TAXIS..
Children and Young Peoples Services,Head of Education and Skills,Transport,230008,Contract Hire,01/08/2019,3624096-DCC257,"2,266.35",PAUL`S TAXIS..
Children and Young Peoples Services,Head of Education and Skills,Transport,230007,Contract Hire,01/08/2019,3624099-6043/07,"1,575.00",PETER`S TAXIS.
Children and Young Peoples Services,Head of Education and Skills,Transport,230009,Contract Hire,01/08/2019,3624099-7360/07,600.00,PETER`S TAXIS.
Children and Young Peoples Services,Head of Education and Skills,Transport,230007,Contract Hire,01/08/2019,3624099-N103/07,"1,650.00",PETER`S TAXIS.
Children and Young Peoples Services,Head of Education and Skills,Transport,230007,Contract Hire,01/08/2019,3624107-22A-4005,"3,108.75",RAYNERS COACHES.
Children and Young Peoples Services,Head of Education and Skills,Transport,230008,Contract Hire,01/08/2019,3624107-22A-M008,"1,906.20",RAYNERS COACHES.
Children and Young Peoples Services,Head of Education and Skills,Transport,230007,Contract Hire,01/08/2019,3624107-75A,984.90,RAYNERS COACHES.
Children and Young Peoples Services,Head of Education and Skills,Transport,230007,Contract Hire,01/08/2019,3624107-75C,"1,785.30",RAYNERS COACHES.
Children and Young Peoples Services,Head of Education and Skills,Transport,230008,Contract Hire,01/08/2019,3624114-011-JULY,"1,725.00",RONS TAXI (CHESTER LE ST).
Children and Young Peoples Services,Head of Education and Skills,Transport,230008,Contract Hire,01/08/2019,3624130-1907000,"1,385.10",STEVEN PRATT T/A PTL TAXIS DURHAM.
Children and Young Peoples Services,Head of Education and Skills,Transport,230007,Contract Hire,01/08/2019,3624130-1907011,"1,054.00",STEVEN PRATT T/A PTL TAXIS DURHAM.
Children and Young Peoples Services,Head of Education and Skills,Transfer Payments,510027,School Children,01/08/2019,3624147-TNSUMMERTERM19,"3,226.53",THE NURSERY.
Dedicated Schools Grant BG0015,DSG High Needs Block,Transport,230007,Contract Hire,01/08/2019,3623920-28,539.00,A & C TAXIS.
Dedicated Schools Grant BG0015,DSG High Needs Block,Transport,230010,Contract Hire,01/08/2019,3623924-V16/SX/JULY,"1,280.00",AABAT TAXIS.
Dedicated Schools Grant BG0015,DSG High Needs Block,Transport,230010,Contract Hire,01/08/2019,3623997-101353,975.00,G & P JOHNSON LTD T/A NIGHTINGALE COACHES.
Dedicated Schools Grant BG0015,DSG High Needs Block,Transport,230010,Contract Hire,01/08/2019,3624058-INV07/1901,"1,260.00",MARK & JOHN CHISHOLM T/A (CHEVRON).
Dedicated Schools Grant BG0015,DSG High Needs Block,Transport,230010,Contract Hire,01/08/2019,3624058-INV07/1905,"1,350.00",MARK & JOHN CHISHOLM T/A (CHEVRON).
Dedicated Schools Grant BG0015,DSG High Needs Block,Transport,230010,Contract Hire,01/08/2019,3624058-INV07/1919,"1,170.00",MARK & JOHN CHISHOLM T/A (CHEVRON).
Dedicated Schools Grant BG0015,DSG High Needs Block,Third Party Payments 4THIRD,440080,Other third party payments E440,01/08/2019,3624082-SLINV/00003388,"46,255.80",NEW COLLEGE DURHAM.
Dedicated Schools Grant BG0015,DSG High Needs Block,Third Party Payments 4THIRD,440080,Other third party payments E440,01/08/2019,3624104-1781,"4,802.00",QUEEN ELIZABETH 6TH FORM COLLEGE.
Dedicated Schools Grant BG0015,DSG High Needs Block,Transport,230010,Contract Hire,01/08/2019,3624130-1907012,871.20,STEVEN PRATT T/A PTL TAXIS DURHAM.
Dedicated Schools Grant BG0015,DSG High Needs Block,Third Party Payments 4THIRD,410037,Rendered by Other Local Authorities,01/08/2019,3624156-TANB19,"19,389.66",TRINITY ACADEMY NEW BRIDGE.
Dedicated Schools Grant BG0015,DSG High Needs Block,Third Party Payments 4THIRD,410037,Rendered by Other Local Authorities,01/08/2019,3624157-TANB22,"3,231.61",TRINITY ACADEMY NEWCASTLE.
Regeneration and Local Services,Environmental Services,Third Party Payments 4THIRD,430100,Rendered by Private Contractors,01/08/2019,3623921-2843,"1,920.00",A & J GUTHRIE.
Regeneration and Local Services,Environmental Services,Supplies and Services,304357,Equipment and Materials,01/08/2019,3623921-2848,"6,383.88",A & J GUTHRIE.
Regeneration and Local Services,Technical Services CM0300,Supplies and Services,304221,Equipment and Materials,01/08/2019,3623926-28516697,"1,760.00",AGGREGATE INDUSTRIES UK LTD.
Regeneration and Local Services,Technical Services CM0300,Supplies and Services,304221,Equipment and Materials,01/08/2019,3623926-28523601,"1,618.46",AGGREGATE INDUSTRIES UK LTD.
Regeneration and Local Services,Culture Sport and Tourism,Supplies and Services,384199,Miscellaneous Expenses,01/08/2019,3623930-4100663834,624.00,ALEX SNEATH.
Regeneration and Local Services,Technical Services CM0300,Third Party Payments 4THIRD,430100,Rendered by Private Contractors,01/08/2019,3623936-19028729,"10,000.00",ATKINS GLOBAL.
Regeneration and Local Services,Technical Services CM0300,Stock A926,926900,Stock in hand-Inventory system,01/08/2019,3623940-INV131823,556.50,AZTEC CHEMICALS LTD.
Regeneration and Local Services,Corporate Property and Land,Third Party Payments 4THIRD,430100,Rendered by Private Contractors,01/08/2019,3623953-405,"2,572.20",CEILINGS DIRECT LTD.
Regeneration and Local Services,Corporate Property and Land,Third Party Payments 4THIRD,430100,Rendered by Private Contractors,01/08/2019,3623953-406,571.30,CEILINGS DIRECT LTD.
Regeneration and Local Services,Corporate Property and Land,Third Party Payments 4THIRD,430100,Rendered by Private Contractors,01/08/2019,3623953-409,"1,606.88",CEILINGS DIRECT LTD.
Regeneration and Local Services,Culture Sport and Tourism,Premises,120009,Energy Costs,01/08/2019,3623954-19500811,750.00,CENTRICA BUSINESS SOLUTIONS (GENERATION) LTD.*
Regeneration and Local Services,Corporate Property and Land,Third Party Payments 4THIRD,430100,Rendered by Private Contractors,01/08/2019,3623959-5837,"2,279.20",CITY FABRICATIONS LTD.
Regeneration and Local Services,Technical Services CM0300,Stock A926,926004,Stock,01/08/2019,3623961-400018597,"7,162.98",CLEVELAND POTASH LTD T/A ICL FERTILIZERS.
Regeneration and Local Services,Environmental Services,Third Party Payments 4THIRD,430101,Rendered by Private Contractors,01/08/2019,3623972-IV1144392,"1,233.61",DIRECT TYRE MANAGEMENT LTD (DTM).
Regeneration and Local Services,Environmental Services,Third Party Payments 4THIRD,430101,Rendered by Private Contractors,01/08/2019,3623972-IV1149733,"1,350.58",DIRECT TYRE MANAGEMENT LTD (DTM).
Regeneration and Local Services,Environmental Services,Third Party Payments 4THIRD,430101,Rendered by Private Contractors,01/08/2019,3623972-IV1152670,"2,547.37",DIRECT TYRE MANAGEMENT LTD (DTM).
Regeneration and Local Services,Environmental Services,Third Party Payments 4THIRD,430101,Rendered by Private Contractors,01/08/2019,3623972-IV1152673,"1,162.25",DIRECT TYRE MANAGEMENT LTD (DTM).
Regeneration and Local Services,Culture Sport and Tourism,Supplies and Services,312013,Newspapers books and periodicals E312,01/08/2019,3623982-40243,"7,030.00",ENCYCLOPAEDIA BRITANNICA (UK) LTD.
Regeneration and Local Services,Environmental Services,Supplies and Services,338027,Services,01/08/2019,3623983-INV-49,550.00,ENGINEERING SUPPORT PARTNERSHIP LTD.
Regeneration and Local Services,Development and Housing,Supplies and Services,338045,Services,01/08/2019,3623993-84220,"10,315.00",FRANCIS TAYLOR BUILDING (BARRISTERS).
Regeneration and Local Services,Culture Sport and Tourism,Premises,150015,Apportioned Exps of Operational Blds,01/08/2019,3623998-409738217,"1,065.00",GAP GROUP LTD.
Regeneration and Local Services,Corporate Property and Land,Supplies and Services,304221,Equipment and Materials,01/08/2019,3624005-GPI000559,"32,839.76",GLADIATOR LIFT SYSTEMS LTD.
Regeneration and Local Services,Technical Services CM0300,Supplies and Services,384199,Miscellaneous Expenses,01/08/2019,3624007-INV-0050,"16,666.67",GPC SYSTEMS LTD.
Regeneration and Local Services,Technical Services CM0300,Supplies and Services,384199,Miscellaneous Expenses,01/08/2019,3624007-INV-0051,"7,097.50",GPC SYSTEMS LTD.
Regeneration and Local Services,Technical Services CM0300,Stock A926,926900,Stock in hand-Inventory system,01/08/2019,3624008-06/009285,880.53,GREENHAM TRADING LTD.
Regeneration and Local Services,Environmental Services,Supplies and Services,304221,Equipment and Materials,01/08/2019,3624008-06/009288,707.80,GREENHAM TRADING LTD.
Regeneration and Local Services,Corporate Property and Land,Supplies and Services,304221,Equipment and Materials,01/08/2019,3624014-4639031,"6,925.76",HEADLAM (FLOORCOVERING DISTRIBUTORS) LTD.
Regeneration and Local Services,Culture Sport and Tourism,Supplies and Services,304259,Equipment and Materials,01/08/2019,3624022-SIN449834,"1,044.99",INFORMATION & DATA NETWORK SUPPLIES LTD (IDN).
Regeneration and Local Services,Environmental Services,Premises,108099,Service Repairs and Maintenance,01/08/2019,3624027-212,846.00,JN KEARTON.
Regeneration and Local Services,Environmental Services,Supplies and Services,304221,Equipment and Materials,01/08/2019,3624033-CTI13705,927.10,JT DOVE LTD.
Regeneration and Local Services,Environmental Services,Supplies and Services,304221,Equipment and Materials,01/08/2019,3624033-CTI13706,927.10,JT DOVE LTD.
Regeneration and Local Services,Corporate Property and Land,Supplies and Services,304221,Equipment and Materials,01/08/2019,3624033-GO11738/D,"1,075.26",JT DOVE LTD.
Regeneration and Local Services,Technical Services CM0300,Supplies and Services,304221,Equipment and Materials,01/08/2019,3624061-Z000357689,"1,214.95",MARSHALLS MONO LTD.
Regeneration and Local Services,Culture Sport and Tourism,Supplies and Services,338047,Services,01/08/2019,3624084-0017,"1,300.00",NORTH EXHIBITION SERVICES LTD.
Regeneration and Local Services,Corporate Property and Land,Supplies and Services,304259,Equipment and Materials,01/08/2019,3624086-201952,961.00,NORTHERN TOOLS & ACCESSORIES.
Regeneration and Local Services,Environmental Services,Supplies and Services,304221,Equipment and Materials,01/08/2019,3624112-RSIN0307493,530.00,RIGBY TAYLOR LTD.
Regeneration and Local Services,Corporate Property and Land,Third Party Payments 4THIRD,430100,Rendered by Private Contractors,01/08/2019,3624127-809,"1,250.00",SON GAS SOLUTIONS LTD.
Regeneration and Local Services,Technical Services CM0300,Supplies and Services,304221,Equipment and Materials,01/08/2019,3624133-119773,"1,136.88",STONEGRAVE AGGREGATES LTD.
Regeneration and Local Services,Technical Services CM0300,Supplies and Services,304221,Equipment and Materials,01/08/2019,3624133-119815,"2,184.48",STONEGRAVE AGGREGATES LTD.
Regeneration and Local Services,Environmental Services,Supplies and Services,304221,Equipment and Materials,01/08/2019,3624134-0000044682,"8,500.80",STRAIGHT MANUFACTURING LTD.
Regeneration and Local Services,Technical Services CM0300,Supplies and Services,338027,Services,01/08/2019,3624139-NEI-EXP-07-2019-021,"2,500.00",SWINBURNE MADDISON.
Regeneration and Local Services,Environmental Services,Supplies and Services,304221,Equipment and Materials,01/08/2019,3624146-INV4022753,"1,062.00",THE HALES PARTNERSHIP T/A EVEREDGE THE EDGING COMPANY.
Regeneration and Local Services,Environmental Services,Supplies and Services,328041,Clothing uniforms and laundry E328,01/08/2019,3624151-NSIN00016156,"1,359.00",THOMAS OWEN & SONS (NEWCASTLE) LTD.
Regeneration and Local Services,Environmental Services,Supplies and Services,328041,Clothing uniforms and laundry E328,01/08/2019,3624151-NSIN00016186,"1,359.00",THOMAS OWEN & SONS (NEWCASTLE) LTD.
Regeneration and Local Services,Environmental Services,Supplies and Services,328041,Clothing uniforms and laundry E328,01/08/2019,3624151-NSIN00016641,745.15,THOMAS OWEN & SONS (NEWCASTLE) LTD.
Regeneration and Local Services,Transport and Contracted Services,Supplies and Services,304259,Equipment and Materials,01/08/2019,3624161-3IN/10340330,"9,950.00",TUNSTALL HEALTHCARE (UK) LTD.
Regeneration and Local Services,Culture Sport and Tourism,Supplies and Services,304259,Equipment and Materials,01/08/2019,3624163-US2619,585.00,ULTIMATE SUPPLIES (NORTH) LTD.
Regeneration and Local Services,Culture Sport and Tourism,Supplies and Services,384302,Miscellaneous Expenses,01/08/2019,3624164-10000917,500.00,UNA EVANS-O`CONNELL T/A EOC MANAGEMENT.
Regeneration and Local Services,Corporate Property and Land,Third Party Payments 4THIRD,430100,Rendered by Private Contractors,01/08/2019,3624170-5345,643.75,WARREN (ELECTRICAL) LTD.
Regeneration and Local Services,Culture Sport and Tourism,Third Party Payments 4THIRD,440999,Other third party payments E440,01/08/2019,3624173-UOTR4547779,"5,957.37",WESTERN UNION BUSINESS SOLUTIONS.
Regeneration and Local Services,Development and Housing,Supplies and Services,384437,Miscellaneous Expenses,01/08/2019,3624173-UOTR4547785,"21,676.75",WESTERN UNION BUSINESS SOLUTIONS.
Regeneration and Local Services,Culture Sport and Tourism,Supplies and Services,384199,Miscellaneous Expenses,01/08/2019,3624173-UOTR4547788,"6,982.59",WESTERN UNION BUSINESS SOLUTIONS.
Regeneration and Local Services,Development and Housing,Supplies and Services,384437,Miscellaneous Expenses,01/08/2019,3624173-UOTR4547793,"8,996.37",WESTERN UNION BUSINESS SOLUTIONS.
Regeneration and Local Services,Culture Sport and Tourism,Supplies and Services,384199,Miscellaneous Expenses,01/08/2019,3624173-UOTR4547795,"1,502.00",WESTERN UNION BUSINESS SOLUTIONS.
Regeneration and Local Services,Development and Housing,Supplies and Services,384437,Miscellaneous Expenses,01/08/2019,3624173-UOTR4547800,"11,554.15",WESTERN UNION BUSINESS SOLUTIONS.
Regeneration and Local Services,Development and Housing,Supplies and Services,384437,Miscellaneous Expenses,01/08/2019,3624173-UOTR4547803,"5,237.79",WESTERN UNION BUSINESS SOLUTIONS.
Regeneration and Local Services,Culture Sport and Tourism,Supplies and Services,384199,Miscellaneous Expenses,01/08/2019,3624173-UOTR4547909,"1,802.00",WESTERN UNION BUSINESS SOLUTIONS.
Regeneration and Local Services,Development and Housing,Supplies and Services,342033,Computers and Communications,01/08/2019,3624174-KS72415,"1,291.20",XMA LTD.
Resources BK0010,Legal & Democratic Services,Supplies and Services,338025,Services,01/08/2019,3623963-S44995-01712,540.00,CO-OPERATIVE FUNERAL CARE.
Resources BK0010,Digital and Customer Services,Vehicles Equipment Furniture and Fittings,912701,Computer equipment,01/08/2019,3624010-INV0175717,"1,210.00",GV MULTIMEDIA LTD.
Resources BK0010,Legal & Democratic Services,Supplies and Services,384199,Miscellaneous Expenses,01/08/2019,3624085-22489474,"7,517.33",NORTH TYNESIDE COUNCIL.
Resources BK0010,Legal & Democratic Services,Supplies and Services,344014,Telephones,01/08/2019,3624168-ND16024,610.00,VODAFONE CORPORATE LTD.
Transformation and Partnerships,Business Support,Supplies and Services,332029,Printing Stationery and Gen Off Exps,01/08/2019,3623971-29378,500.00,DESIGN X PRESS LTD.
Transformation and Partnerships,Business Support,Supplies and Services,340001,Postages E340,01/08/2019,3624115-9059150296A,"10,898.08",ROYAL MAIL GROUP PLC.
Adult and Health Services,Head of Adults,Transport,230005,Contract Hire,02/08/2019,3624199-20762,736.00,BLUELINE TAXIS.
Adult and Health Services,Head of Adults,Transport,230005,Contract Hire,02/08/2019,3624199-21037,552.00,BLUELINE TAXIS.
Adult and Health Services,Head of Adults,Transport,230005,Contract Hire,02/08/2019,3624199-21653,736.00,BLUELINE TAXIS.
Adult and Health Services,Head of Adults,Transport,230005,Contract Hire,02/08/2019,3624199-21678,728.00,BLUELINE TAXIS.
Adult and Health Services,Head of Adults,Transport,230005,Contract Hire,02/08/2019,3624199-23872,736.00,BLUELINE TAXIS.
Adult and Health Services,Commissioning inc Supporting People,Supplies and Services,338094,Services,02/08/2019,3624264-FB012588,523.75,HALLGARTH MANOR HOTEL.
Adult and Health Services,Head of Adults,Third Party Payments 4THIRD,472101,Purchase of Care,02/08/2019,3624363-SS02,572.88,SENSECARE MEDICAL STAFFING.
Adult and Health Services,Head of Adults,Third Party Payments 4THIRD,472101,Purchase of Care,02/08/2019,3624363-SS03,572.88,SENSECARE MEDICAL STAFFING.
Adult and Health Services,Head of Adults,Third Party Payments 4THIRD,472101,Purchase of Care,02/08/2019,3624363-SS04,572.88,SENSECARE MEDICAL STAFFING.
Adult and Health Services,Head of Adults,Third Party Payments 4THIRD,472101,Purchase of Care,02/08/2019,3624363-SS05,572.88,SENSECARE MEDICAL STAFFING.
Adult and Health Services,Head of Adults,Third Party Payments 4THIRD,472101,Purchase of Care,02/08/2019,3624363-SS06,572.88,SENSECARE MEDICAL STAFFING.
Adult and Health Services,Head of Adults,Third Party Payments 4THIRD,472101,Purchase of Care,02/08/2019,3624363-SS07,572.88,SENSECARE MEDICAL STAFFING.
Adult and Health Services,Head of Adults,Third Party Payments 4THIRD,472101,Purchase of Care,02/08/2019,3624363-SS08,572.88,SENSECARE MEDICAL STAFFING.
Adult and Health Services,Head of Adults,Third Party Payments 4THIRD,472101,Purchase of Care,02/08/2019,3624363-SS09,572.88,SENSECARE MEDICAL STAFFING.
Adult and Health Services,Head of Adults,Third Party Payments 4THIRD,472101,Purchase of Care,02/08/2019,3624363-SS10,572.88,SENSECARE MEDICAL STAFFING.
Adult and Health Services,Head of Adults,Third Party Payments 4THIRD,472101,Purchase of Care,02/08/2019,3624363-SS11,572.88,SENSECARE MEDICAL STAFFING.
Adult and Health Services,Head of Adults,Third Party Payments 4THIRD,472101,Purchase of Care,02/08/2019,3624363-SS12,572.88,SENSECARE MEDICAL STAFFING.
Adult and Health Services,Head of Adults,Third Party Payments 4THIRD,472101,Purchase of Care,02/08/2019,3624363-SS13,572.88,SENSECARE MEDICAL STAFFING.
Adult and Health Services,Head of Adults,Third Party Payments 4THIRD,472101,Purchase of Care,02/08/2019,3624363-SS14,572.88,SENSECARE MEDICAL STAFFING.
Adult and Health Services,Head of Adults,Third Party Payments 4THIRD,472101,Purchase of Care,02/08/2019,3624363-SS15,572.88,SENSECARE MEDICAL STAFFING.
Adult and Health Services,Head of Adults,Third Party Payments 4THIRD,472101,Purchase of Care,02/08/2019,3624363-SS16,572.88,SENSECARE MEDICAL STAFFING.
Adult and Health Services,Head of Adults,Third Party Payments 4THIRD,472101,Purchase of Care,02/08/2019,3624363-SS17,572.88,SENSECARE MEDICAL STAFFING.
Adult and Health Services,Head of Adults,Third Party Payments 4THIRD,472101,Purchase of Care,02/08/2019,3624363-SS18,572.88,SENSECARE MEDICAL STAFFING.
Adult and Health Services,Head of Adults,Third Party Payments 4THIRD,472101,Purchase of Care,02/08/2019,3624363-SS19,572.88,SENSECARE MEDICAL STAFFING.
Adult and Health Services,Head of Adults,Third Party Payments 4THIRD,472101,Purchase of Care,02/08/2019,3624363-SS20,572.88,SENSECARE MEDICAL STAFFING.
Adult and Health Services,Head of Adults,Third Party Payments 4THIRD,472101,Purchase of Care,02/08/2019,3624363-SS21,572.88,SENSECARE MEDICAL STAFFING.
Adult and Health Services,Head of Adults,Third Party Payments 4THIRD,472101,Purchase of Care,02/08/2019,3624363-SS24,572.88,SENSECARE MEDICAL STAFFING.
Adult and Health Services,Head of Adults,Third Party Payments 4THIRD,472101,Purchase of Care,02/08/2019,3624363-SS25,572.88,SENSECARE MEDICAL STAFFING.
Adult and Health Services,Head of Adults,Third Party Payments 4THIRD,472101,Purchase of Care,02/08/2019,3624363-SS26,572.88,SENSECARE MEDICAL STAFFING.
Adult and Health Services,Head of Adults,Third Party Payments 4THIRD,472101,Purchase of Care,02/08/2019,3624363-SS27,572.88,SENSECARE MEDICAL STAFFING.
Adult and Health Services,Head of Adults,Third Party Payments 4THIRD,472101,Purchase of Care,02/08/2019,3624363-SS28,572.88,SENSECARE MEDICAL STAFFING.
Adult and Health Services,Head of Adults,Third Party Payments 4THIRD,472101,Purchase of Care,02/08/2019,3624363-SS29,572.88,SENSECARE MEDICAL STAFFING.
Adult and Health Services,Head of Adults,Third Party Payments 4THIRD,472101,Purchase of Care,02/08/2019,3624363-SS30,572.88,SENSECARE MEDICAL STAFFING.
Adult and Health Services,Head of Adults,Third Party Payments 4THIRD,472101,Purchase of Care,02/08/2019,3624363-SS31,572.88,SENSECARE MEDICAL STAFFING.
Adult and Health Services,Head of Adults,Third Party Payments 4THIRD,472101,Purchase of Care,02/08/2019,3624363-SS32,572.88,SENSECARE MEDICAL STAFFING.
Adult and Health Services,Head of Adults,Third Party Payments 4THIRD,472101,Purchase of Care,02/08/2019,3624363-SS34,572.88,SENSECARE MEDICAL STAFFING.
Adult and Health Services,Head of Adults,Third Party Payments 4THIRD,472101,Purchase of Care,02/08/2019,3624363-SS37,572.88,SENSECARE MEDICAL STAFFING.
Adult and Health Services,Head of Adults,Third Party Payments 4THIRD,472101,Purchase of Care,02/08/2019,3624363-SS38,572.88,SENSECARE MEDICAL STAFFING.
Adult and Health Services,Head of Adults,Third Party Payments 4THIRD,472101,Purchase of Care,02/08/2019,3624363-SS39,572.88,SENSECARE MEDICAL STAFFING.
Adult and Health Services,Head of Adults,Third Party Payments 4THIRD,472101,Purchase of Care,02/08/2019,3624363-SS40,572.88,SENSECARE MEDICAL STAFFING.
Adult and Health Services,Head of Adults,Third Party Payments 4THIRD,472101,Purchase of Care,02/08/2019,3624363-SS41,572.88,SENSECARE MEDICAL STAFFING.
Adult and Health Services,Head of Adults,Third Party Payments 4THIRD,472101,Purchase of Care,02/08/2019,3624363-SS42,572.88,SENSECARE MEDICAL STAFFING.
Adult and Health Services,Head of Adults,Third Party Payments 4THIRD,472101,Purchase of Care,02/08/2019,3624363-SS43,572.88,SENSECARE MEDICAL STAFFING.
Adult and Health Services,Head of Adults,Third Party Payments 4THIRD,472101,Purchase of Care,02/08/2019,3624363-SS44,572.88,SENSECARE MEDICAL STAFFING.
Adult and Health Services,Head of Adults,Third Party Payments 4THIRD,472101,Purchase of Care,02/08/2019,3624363-SS45,572.88,SENSECARE MEDICAL STAFFING.
Adult and Health Services,Head of Adults,Third Party Payments 4THIRD,472101,Purchase of Care,02/08/2019,3624363-SS46,572.88,SENSECARE MEDICAL STAFFING.
Adult and Health Services,Head of Adults,Third Party Payments 4THIRD,472101,Purchase of Care,02/08/2019,3624363-SS47,572.88,SENSECARE MEDICAL STAFFING.
Adult and Health Services,Head of Adults,Third Party Payments 4THIRD,472101,Purchase of Care,02/08/2019,3624363-SS48,572.88,SENSECARE MEDICAL STAFFING.
Adult and Health Services,Head of Adults,Third Party Payments 4THIRD,472101,Purchase of Care,02/08/2019,3624363-SS49,572.88,SENSECARE MEDICAL STAFFING.
Adult and Health Services,Head of Adults,Third Party Payments 4THIRD,472101,Purchase of Care,02/08/2019,3624363-SS50,572.88,SENSECARE MEDICAL STAFFING.
Adult and Health Services,Head of Adults,Third Party Payments 4THIRD,472101,Purchase of Care,02/08/2019,3624363-SS51,572.88,SENSECARE MEDICAL STAFFING.
Adult and Health Services,Head of Adults,Third Party Payments 4THIRD,472101,Purchase of Care,02/08/2019,3624363-SS52,572.88,SENSECARE MEDICAL STAFFING.
Adult and Health Services,Head of Adults,Third Party Payments 4THIRD,472101,Purchase of Care,02/08/2019,3624363-SS53,572.88,SENSECARE MEDICAL STAFFING.
Adult and Health Services,Head of Adults,Third Party Payments 4THIRD,472101,Purchase of Care,02/08/2019,3624363-SS54,572.88,SENSECARE MEDICAL STAFFING.
Adult and Health Services,Head of Adults,Third Party Payments 4THIRD,478151,Purchase of Care,02/08/2019,3624369-24719,"1,160.24",USE (46109) SOVEREIGN CARE NORTH EAST LTD.
Children and Young Peoples Services,Head of Education and Skills,Transport,230008,Contract Hire,02/08/2019,3624198-035,"2,880.00",BL CARS.
Children and Young Peoples Services,Head of Education and Skills,Supplies and Services,384491,Miscellaneous Expenses,02/08/2019,3624228-0000016438,828.80,DAYPARK LTD T/A YELLOW WELLIES.
Children and Young Peoples Services,Head of Education and Skills,Construction work A908,908105,Construction work,02/08/2019,3624249-132061/01,"5,900.00",FAIRHURST (CONSULTING ENGINEERS).
Children and Young Peoples Services,Head of Education and Skills,Transport,230003,Contract Hire,02/08/2019,3624254-21688-3301,"2,446.95",GARNETTS LTD (COACHES).
Children and Young Peoples Services,Head of Education and Skills,Transport,230003,Contract Hire,02/08/2019,3624254-21688-3303,"2,816.40",GARNETTS LTD (COACHES).
Children and Young Peoples Services,Head of Education and Skills,Transport,230003,Contract Hire,02/08/2019,3624254-21688-3335,"2,718.90",GARNETTS LTD (COACHES).
Children and Young Peoples Services,Head of Education and Skills,Transport,230003,Contract Hire,02/08/2019,3624254-21709-3024,"1,996.54",GARNETTS LTD (COACHES).
Children and Young Peoples Services,Head of Education and Skills,Transport,230003,Contract Hire,02/08/2019,3624254-21709-3026,"1,852.90",GARNETTS LTD (COACHES).
Children and Young Peoples Services,Head of Education and Skills,Transport,230003,Contract Hire,02/08/2019,3624254-21709-3027,"1,996.54",GARNETTS LTD (COACHES).
Children and Young Peoples Services,Head of Education and Skills,Transport,230003,Contract Hire,02/08/2019,3624254-21709-3028,"2,068.36",GARNETTS LTD (COACHES).
Children and Young Peoples Services,Head of Education and Skills,Transport,230007,Contract Hire,02/08/2019,3624254-21709-3029,"2,068.36",GARNETTS LTD (COACHES).
Children and Young Peoples Services,Head of Education and Skills,Transport,230007,Contract Hire,02/08/2019,3624255-EW06,960.00,GARY JACKSON PRIVATE HIRE.
Children and Young Peoples Services,Head of Education and Skills,Transport,230003,Contract Hire,02/08/2019,3624256-5211,"1,930.80",GEM TRAVEL.
Children and Young Peoples Services,Head of Education and Skills,Transport,230003,Contract Hire,02/08/2019,3624256-5212,"1,930.80",GEM TRAVEL.
Children and Young Peoples Services,Head of Education and Skills,Transport,230003,Contract Hire,02/08/2019,3624256-5213,"1,224.60",GEM TRAVEL.
Children and Young Peoples Services,Head of Education and Skills,Transport,230009,Contract Hire,02/08/2019,3624282-32,900.00,JOHN GARLAND.
Children and Young Peoples Services,Head of Childrens Social Care,Third Party Payments 4THIRD,425021,Rendered by Voluntary Organisations,02/08/2019,3624285-JP0016,"15,742.94",JOSH`S PLACE.
Children and Young Peoples Services,Head of Education and Skills,Transport,230009,Contract Hire,02/08/2019,3624286-723131,"1,608.15",JOVIAL PRIVATE HIRE.
Children and Young Peoples Services,Head of Education and Skills,Transport,230008,Contract Hire,02/08/2019,3624286-M01522,907.95,JOVIAL PRIVATE HIRE.
Children and Young Peoples Services,Head of Education and Skills,Transport,230008,Contract Hire,02/08/2019,3624291-SI-49,"1,140.00",LARS CARS LTD T/A STREETCARS.
Children and Young Peoples Services,Head of Education and Skills,Transport,230007,Contract Hire,02/08/2019,3624291-SI-52,"1,200.00",LARS CARS LTD T/A STREETCARS.
Children and Young Peoples Services,Head of Education and Skills,Transport,230008,Contract Hire,02/08/2019,3624291-SI-54,"1,860.00",LARS CARS LTD T/A STREETCARS.
Children and Young Peoples Services,Head of Education and Skills,Transport,230007,Contract Hire,02/08/2019,3624335-03-3394,"1,485.00",PAUL ROSE T/A PAUL`S TAXIS.
Children and Young Peoples Services,Head of Education and Skills,Transport,230009,Contract Hire,02/08/2019,3624336-FS/JULY19/7345,"1,200.00",PB PRIVATE HIRE.
Children and Young Peoples Services,Head of Education and Skills,Transport,230008,Contract Hire,02/08/2019,3624341-0788,540.00,PETER`S PRIVATE HIRE/PETER BEST.
Children and Young Peoples Services,Head of Education and Skills,Transport,230008,Contract Hire,02/08/2019,3624341-0789,"1,230.00",PETER`S PRIVATE HIRE/PETER BEST.
Children and Young Peoples Services,Head of Education and Skills,Transport,230008,Contract Hire,02/08/2019,3624341-0791,"1,320.00",PETER`S PRIVATE HIRE/PETER BEST.
Children and Young Peoples Services,Head of Education and Skills,Transport,230008,Contract Hire,02/08/2019,3624341-0792,"1,830.00",PETER`S PRIVATE HIRE/PETER BEST.
Children and Young Peoples Services,Head of Education and Skills,Transport,230007,Contract Hire,02/08/2019,3624341-0793,"1,635.00",PETER`S PRIVATE HIRE/PETER BEST.
Children and Young Peoples Services,Head of Education and Skills,Transport,230008,Contract Hire,02/08/2019,3624341-0794,"1,560.00",PETER`S PRIVATE HIRE/PETER BEST.
Children and Young Peoples Services,Head of Education and Skills,Transport,230008,Contract Hire,02/08/2019,3624341-0795,"1,185.00",PETER`S PRIVATE HIRE/PETER BEST.
Children and Young Peoples Services,Head of Education and Skills,Transport,230006,Contract Hire,02/08/2019,3624342-30263,"1,232.00",PHOENIX TAXIS T/A PRATT`S TAXIS.
Children and Young Peoples Services,Head of Education and Skills,Transport,230006,Contract Hire,02/08/2019,3624342-30471,"1,100.00",PHOENIX TAXIS T/A PRATT`S TAXIS.
Children and Young Peoples Services,Head of Education and Skills,Transport,230008,Contract Hire,02/08/2019,3624343-1322,923.40,PODA TAXIS LTD.
Children and Young Peoples Services,Head of Education and Skills,Transport,230008,Contract Hire,02/08/2019,3624343-1323,"2,065.95",PODA TAXIS LTD.
Children and Young Peoples Services,Head of Education and Skills,Transport,230012,Contract Hire,02/08/2019,3624343-1324,954.15,PODA TAXIS LTD.
Children and Young Peoples Services,Head of Early Help Inclusion & Vulnerable Children.,Employees,080025,Agency Staff,02/08/2019,3624347-51427070,674.25,PROTOCOL EDUCATION LTD.
Children and Young Peoples Services,Head of Early Help Inclusion & Vulnerable Children.,Employees,080025,Agency Staff,02/08/2019,3624347-51427071,994.45,PROTOCOL EDUCATION LTD.
Children and Young Peoples Services,Head of Education and Skills,Transport,230008,Contract Hire,02/08/2019,3624364-75242,"1,800.00",SHOTTON PRIVATE HIRE.
Children and Young Peoples Services,Head of Education and Skills,Transport,230007,Contract Hire,02/08/2019,3624364-75243,"1,287.00",SHOTTON PRIVATE HIRE.
Children and Young Peoples Services,Head of Education and Skills,Transport,230008,Contract Hire,02/08/2019,3624366-2003,930.00,SIMONS TAXIS.
Children and Young Peoples Services,Head of Early Help Inclusion & Vulnerable Children.,Employees,080025,Agency Staff,02/08/2019,3624380-2312596,987.11,TEACHING PERSONNEL LTD.
Children and Young Peoples Services,Head of Early Help Inclusion & Vulnerable Children.,Premises,135005,Water Services,02/08/2019,3624406-317351730015744241DEBIT,"1,485.73",WAVE (AWBN).
Children and Young Peoples Services,Head of Education and Skills,Transport,230009,Contract Hire,02/08/2019,3624407-3939020,"1,050.00",WENDYS` TAXIS.
Dedicated Schools Grant BG0015,DSG High Needs Block,Transport,230010,Contract Hire,02/08/2019,3624196-B006-JULY,"1,200.00",BIG MAMA`S TAXI.
Dedicated Schools Grant BG0015,DSG High Needs Block,Transport,230010,Contract Hire,02/08/2019,3624282-34,"1,800.00",JOHN GARLAND.
Dedicated Schools Grant BG0015,DSG High Needs Block,Supplies and Services,304259,Equipment and Materials,02/08/2019,3624303-INV-5097,"1,254.00",LYNCH HEALTHCARE LTD.
Dedicated Schools Grant BG0015,DSG High Needs Block,Supplies and Services,304259,Equipment and Materials,02/08/2019,3624303-INV-5098,"2,095.50",LYNCH HEALTHCARE LTD.
Dedicated Schools Grant BG0015,DSG High Needs Block,Employees,080025,Agency Staff,02/08/2019,3624347-51425999,"1,003.95",PROTOCOL EDUCATION LTD.
Dedicated Schools Grant BG0015,DSG High Needs Block,Employees,080025,Agency Staff,02/08/2019,3624347-51426001,569.20,PROTOCOL EDUCATION LTD.
Dedicated Schools Grant BG0015,DSG High Needs Block,Transport,230010,Contract Hire,02/08/2019,3624364-75240,"1,800.00",SHOTTON PRIVATE HIRE.
Regeneration and Local Services,EnvironmentHealth & Consumer Protection,Supplies and Services,338027,Services,02/08/2019,3624179-28393892,"2,450.00",AECOM LTD.
Regeneration and Local Services,Technical Services CM0300,Supplies and Services,304221,Equipment and Materials,02/08/2019,3624180-28516699,555.10,AGGREGATE INDUSTRIES UK LTD.
Regeneration and Local Services,Technical Services CM0300,Supplies and Services,304221,Equipment and Materials,02/08/2019,3624180-28516700,611.22,AGGREGATE INDUSTRIES UK LTD.
Regeneration and Local Services,Technical Services CM0300,Supplies and Services,304221,Equipment and Materials,02/08/2019,3624180-28523603,"1,232.20",AGGREGATE INDUSTRIES UK LTD.
Regeneration and Local Services,Technical Services CM0300,Supplies and Services,304221,Equipment and Materials,02/08/2019,3624180-28530115,"1,254.86",AGGREGATE INDUSTRIES UK LTD.
Regeneration and Local Services,Technical Services CM0300,Supplies and Services,304221,Equipment and Materials,02/08/2019,3624180-28530118,571.20,AGGREGATE INDUSTRIES UK LTD.
Regeneration and Local Services,Technical Services CM0300,Supplies and Services,304221,Equipment and Materials,02/08/2019,3624180-28530119,"1,232.20",AGGREGATE INDUSTRIES UK LTD.
Regeneration and Local Services,Corporate Property and Land,Premises,108099,Service Repairs and Maintenance,02/08/2019,3624183-1178,780.00,ALL TECHNIC.
Regeneration and Local Services,Culture Sport and Tourism,Supplies and Services,384302,Miscellaneous Expenses,02/08/2019,3624195-4100660627,"1,000.00",BETTY BROWN (ARTIST).
Regeneration and Local Services,Technical Services CM0300,Supplies and Services,304221,Equipment and Materials,02/08/2019,3624197-BMPR/259/BJW,"2,810.00",BISHOP MIDDLEHAM PLANT & RECYCLING LTD.
Regeneration and Local Services,Corporate Property and Land,Third Party Payments 4THIRD,430100,Rendered by Private Contractors,02/08/2019,3624206-6092,"1,788.23",CATHEDRAL LOCK & SAFE SERVICES LTD.
Regeneration and Local Services,Culture Sport and Tourism,Supplies and Services,384199,Miscellaneous Expenses,02/08/2019,3624207-0000728,"3,500.00",CEILIDH CONNECTIONS.
Regeneration and Local Services,Technical Services CM0300,Stock A926,926004,Stock,02/08/2019,3624210-400018598,"13,050.18",CLEVELAND POTASH LTD T/A ICL FERTILIZERS.
Regeneration and Local Services,Corporate Property and Land,Third Party Payments 4THIRD,430100,Rendered by Private Contractors,02/08/2019,3624215-8471,"4,063.50",COMMERCIAL COVERINGS LTD.
Regeneration and Local Services,Environmental Services,Third Party Payments 4THIRD,430101,Rendered by Private Contractors,02/08/2019,3624231-IV1149731,547.25,DIRECT TYRE MANAGEMENT LTD (DTM).
Regeneration and Local Services,Environmental Services,Third Party Payments 4THIRD,430101,Rendered by Private Contractors,02/08/2019,3624231-IV1149736,753.49,DIRECT TYRE MANAGEMENT LTD (DTM).
Regeneration and Local Services,Environmental Services,Third Party Payments 4THIRD,430101,Rendered by Private Contractors,02/08/2019,3624231-IV1149739,"2,618.77",DIRECT TYRE MANAGEMENT LTD (DTM).
Regeneration and Local Services,Corporate Property and Land,Third Party Payments 4THIRD,430100,Rendered by Private Contractors,02/08/2019,3624233-60322,"1,638.00",DUNNINGHAM DECORATORS LTD.
Regeneration and Local Services,Culture Sport and Tourism,Supplies and Services,384199,Miscellaneous Expenses,02/08/2019,3624236-100719,600.00,DURHAM MARKETS CO.
Regeneration and Local Services,Environmental Services,Supplies and Services,352001,Conference Expenses,02/08/2019,3624237-332573,"1,600.00",DURHAM UNIVERSITY.
Regeneration and Local Services,Business Durham CL0850,Premises,120009,Energy Costs,02/08/2019,3624241-000006073391,"1,982.20",EDF ENERGY CUSTOMERS PLC T/A EDF ENERGY.
Regeneration and Local Services,Corporate Property and Land,Supplies and Services,304221,Equipment and Materials,02/08/2019,3624243-059-247292,"3,340.49",EDMUNDSON ELECTRICAL LTD.
Regeneration and Local Services,Environmental Services,Supplies and Services,338094,Services,02/08/2019,3624248-INV-0757,"1,666.67",FAIRFIELD HOUSE LTD.
Regeneration and Local Services,Culture Sport and Tourism,Premises,106082,Centrally Controlled Rep and Maint,02/08/2019,3624253-15063,"1,000.00",FT LEISURE LTD.
Regeneration and Local Services,Transport and Contracted Services,Supplies and Services,384540,Miscellaneous Expenses,02/08/2019,3624261-INV-0204,"1,820.00",GRM MAPPING LTD.
Regeneration and Local Services,Corporate Property and Land,Supplies and Services,304245,Equipment and Materials,02/08/2019,3624262-J7012,"1,076.00",GROVE REED.
Regeneration and Local Services,Corporate Property and Land,Premises,108099,Service Repairs and Maintenance,02/08/2019,3624268-7080771608,"37,358.36",HONEYWELL NOVAR SYSTEMS LTD.
Regeneration and Local Services,Culture Sport and Tourism,Premises,106083,Centrally Controlled Rep and Maint,02/08/2019,3624272-134155,504.00,HUTCHINSON ENVIRONMENTAL SOLUTIONS LTD.
Regeneration and Local Services,Technical Services CM0300,Third Party Payments 4THIRD,430100,Rendered by Private Contractors,02/08/2019,3624275-23101,"7,227.75",JACK COUPE & SONS LTD T/A COUPE LINE.
Regeneration and Local Services,Technical Services CM0300,Third Party Payments 4THIRD,430100,Rendered by Private Contractors,02/08/2019,3624275-23121,728.94,JACK COUPE & SONS LTD T/A COUPE LINE.
Regeneration and Local Services,Environmental Services,Supplies and Services,384199,Miscellaneous Expenses,02/08/2019,3624277-S6818,523.20,JEFF DOBSON MARQUEE HIRE.
Regeneration and Local Services,Corporate Property and Land,Third Party Payments 4THIRD,430100,Rendered by Private Contractors,02/08/2019,3624284-0000082020,"2,410.00",JOHN WADE (HAULAGE) LTD.
Regeneration and Local Services,Corporate Property and Land,Third Party Payments 4THIRD,430100,Rendered by Private Contractors,02/08/2019,3624284-0000082021,"3,010.00",JOHN WADE (HAULAGE) LTD.
Regeneration and Local Services,Corporate Property and Land,Third Party Payments 4THIRD,430100,Rendered by Private Contractors,02/08/2019,3624284-0000082022,"1,344.00",JOHN WADE (HAULAGE) LTD.
Regeneration and Local Services,Corporate Property and Land,Third Party Payments 4THIRD,430100,Rendered by Private Contractors,02/08/2019,3624284-0000082023,"1,344.00",JOHN WADE (HAULAGE) LTD.
Regeneration and Local Services,Environmental Services,Transport,230005,Contract Hire,02/08/2019,3624292-4485483,"1,900.00",LEEDS COMMERCIAL LTD.
Regeneration and Local Services,Culture Sport and Tourism,Premises,106082,Centrally Controlled Rep and Maint,02/08/2019,3624302-SI432-2019,"5,950.00",LUMLEY ESTATES.
Regeneration and Local Services,Technical Services CM0300,Third Party Payments 4THIRD,410037,Rendered by Other Local Authorities,02/08/2019,3624304-5789,586.80,MAKEPEACE MOTORS.
Regeneration and Local Services,Technical Services CM0300,Third Party Payments 4THIRD,430100,Rendered by Private Contractors,02/08/2019,3624304-5794,"3,768.00",MAKEPEACE MOTORS.
Regeneration and Local Services,Environmental Services,Cap Exp on Grants & Other Financial Assistance (REFCUS),918501,Exp assets not owned by authority,02/08/2019,3624306-1121,"2,512.00",MARSDEN AES LTD.
Regeneration and Local Services,Environmental Services,Premises,108099,Service Repairs and Maintenance,02/08/2019,3624307-01676,680.00,MD SHOTBLASTING SERVICES.
Regeneration and Local Services,Culture Sport and Tourism,Supplies and Services,384199,Miscellaneous Expenses,02/08/2019,3624309-54155,"3,290.05",MOETTE LTD.
Regeneration and Local Services,Culture Sport and Tourism,Supplies and Services,384199,Miscellaneous Expenses,02/08/2019,3624314-480,"5,000.00",MR WILSON`S SECOND LINERS LTD.
Regeneration and Local Services,Technical Services CM0300,Third Party Payments 4THIRD,430100,Rendered by Private Contractors,02/08/2019,3624324-DI20322170,908.58,NORTHERN POWERGRID (NORTHEAST) LTD.
Regeneration and Local Services,EnvironmentHealth & Consumer Protection,Third Party Payments 4THIRD,430100,Rendered by Private Contractors,02/08/2019,3624327-914577808,680.37,NORTHUMBRIAN WATER LTD.
Regeneration and Local Services,Business Durham CL0850,Supplies and Services,384899,Miscellaneous Expenses,02/08/2019,3624328-C3068,800.00,NORTON ACCOUNTANCY LTD.
Regeneration and Local Services,Business Durham CL0850,Premises,106082,Centrally Controlled Rep and Maint,02/08/2019,3624330-732890,"7,985.71",OPENVIEW SECURITY SOLUTIONS LTD.
Regeneration and Local Services,Technical Services CM0300,Stock A926,926900,Stock in hand-Inventory system,02/08/2019,3624333-XL242723,"4,649.30",PARK ELECTRICAL DISTRIBUTORS LTD.
Regeneration and Local Services,Technical Services CM0300,Stock A926,926900,Stock in hand-Inventory system,02/08/2019,3624333-XL242724,780.00,PARK ELECTRICAL DISTRIBUTORS LTD.
Regeneration and Local Services,Technical Services CM0300,Third Party Payments 4THIRD,430100,Rendered by Private Contractors,02/08/2019,3624346-120703,550.00,PROTECTOR SECURITY GROUP LTD.
Regeneration and Local Services,Technical Services CM0300,Third Party Payments 4THIRD,430100,Rendered by Private Contractors,02/08/2019,3624346-121788,550.00,PROTECTOR SECURITY GROUP LTD.
Regeneration and Local Services,Technical Services CM0300,Third Party Payments 4THIRD,430100,Rendered by Private Contractors,02/08/2019,3624349-11859,"3,273.32",QUANTUM POWER CONNECTIONS LTD.
Regeneration and Local Services,Development and Housing,Supplies and Services,338027,Services,02/08/2019,3624355-WITTONGILBERTEXAM1,"3,850.60",ROSEMARY KIDD (PLANNING CONSULTANT).
Regeneration and Local Services,Technical Services CM0300,Third Party Payments 4THIRD,430100,Rendered by Private Contractors,02/08/2019,3624370-6733,"8,500.00",ST ASTIER LTD.
Regeneration and Local Services,Technical Services CM0300,Third Party Payments 4THIRD,430100,Rendered by Private Contractors,02/08/2019,3624370-6746,"8,000.00",ST ASTIER LTD.
Regeneration and Local Services,Technical Services CM0300,Third Party Payments 4THIRD,430100,Rendered by Private Contractors,02/08/2019,3624370-6749,"18,445.00",ST ASTIER LTD.
Regeneration and Local Services,Culture Sport and Tourism,Supplies and Services,384700,Miscellaneous Expenses,02/08/2019,3624373-19021,"8,500.00",STEVE MESSAM.
Regeneration and Local Services,Corporate Property and Land,Premises,108099,Service Repairs and Maintenance,02/08/2019,3624374-13841,511.00,STONE TECHNICAL SERVICES LTD.
Regeneration and Local Services,Corporate Property and Land,Supplies and Services,304221,Equipment and Materials,02/08/2019,3624377-72197,576.13,T CROSSLING & CO LTD.
Regeneration and Local Services,Technical Services CM0300,Stock A926,926900,Stock in hand-Inventory system,02/08/2019,3624385-NSIN00016701,"1,051.50",THOMAS OWEN & SONS (NEWCASTLE) LTD.
Regeneration and Local Services,Culture Sport and Tourism,Supplies and Services,304083,Equipment and Materials,02/08/2019,3624387-127725,595.00,TP ELECTRICAL SUPPLIES & FIXINGS LTD.
Regeneration and Local Services,Environmental Services,Transport,230005,Contract Hire,02/08/2019,3624389-20051,975.00,TRASH UK LTD.
Regeneration and Local Services,Environmental Services,Transport,230005,Contract Hire,02/08/2019,3624389-20075,975.00,TRASH UK LTD.
Regeneration and Local Services,Environmental Services,Third Party Payments 4THIRD,460305,Contract Payments,02/08/2019,3624391-0000007900,"4,391.90",TRISCAN SYSTEMS LTD.
Regeneration and Local Services,Corporate Property and Land,Third Party Payments 4THIRD,430100,Rendered by Private Contractors,02/08/2019,3624400-INV-0917,"4,953.00",UK VENTILATION LTD.
Regeneration and Local Services,Corporate Property and Land,Third Party Payments 4THIRD,430100,Rendered by Private Contractors,02/08/2019,3624400-INV-1013,"1,260.00",UK VENTILATION LTD.
Regeneration and Local Services,Corporate Property and Land,Premises,108099,Service Repairs and Maintenance,02/08/2019,3624403-1118,595.00,VENTILATION HYGIENE SPECIALISTS (VHS) LTD.
Regeneration and Local Services,Technical Services CM0300,Supplies and Services,304221,Equipment and Materials,02/08/2019,3624405-PSI-783559,"1,044.00",WATCO UK LTD.
Regeneration and Local Services,Environmental Services,Premises,135005,Water Services,02/08/2019,3624406-210057270815754670,882.26,WAVE (AWBN).
Regeneration and Local Services,Business Durham CL0850,Premises,135005,Water Services,02/08/2019,3624406-210359890015801075,"1,221.23",WAVE (AWBN).
Regeneration and Local Services,Environmental Services,Premises,135005,Water Services,02/08/2019,3624406-210364310085755131,"1,693.21",WAVE (AWBN).
Regeneration and Local Services,Business Durham CL0850,Premises,135005,Water Services,02/08/2019,3624406-303696120015802819,773.53,WAVE (AWBN).
Regeneration and Local Services,Environmental Services,Premises,135005,Water Services,02/08/2019,3624406-307411330015754797,"1,953.60",WAVE (AWBN).
Regeneration and Local Services,Business Durham CL0850,Premises,135005,Water Services,02/08/2019,3624406-580077131595761001,"1,320.46",WAVE (AWBN).
Resources BK0010,Legal & Democratic Services,Supplies and Services,338102,Services,02/08/2019,3624182-0000033695,820.00,ALERE FORENSICS.
Resources BK0010,Legal & Democratic Services,Supplies and Services,338101,Services,02/08/2019,3624213-3910016916,"17,771.64",CO DURHAM & DARLINGTON NHS FOUNDATION TRUST.
Resources BK0010,Legal & Democratic Services,Supplies and Services,338101,Services,02/08/2019,3624213-3910016917,"14,368.56",CO DURHAM & DARLINGTON NHS FOUNDATION TRUST.
Resources BK0010,Corporate Finance & Commercial Services,Supplies and Services,338066,Services,02/08/2019,3624295-INV-0212,602.65,LH ALLIANCES LTD.
Resources BK0010,Legal & Democratic Services,Supplies and Services,338042,Services,02/08/2019,3624390-263001/INVHM132,850.00,TRINITY CHAMBERS.
Adult and Health Services,Head of Adults,Transport,230005,Contract Hire,05/08/2019,3624471-23083,672.00,BLUELINE TAXIS.
Adult and Health Services,Head of Adults,Transport,230005,Contract Hire,05/08/2019,3624471-23891,672.00,BLUELINE TAXIS.
Adult and Health Services,Commissioning inc Supporting People,Supplies and Services,338089,Services,05/08/2019,3624576-LATS/19/069,"2,400.00",LOCAL GOVERNMENT OMBUDSMAN.
Adult and Health Services,Commissioning inc Supporting People,Third Party Payments 4THIRD,479101,Purchase of Care,05/08/2019,3624607-7010101290,"87,083.30",NHS DDES CCG.
Adult and Health Services,Commissioning inc Supporting People,Third Party Payments 4THIRD,479101,Purchase of Care,05/08/2019,3624608-7010501226,"68,145.40",NHS NORTH DURHAM CCG.
Children and Young Peoples Services,Head of Education and Skills,Premises,145052,Cleaning and Domestic Supplies,05/08/2019,3624440-5578,570.00,A & B INDUSTRIAL CLEANING LTD.
Children and Young Peoples Services,Head of Early Help Inclusion & Vulnerable Children.,Supplies and Services,308011,Furniture,05/08/2019,3624450-166228,705.00,ALBANY OFFICE EQUIPMENT (WHOLESALE) LTD.
Children and Young Peoples Services,Head of Education and Skills,Supplies and Services,384194,Miscellaneous Expenses,05/08/2019,3624463-SIN040052,"1,400.00",BEAMISH MUSEUM LTD.
Children and Young Peoples Services,Head of Education and Skills,Supplies and Services,338089,Services,05/08/2019,3624466-294,883.60,BEST BENNETT`S EDUCATION.
Children and Young Peoples Services,Head of Education and Skills,Transport,230008,Contract Hire,05/08/2019,3624471-23890,"2,280.00",BLUELINE TAXIS.
Children and Young Peoples Services,Head of Education and Skills,Transport,230008,Contract Hire,05/08/2019,3624471-23903,"2,680.00",BLUELINE TAXIS.
Children and Young Peoples Services,Head of Education and Skills,Transport,230008,Contract Hire,05/08/2019,3624471-24434,"2,774.00",BLUELINE TAXIS.
Children and Young Peoples Services,Head of Education and Skills,Transport,230007,Contract Hire,05/08/2019,3624485-5254/06,880.00,CHRISTOPHER MADDISON (TAXI).
Children and Young Peoples Services,Head of Education and Skills,Transport,230007,Contract Hire,05/08/2019,3624489-1128,773.40,CLIVE HUBERY.
Children and Young Peoples Services,Head of Education and Skills,Transport,230008,Contract Hire,05/08/2019,3624502-355,"1,152.00",DA TRAVEL.
Children and Young Peoples Services,Head of Education and Skills,Transport,230007,Contract Hire,05/08/2019,3624532-101331/2,"1,050.00",G & P JOHNSON LTD T/A NIGHTINGALE COACHES.
Children and Young Peoples Services,Head of Education and Skills,Transport,230008,Contract Hire,05/08/2019,3624532-101349,690.00,G & P JOHNSON LTD T/A NIGHTINGALE COACHES.
Children and Young Peoples Services,Head of Education and Skills,Transport,230003,Contract Hire,05/08/2019,3624533-21694-3004,"2,446.95",GARNETTS LTD (COACHES).
Children and Young Peoples Services,Head of Education and Skills,Transport,230003,Contract Hire,05/08/2019,3624533-21694-3008,"2,308.05",GARNETTS LTD (COACHES).
Children and Young Peoples Services,Head of Education and Skills,Transport,230003,Contract Hire,05/08/2019,3624533-21694-3203,"2,139.15",GARNETTS LTD (COACHES).
Children and Young Peoples Services,Head of Education and Skills,Transport,230003,Contract Hire,05/08/2019,3624533-21694-3333,"1,816.05",GARNETTS LTD (COACHES).
Children and Young Peoples Services,Head of Education and Skills,Transport,230007,Contract Hire,05/08/2019,3624533-21699,"2,563.96",GARNETTS LTD (COACHES).
Children and Young Peoples Services,Head of Education and Skills,Transport,230008,Contract Hire,05/08/2019,3624583-34,"1,647.72",MARK SUMMERS T/A MARK`S TAXI.
Children and Young Peoples Services,Head of Education and Skills,Transport,230007,Contract Hire,05/08/2019,3624584-0240,840.00,MICKS TAXIS - MURTON.
Children and Young Peoples Services,Head of Education and Skills,Transport,230008,Contract Hire,05/08/2019,3624589-0009/7,"1,084.50",MR A MILLWARD T/A SWISS CABS PRIVATE HIRE.
Children and Young Peoples Services,Head of Education and Skills,Transport,230007,Contract Hire,05/08/2019,3624590-947,825.00,MR AD HOWARD T/A TOFT HILL TAXIS.
Children and Young Peoples Services,Head of Education and Skills,Transport,230007,Contract Hire,05/08/2019,3624590-948,"1,249.64",MR AD HOWARD T/A TOFT HILL TAXIS.
Children and Young Peoples Services,Head of Education and Skills,Transport,230007,Contract Hire,05/08/2019,3624594-SJS0011,600.00,MR THOMAS G GRIFFITHS T/A TNL TAXIS.
Children and Young Peoples Services,Head of Education and Skills,Third Party Payments 4THIRD,440999,Other third party payments E440,05/08/2019,3624611-170619,"2,040.00",NIGEL BROUGH T/A BESPOKE TRAINING SOLUTIONS LTD.
Children and Young Peoples Services,Head of Early Help Inclusion & Vulnerable Children.,Supplies and Services,338042,Services,05/08/2019,3624626-285207-12/7/19,"44,125.00",PARKLANE PLOWDEN CHAMBERS (BARRISTERS).
Children and Young Peoples Services,Head of Early Help Inclusion & Vulnerable Children.,Supplies and Services,338099,Services,05/08/2019,3624646-1137,"1,950.00",QUAYSIDE CHILDCARE LTD.
Children and Young Peoples Services,Head of Education and Skills,Transport,230007,Contract Hire,05/08/2019,3624648-RDS050,600.00,RDS TAXI.
Children and Young Peoples Services,Head of Education and Skills,Transport,230007,Contract Hire,05/08/2019,3624653-1268,"1,765.95",ROBERTS TOURS.
Children and Young Peoples Services,Head of Education and Skills,Transport,230007,Contract Hire,05/08/2019,3624653-1269,"2,231.55",ROBERTS TOURS.
Children and Young Peoples Services,Head of Education and Skills,Transport,230007,Contract Hire,05/08/2019,3624653-1270,"2,716.20",ROBERTS TOURS.
Children and Young Peoples Services,Head of Education and Skills,Transport,230008,Contract Hire,05/08/2019,3624662-75245,"1,875.00",SHOTTON PRIVATE HIRE.
Children and Young Peoples Services,Head of Education and Skills,Transport,230008,Contract Hire,05/08/2019,3624664-792A,"1,154.25",SJ MACKENZIE T/A SCOTTS TAXIS.
Children and Young Peoples Services,Head of Education and Skills,Transport,230008,Contract Hire,05/08/2019,3624664-793A,"2,472.39",SJ MACKENZIE T/A SCOTTS TAXIS.
Children and Young Peoples Services,Head of Education and Skills,Transport,230008,Contract Hire,05/08/2019,3624664-794A,846.45,SJ MACKENZIE T/A SCOTTS TAXIS.
Children and Young Peoples Services,Head of Education and Skills,Transport,230008,Contract Hire,05/08/2019,3624664-795A,"1,535.10",SJ MACKENZIE T/A SCOTTS TAXIS.
Children and Young Peoples Services,Head of Education and Skills,Transport,230008,Contract Hire,05/08/2019,3624664-796A,"1,462.09",SJ MACKENZIE T/A SCOTTS TAXIS.
Children and Young Peoples Services,Head of Education and Skills,Transport,230008,Contract Hire,05/08/2019,3624664-800A,"1,200.00",SJ MACKENZIE T/A SCOTTS TAXIS.
Children and Young Peoples Services,Head of Education and Skills,Transport,230008,Contract Hire,05/08/2019,3624664-801A,"1,275.00",SJ MACKENZIE T/A SCOTTS TAXIS.
Children and Young Peoples Services,Head of Education and Skills,Transport,230007,Contract Hire,05/08/2019,3624664-803A,"1,150.00",SJ MACKENZIE T/A SCOTTS TAXIS.
Children and Young Peoples Services,Head of Education and Skills,Third Party Payments 4THIRD,440999,Other third party payments E440,05/08/2019,3624670-261,"6,196.56",STANLEY EVENTS LTD.
Children and Young Peoples Services,Head of Education and Skills,Transport,230008,Contract Hire,05/08/2019,3624672-1009,"2,070.00",STEPHEN REED T/A STEVE`S TAXIS.
Children and Young Peoples Services,Head of Childrens Social Care,Transport,240045,Car allowances E240,05/08/2019,3624675-9793,"45,795.35",SUPPORTIVE SRC LTD.
Children and Young Peoples Services,Head of Education and Skills,Transport,230008,Contract Hire,05/08/2019,3624682-023,"1,785.00",TAXZ.
Children and Young Peoples Services,Head of Education and Skills,Transport,230008,Contract Hire,05/08/2019,3624684-DCC/2018/097,"3,120.00",TAYLOR`S TAXIS.
Children and Young Peoples Services,Head of Education and Skills,Transport,230008,Contract Hire,05/08/2019,3624684-DCC/2018/098,"1,320.00",TAYLOR`S TAXIS.
Children and Young Peoples Services,Head of Education and Skills,Transport,230008,Contract Hire,05/08/2019,3624684-DCC/2018/099,"1,397.40",TAYLOR`S TAXIS.
Children and Young Peoples Services,Head of Education and Skills,Transport,230008,Contract Hire,05/08/2019,3624684-DCC/2018/101,"1,755.15",TAYLOR`S TAXIS.
Children and Young Peoples Services,Head of Education and Skills,Transport,230007,Contract Hire,05/08/2019,3624687-B28,"1,923.75",TED WILFORD COACHES.
Children and Young Peoples Services,Head of Education and Skills,Transport,230007,Contract Hire,05/08/2019,3624687-EA8,975.00,TED WILFORD COACHES.
Children and Young Peoples Services,Head of Education and Skills,Transport,230007,Contract Hire,05/08/2019,3624687-N30,"1,615.95",TED WILFORD COACHES.
Children and Young Peoples Services,Head of Education and Skills,Transport,230007,Contract Hire,05/08/2019,3624687-SV11,"1,875.00",TED WILFORD COACHES.
Children and Young Peoples Services,Head of Education and Skills,Transport,230008,Contract Hire,05/08/2019,3624696-TS-15/33,738.75,TOP STAR TRAVEL.
Children and Young Peoples Services,Head of Education and Skills,Transport,230008,Contract Hire,05/08/2019,3624696-TS21/33,738.75,TOP STAR TRAVEL.
Children and Young Peoples Services,Head of Education and Skills,Transport,230012,Contract Hire,05/08/2019,3624696-TS22-22,831.00,TOP STAR TRAVEL.
Children and Young Peoples Services,Head of Education and Skills,Transport,230008,Contract Hire,05/08/2019,3624696-TS40/33,800.25,TOP STAR TRAVEL.
Children and Young Peoples Services,Head of Education and Skills,Transport,230008,Contract Hire,05/08/2019,3624699-02/JULY,"1,296.00",TRIDENT TAXIS.
Children and Young Peoples Services,Head of Education and Skills,Transport,230008,Contract Hire,05/08/2019,3624699-08/JULY,690.00,TRIDENT TAXIS.
Children and Young Peoples Services,Head of Education and Skills,Transport,230007,Contract Hire,05/08/2019,3624712-58-2019,738.75,WALTONS TAXIS.
Children and Young Peoples Services,Head of Education and Skills,Transport,230007,Contract Hire,05/08/2019,3624712-59-2019,689.50,WALTONS TAXIS.
Children and Young Peoples Services,Head of Childrens Social Care,Third Party Payments 4THIRD,425021,Rendered by Voluntary Organisations,05/08/2019,3624713-INV-0923,"1,366.89",WE CARE RECRUITMENT SOLUTIONS LTD.
Children and Young Peoples Services,Head of Childrens Social Care,Third Party Payments 4THIRD,440038,Other third party payments E440,05/08/2019,3624713-INV-1017,"1,200.30",WE CARE RECRUITMENT SOLUTIONS LTD.
Children and Young Peoples Services,Head of Childrens Social Care,Employees,080025,Agency Staff,05/08/2019,3624713-INV-1046,531.49,WE CARE RECRUITMENT SOLUTIONS LTD.
Children and Young Peoples Services,Head of Childrens Social Care,Third Party Payments 4THIRD,440038,Other third party payments E440,05/08/2019,3624713-INV-1052,"1,247.93",WE CARE RECRUITMENT SOLUTIONS LTD.
Children and Young Peoples Services,Head of Education and Skills,Transport,230007,Contract Hire,05/08/2019,3624714-7212,622.50,WEARDALE PRIVATE HIRE.
Children and Young Peoples Services,Head of Education and Skills,Transport,230007,Contract Hire,05/08/2019,3624714-7213,720.00,WEARDALE PRIVATE HIRE.
Children and Young Peoples Services,Head of Education and Skills,Transport,230007,Contract Hire,05/08/2019,3624714-7214-4042,"1,383.60",WEARDALE PRIVATE HIRE.
Children and Young Peoples Services,Head of Education and Skills,Transport,230007,Contract Hire,05/08/2019,3624714-7214-4071,859.50,WEARDALE PRIVATE HIRE.
Children and Young Peoples Services,Head of Education and Skills,Transport,230008,Contract Hire,05/08/2019,3624714-7217,"2,531.85",WEARDALE PRIVATE HIRE.
Dedicated Schools Grant BG0015,DSG High Needs Block,Transport,230009,Contract Hire,05/08/2019,3624469-G015/7,600.00,BIG MAMA`S TAXI.
Dedicated Schools Grant BG0015,DSG High Needs Block,Supplies and Services,340001,Postages E340,05/08/2019,3624654-1802149744,787.00,ROYAL MAIL GROUP PLC.
Dedicated Schools Grant BG0015,DSG High Needs Block,Transport,230010,Contract Hire,05/08/2019,3624684-DCC/2018/100,"1,272.60",TAYLOR`S TAXIS.
Regeneration and Local Services,Culture Sport and Tourism,Supplies and Services,332029,Printing Stationery and Gen Off Exps,05/08/2019,3624415-1LIFE20157,"3,120.00",1LIFE MANAGEMENT SOLUTIONS LTD.
Regeneration and Local Services,Technical Services CM0300,Supplies and Services,304221,Equipment and Materials,05/08/2019,3624448-28544095,"1,011.92",AGGREGATE INDUSTRIES UK LTD.
Regeneration and Local Services,Technical Services CM0300,Supplies and Services,304221,Equipment and Materials,05/08/2019,3624448-28544097,736.20,AGGREGATE INDUSTRIES UK LTD.
Regeneration and Local Services,Technical Services CM0300,Supplies and Services,304221,Equipment and Materials,05/08/2019,3624448-28544098,"1,200.48",AGGREGATE INDUSTRIES UK LTD.
Regeneration and Local Services,Environmental Services,Supplies and Services,372009,Subscriptions E372,05/08/2019,3624458-PN1920/58,"8,100.00",APSE.
Regeneration and Local Services,Technical Services CM0300,Stock A926,926900,Stock in hand-Inventory system,05/08/2019,3624461-440228,553.38,BAY PLASTICS LTD.
Regeneration and Local Services,Transport and Contracted Services,Third Party Payments 4THIRD,440999,Other third party payments E440,05/08/2019,3624462-71145,"6,514.32",BAYDALE CONTROL SYSTEMS LTD.
Regeneration and Local Services,Corporate Property and Land,Third Party Payments 4THIRD,430100,Rendered by Private Contractors,05/08/2019,3624480-6117,868.60,CATHEDRAL LOCK & SAFE SERVICES LTD.
Regeneration and Local Services,Environmental Services,Supplies and Services,304259,Equipment and Materials,05/08/2019,3624481-OP/I022233,"1,032.00",CENTREWIRE LTD.
Regeneration and Local Services,Technical Services CM0300,Stock A926,926004,Stock,05/08/2019,3624488-400018643,"9,344.94",CLEVELAND POTASH LTD T/A ICL FERTILIZERS.
Regeneration and Local Services,Technical Services CM0300,Stock A926,926004,Stock,05/08/2019,3624488-400018644,"10,385.10",CLEVELAND POTASH LTD T/A ICL FERTILIZERS.
Regeneration and Local Services,Culture Sport and Tourism,Third Party Payments 4THIRD,430100,Rendered by Private Contractors,05/08/2019,3624492-INV04093,874.25,COMPETITION LINE UK LTD T/A LIFESTYLE FITNESS.
Regeneration and Local Services,Culture Sport and Tourism,Third Party Payments 4THIRD,430100,Rendered by Private Contractors,05/08/2019,3624492-INV04094,764.40,COMPETITION LINE UK LTD T/A LIFESTYLE FITNESS.
Regeneration and Local Services,Business Durham CL0850,Premises,120021,Energy Costs,05/08/2019,3624496-14199501,570.64,CORONA ENERGY RETAIL 2 LTD.
Regeneration and Local Services,Business Durham CL0850,Premises,120021,Energy Costs,05/08/2019,3624496-14199510,921.82,CORONA ENERGY RETAIL 2 LTD.
Regeneration and Local Services,EnvironmentHealth & Consumer Protection,Third Party Payments 4THIRD,430100,Rendered by Private Contractors,05/08/2019,3624498-3893,"4,770.00",CROSBY WEIGHING LTD T/A CROSBY WEIGHING MACHINE SERVICES.
Regeneration and Local Services,Culture Sport and Tourism,Supplies and Services,338027,Services,05/08/2019,3624504-BOB03,"3,500.00",DAVE BATCHELOR T/A SCOTTISH SWING ORCHESTRA.
Regeneration and Local Services,Corporate Property and Land,Construction work A908,908105,Construction work,05/08/2019,3624506-DCL/2240,"2,060.00",DENDRA CONSULTING LTD.
Regeneration and Local Services,Corporate Property and Land,Supplies and Services,304221,Equipment and Materials,05/08/2019,3624517-059-247435,"1,482.15",EDMUNDSON ELECTRICAL LTD.
Regeneration and Local Services,Environmental Services,Construction work A908,908105,Construction work,05/08/2019,3624520-16351,"4,760.00",ELEMENT MATERIALS TECHNOLOGY ENVIRONMENTAL UK LTD.
Regeneration and Local Services,Technical Services CM0300,Construction work A908,908105,Construction work,05/08/2019,3624521-PF00000490,"4,997.37",ENVIRONMENT AGENCY.
Regeneration and Local Services,Technical Services CM0300,Supplies and Services,304221,Equipment and Materials,05/08/2019,3624522-1907\117,"1,361.21",EPPLETON QUARRY PRODUCTS LTD.
Regeneration and Local Services,Technical Services CM0300,Supplies and Services,304221,Equipment and Materials,05/08/2019,3624522-1907\122,957.79,EPPLETON QUARRY PRODUCTS LTD.
Regeneration and Local Services,Technical Services CM0300,Supplies and Services,304221,Equipment and Materials,05/08/2019,3624522-1907\123,684.18,EPPLETON QUARRY PRODUCTS LTD.
Regeneration and Local Services,Technical Services CM0300,Third Party Payments 4THIRD,430100,Rendered by Private Contractors,05/08/2019,3624523-159772,"1,053.60",ESH CONSTRUCTION LTD FORMERLY LUMSDEN & CARROLL CONSTRUCTION LTD.
Regeneration and Local Services,Development and Housing,Supplies and Services,384871,Miscellaneous Expenses,05/08/2019,3624527-8526,"1,233.83",FRED FOSTER TRANSPORT LTD.
Regeneration and Local Services,Corporate Property and Land,Supplies and Services,304221,Equipment and Materials,05/08/2019,3624528-SI11947816,969.45,FRED WILLIAMSON & SONS LTD.*
Regeneration and Local Services,Technical Services CM0300,Supplies and Services,304221,Equipment and Materials,05/08/2019,3624538-SI778439,"1,265.60",GLASDON UK LTD.
Regeneration and Local Services,Environmental Services,Supplies and Services,304221,Equipment and Materials,05/08/2019,3624538-SI778717,616.58,GLASDON UK LTD.
Regeneration and Local Services,Corporate Property and Land,Premises,145023,Cleaning and Domestic Supplies,05/08/2019,3624541-06/008602,"2,706.61",GREENHAM TRADING LTD.
Regeneration and Local Services,Technical Services CM0300,Stock A926,926900,Stock in hand-Inventory system,05/08/2019,3624541-06/010330,"1,777.12",GREENHAM TRADING LTD.
Regeneration and Local Services,Technical Services CM0300,Stock A926,926900,Stock in hand-Inventory system,05/08/2019,3624541-06/010670,590.05,GREENHAM TRADING LTD.
Regeneration and Local Services,Environmental Services,Supplies and Services,304221,Equipment and Materials,05/08/2019,3624548-106599,524.99,HEXHAM MACHINERY CENTRE LTD.
Regeneration and Local Services,Technical Services CM0300,Third Party Payments 4THIRD,430100,Rendered by Private Contractors,05/08/2019,3624559-23119,"5,659.20",JACK COUPE & SONS LTD T/A COUPE LINE.
Regeneration and Local Services,Technical Services CM0300,Third Party Payments 4THIRD,430100,Rendered by Private Contractors,05/08/2019,3624559-23120,"4,341.47",JACK COUPE & SONS LTD T/A COUPE LINE.
Regeneration and Local Services,Technical Services CM0300,Supplies and Services,304221,Equipment and Materials,05/08/2019,3624566-BII293931,797.50,JT DOVE LTD.
Regeneration and Local Services,Technical Services CM0300,Supplies and Services,304221,Equipment and Materials,05/08/2019,3624566-BII293932,758.40,JT DOVE LTD.
Regeneration and Local Services,Technical Services CM0300,Supplies and Services,304221,Equipment and Materials,05/08/2019,3624566-BII293933,"1,085.44",JT DOVE LTD.
Regeneration and Local Services,Technical Services CM0300,Stock A926,926900,Stock in hand-Inventory system,05/08/2019,3624566-BII293935,"1,396.96",JT DOVE LTD.
Regeneration and Local Services,Technical Services CM0300,Supplies and Services,304221,Equipment and Materials,05/08/2019,3624566-G0I1716/D,"1,033.60",JT DOVE LTD.
Regeneration and Local Services,Corporate Property and Land,Supplies and Services,304221,Equipment and Materials,05/08/2019,3624566-GOI1742/D,"2,167.07",JT DOVE LTD.
Regeneration and Local Services,Corporate Property and Land,Supplies and Services,304221,Equipment and Materials,05/08/2019,3624597-707509,"4,634.39",NATIONWIDE CHIMNEY COMPONENTS LTD.
Regeneration and Local Services,Business Durham CL0850,Supplies and Services,340001,Postages E340,05/08/2019,3624601-RED-07-2019-101,"1,000.00",NEOPOST CREDIFON.
Regeneration and Local Services,Environmental Services,Supplies and Services,304221,Equipment and Materials,05/08/2019,3624605-064654,"1,946.00",NEW ROW FARM NURSERIES.
Regeneration and Local Services,Technical Services CM0300,Third Party Payments 4THIRD,430100,Rendered by Private Contractors,05/08/2019,3624609-81975,780.00,NICHOLLS COLTON GROUP LTD.
Regeneration and Local Services,Culture Sport and Tourism,Supplies and Services,304259,Equipment and Materials,05/08/2019,3624610-16809,"1,312.53",NICOLL INDUSTRIES LTD.
Regeneration and Local Services,Technical Services CM0300,Construction work A908,908105,Construction work,05/08/2019,3624618-19214,"2,700.00",NORTH EAST TRAFFIC DATA COLLECTION LTD.
Regeneration and Local Services,Technical Services CM0300,Supplies and Services,304221,Equipment and Materials,05/08/2019,3624620-21569,"1,580.00",OLIVERS TREE SERVICES LTD.
Regeneration and Local Services,Development and Housing,Supplies and Services,384437,Miscellaneous Expenses,05/08/2019,3624622-F66590170/1,574.00,P & O FERRIES HOLDINGS LTD.
Regeneration and Local Services,Development and Housing,Supplies and Services,384437,Miscellaneous Expenses,05/08/2019,3624622-F66590306/1,770.00,P & O FERRIES HOLDINGS LTD.
Regeneration and Local Services,Technical Services CM0300,Stock A926,926900,Stock in hand-Inventory system,05/08/2019,3624625-XL242811,"9,300.00",PARK ELECTRICAL DISTRIBUTORS LTD.
Regeneration and Local Services,Technical Services CM0300,Stock A926,926900,Stock in hand-Inventory system,05/08/2019,3624625-XL242812,"6,540.00",PARK ELECTRICAL DISTRIBUTORS LTD.
Regeneration and Local Services,Technical Services CM0300,Stock A926,926900,Stock in hand-Inventory system,05/08/2019,3624625-XL242814,"4,269.00",PARK ELECTRICAL DISTRIBUTORS LTD.
Regeneration and Local Services,Technical Services CM0300,Stock A926,926900,Stock in hand-Inventory system,05/08/2019,3624625-XL242815,923.16,PARK ELECTRICAL DISTRIBUTORS LTD.
Regeneration and Local Services,Technical Services CM0300,Stock A926,926900,Stock in hand-Inventory system,05/08/2019,3624625-XL242836,"3,782.40",PARK ELECTRICAL DISTRIBUTORS LTD.
Regeneration and Local Services,Corporate Property and Land,Supplies and Services,384199,Miscellaneous Expenses,05/08/2019,3624627-5170,"4,900.00",PAUL EVANS SURVEYING LTD.
Regeneration and Local Services,Technical Services CM0300,Third Party Payments 4THIRD,430100,Rendered by Private Contractors,05/08/2019,3624629-0000000948,"3,680.00",PBU (UK) LTD.
Regeneration and Local Services,Technical Services CM0300,Third Party Payments 4THIRD,430100,Rendered by Private Contractors,05/08/2019,3624645-11921,547.40,QUANTUM POWER CONNECTIONS LTD.
Regeneration and Local Services,Technical Services CM0300,Third Party Payments 4THIRD,430100,Rendered by Private Contractors,05/08/2019,3624645-11922,553.37,QUANTUM POWER CONNECTIONS LTD.
Regeneration and Local Services,Technical Services CM0300,Third Party Payments 4THIRD,430100,Rendered by Private Contractors,05/08/2019,3624645-11924,"1,979.79",QUANTUM POWER CONNECTIONS LTD.
Regeneration and Local Services,Environmental Services,Supplies and Services,384194,Miscellaneous Expenses,05/08/2019,3624657-4918,507.96,SAFE STRIP UK LTD.
Regeneration and Local Services,Environmental Services,Supplies and Services,384194,Miscellaneous Expenses,05/08/2019,3624657-4920,630.96,SAFE STRIP UK LTD.
Regeneration and Local Services,Environmental Services,Supplies and Services,384194,Miscellaneous Expenses,05/08/2019,3624657-4921,590.96,SAFE STRIP UK LTD.
Regeneration and Local Services,Environmental Services,Supplies and Services,384194,Miscellaneous Expenses,05/08/2019,3624657-4922,527.96,SAFE STRIP UK LTD.
Regeneration and Local Services,Environmental Services,Supplies and Services,304221,Equipment and Materials,05/08/2019,3624666-SI-2459163,654.60,SPALDINGS (UK) LTD.
Regeneration and Local Services,Culture Sport and Tourism,Supplies and Services,304252,Equipment and Materials,05/08/2019,3624668-SI-19200036,"3,000.00",SPORTS MAINTENANCE SERVICES LTD.
Regeneration and Local Services,Technical Services CM0300,Third Party Payments 4THIRD,430100,Rendered by Private Contractors,05/08/2019,3624669-6734,"15,462.00",ST ASTIER LTD.
Regeneration and Local Services,Transport and Contracted Services,Supplies and Services,384199,Miscellaneous Expenses,05/08/2019,3624676-9184,650.00,SURVEY & MARKETING SERVICES LTD T/A SMS MARKET RESEARCH.
Regeneration and Local Services,Corporate Property and Land,Supplies and Services,304221,Equipment and Materials,05/08/2019,3624679-203548,"3,135.29",T CROSSLING & CO LTD.
Regeneration and Local Services,Technical Services CM0300,Supplies and Services,304221,Equipment and Materials,05/08/2019,3624681-9040432277,"1,183.63",TARMAC TRADING LTD.
Regeneration and Local Services,Technical Services CM0300,Supplies and Services,304221,Equipment and Materials,05/08/2019,3624681-9040432955,783.50,TARMAC TRADING LTD.
Regeneration and Local Services,Technical Services CM0300,Third Party Payments 4THIRD,430100,Rendered by Private Contractors,05/08/2019,3624708-INV05204,"49,105.00",VELOCITY (UK) LTD.
Regeneration and Local Services,Technical Services CM0300,Supplies and Services,384199,Miscellaneous Expenses,05/08/2019,3624709-20190712-1,"9,745.00",VIAPONTICA LTD.
Regeneration and Local Services,Technical Services CM0300,Stock A926,926900,Stock in hand-Inventory system,05/08/2019,3624719-61784187,538.14,WOLSELEY UK LTD.
Regeneration and Local Services,Environmental Services,Premises,145023,Cleaning and Domestic Supplies,05/08/2019,3624720-0000011214,"10,979.40",WYBONE LTD.
Resources BK0010,Finance & Transactional Services,Supplies and Services,338066,Services,05/08/2019,3624456-7085784,910.00,AON HEWITT LTD.
Resources BK0010,Legal & Democratic Services,Supplies and Services,338101,Services,05/08/2019,3624509-2019,"1,350.00",DR DCA SENADHIRA.
Resources BK0010,Digital and Customer Services,Stock A926,926900,Stock in hand-Inventory system,05/08/2019,3624554-4451032,710.44,INSIGHT DIRECT (UK) LTD.
Resources BK0010,Digital and Customer Services,Supplies and Services,304303,Equipment and Materials,05/08/2019,3624555-4453560,652.64,INSIGHT DIRECT (UK) LTD.
Resources BK0010,Digital and Customer Services,Supplies and Services,344111,Telephones,05/08/2019,3624604-202736,"4,833.00",NETWORKS 2 BUSINESS LTD.
Resources BK0010,Finance & Transactional Services,Supplies and Services,338064,Services,05/08/2019,3624617-28500,"23,878.00",NORTH EAST REGIONAL EMPLOYERS ORGANISATION (NEREO).
Resources BK0010,Digital and Customer Services,Supplies and Services,342033,Computers and Communications,05/08/2019,3624634-OP/I846147,"3,106.06",PHOENIX SOFTWARE LTD.
Adult and Health Services,Head of Adults,Supplies and Services,304516,Equipment and Materials,06/08/2019,3625493-09451,949.40,1AB TAXIS LTD.
Adult and Health Services,Head of Adults,Third Party Payments 4THIRD,470101,Purchase of Care,06/08/2019,3625641-2564025,"2,369.64",A CHARLES THOMAS (CARE) LTD.
Adult and Health Services,Head of Adults,Third Party Payments 4THIRD,470101,Purchase of Care,06/08/2019,3625641-2564026,"2,369.64",A CHARLES THOMAS (CARE) LTD.
Adult and Health Services,Head of Adults,Third Party Payments 4THIRD,470101,Purchase of Care,06/08/2019,3625641-2564027,"2,369.64",A CHARLES THOMAS (CARE) LTD.
Adult and Health Services,Head of Adults,Third Party Payments 4THIRD,470101,Purchase of Care,06/08/2019,3625641-2564028,"2,369.64",A CHARLES THOMAS (CARE) LTD.
Adult and Health Services,Head of Adults,Third Party Payments 4THIRD,470101,Purchase of Care,06/08/2019,3625641-2564029,"2,369.64",A CHARLES THOMAS (CARE) LTD.
Adult and Health Services,Head of Adults,Third Party Payments 4THIRD,470101,Purchase of Care,06/08/2019,3625641-2564030,"2,369.64",A CHARLES THOMAS (CARE) LTD.
Adult and Health Services,Head of Adults,Third Party Payments 4THIRD,470101,Purchase of Care,06/08/2019,3625641-2564031,"2,369.64",A CHARLES THOMAS (CARE) LTD.
Adult and Health Services,Head of Adults,Third Party Payments 4THIRD,470101,Purchase of Care,06/08/2019,3625641-2564032,"2,369.64",A CHARLES THOMAS (CARE) LTD.
Adult and Health Services,Head of Adults,Third Party Payments 4THIRD,470101,Purchase of Care,06/08/2019,3625641-2564033,"2,369.64",A CHARLES THOMAS (CARE) LTD.
Adult and Health Services,Head of Adults,Third Party Payments 4THIRD,470101,Purchase of Care,06/08/2019,3625641-2564034,"2,369.64",A CHARLES THOMAS (CARE) LTD.
Adult and Health Services,Head of Adults,Third Party Payments 4THIRD,470101,Purchase of Care,06/08/2019,3625641-2564035,"2,369.64",A CHARLES THOMAS (CARE) LTD.
Adult and Health Services,Head of Adults,Third Party Payments 4THIRD,470101,Purchase of Care,06/08/2019,3625641-2564036,"2,369.64",A CHARLES THOMAS (CARE) LTD.
Adult and Health Services,Head of Adults,Third Party Payments 4THIRD,470101,Purchase of Care,06/08/2019,3625641-2564037,"2,369.64",A CHARLES THOMAS (CARE) LTD.
Adult and Health Services,Head of Adults,Third Party Payments 4THIRD,470101,Purchase of Care,06/08/2019,3625641-2564038,"2,657.20",A CHARLES THOMAS (CARE) LTD.
Adult and Health Services,Head of Adults,Third Party Payments 4THIRD,470101,Purchase of Care,06/08/2019,3625641-2564039,"2,369.64",A CHARLES THOMAS (CARE) LTD.
Adult and Health Services,Head of Adults,Third Party Payments 4THIRD,470101,Purchase of Care,06/08/2019,3625641-2564040,"2,369.64",A CHARLES THOMAS (CARE) LTD.
Adult and Health Services,Head of Adults,Third Party Payments 4THIRD,470101,Purchase of Care,06/08/2019,3625641-2564041,"2,369.64",A CHARLES THOMAS (CARE) LTD.
Adult and Health Services,Head of Adults,Third Party Payments 4THIRD,470101,Purchase of Care,06/08/2019,3625641-2564042,"2,369.64",A CHARLES THOMAS (CARE) LTD.
Adult and Health Services,Head of Adults,Third Party Payments 4THIRD,470101,Purchase of Care,06/08/2019,3625641-2564043,"2,369.64",A CHARLES THOMAS (CARE) LTD.
Adult and Health Services,Head of Adults,Third Party Payments 4THIRD,470101,Purchase of Care,06/08/2019,3625641-2564044,"2,369.64",A CHARLES THOMAS (CARE) LTD.
Adult and Health Services,Head of Adults,Third Party Payments 4THIRD,470101,Purchase of Care,06/08/2019,3625641-2564045,"2,369.64",A CHARLES THOMAS (CARE) LTD.
Adult and Health Services,Head of Adults,Third Party Payments 4THIRD,470101,Purchase of Care,06/08/2019,3625641-2564046,"2,369.64",A CHARLES THOMAS (CARE) LTD.
Adult and Health Services,Head of Adults,Third Party Payments 4THIRD,470101,Purchase of Care,06/08/2019,3625641-2568188,"1,607.97",A CHARLES THOMAS (CARE) LTD.
Adult and Health Services,Head of Adults,Third Party Payments 4THIRD,470101,Purchase of Care,06/08/2019,3625641-2568235,507.78,A CHARLES THOMAS (CARE) LTD.
Adult and Health Services,Head of Adults,Third Party Payments 4THIRD,470101,Purchase of Care,06/08/2019,3625682-2566708,"1,312.30",AKARI CARE LTD.
Adult and Health Services,Head of Adults,Third Party Payments 4THIRD,474101,Purchase of Care,06/08/2019,3625682-2566709,"2,466.24",AKARI CARE LTD.
Adult and Health Services,Head of Adults,Third Party Payments 4THIRD,470101,Purchase of Care,06/08/2019,3625682-2566711,"2,369.64",AKARI CARE LTD.
Adult and Health Services,Head of Adults,Third Party Payments 4THIRD,470101,Purchase of Care,06/08/2019,3625682-2566713,"2,369.64",AKARI CARE LTD.
Adult and Health Services,Head of Adults,Third Party Payments 4THIRD,470101,Purchase of Care,06/08/2019,3625682-2566714,"2,369.64",AKARI CARE LTD.
Adult and Health Services,Head of Adults,Third Party Payments 4THIRD,470101,Purchase of Care,06/08/2019,3625682-2566715,"2,449.64",AKARI CARE LTD.
Adult and Health Services,Head of Adults,Third Party Payments 4THIRD,470101,Purchase of Care,06/08/2019,3625682-2566716,"2,369.64",AKARI CARE LTD.
Adult and Health Services,Head of Adults,Third Party Payments 4THIRD,474101,Purchase of Care,06/08/2019,3625682-2566717,"2,466.24",AKARI CARE LTD.
Adult and Health Services,Head of Adults,Third Party Payments 4THIRD,470101,Purchase of Care,06/08/2019,3625682-2566719,"2,449.64",AKARI CARE LTD.
Adult and Health Services,Head of Adults,Third Party Payments 4THIRD,474101,Purchase of Care,06/08/2019,3625682-2566720,"1,233.12",AKARI CARE LTD.
Adult and Health Services,Head of Adults,Third Party Payments 4THIRD,474101,Purchase of Care,06/08/2019,3625682-2566722,"2,466.24",AKARI CARE LTD.
Adult and Health Services,Head of Adults,Third Party Payments 4THIRD,470101,Purchase of Care,06/08/2019,3625682-2566724,"2,369.64",AKARI CARE LTD.
Adult and Health Services,Head of Adults,Third Party Payments 4THIRD,470101,Purchase of Care,06/08/2019,3625682-2566725,"2,200.38",AKARI CARE LTD.
Adult and Health Services,Head of Adults,Third Party Payments 4THIRD,471101,Purchase of Care,06/08/2019,3625682-2566726,"2,457.00",AKARI CARE LTD.
Adult and Health Services,Head of Adults,Third Party Payments 4THIRD,471101,Purchase of Care,06/08/2019,3625682-2566727,"2,457.00",AKARI CARE LTD.
Adult and Health Services,Head of Adults,Third Party Payments 4THIRD,470101,Purchase of Care,06/08/2019,3625682-2566728,"2,369.64",AKARI CARE LTD.
Adult and Health Services,Head of Adults,Third Party Payments 4THIRD,470101,Purchase of Care,06/08/2019,3625682-2566729,"2,449.64",AKARI CARE LTD.
Adult and Health Services,Head of Adults,Third Party Payments 4THIRD,471101,Purchase of Care,06/08/2019,3625682-2566730,"2,457.00",AKARI CARE LTD.
Adult and Health Services,Head of Adults,Third Party Payments 4THIRD,474101,Purchase of Care,06/08/2019,3625682-2566731,"2,466.24",AKARI CARE LTD.
Adult and Health Services,Head of Adults,Third Party Payments 4THIRD,470101,Purchase of Care,06/08/2019,3625682-2566733,"2,369.64",AKARI CARE LTD.
Adult and Health Services,Head of Adults,Third Party Payments 4THIRD,471101,Purchase of Care,06/08/2019,3625682-2566734,"2,457.00",AKARI CARE LTD.
Adult and Health Services,Head of Adults,Third Party Payments 4THIRD,470101,Purchase of Care,06/08/2019,3625682-2566735,"1,137.33",AKARI CARE LTD.
Adult and Health Services,Head of Adults,Third Party Payments 4THIRD,474101,Purchase of Care,06/08/2019,3625682-2566737,"2,466.24",AKARI CARE LTD.
Adult and Health Services,Head of Adults,Third Party Payments 4THIRD,474101,Purchase of Care,06/08/2019,3625682-2566739,"2,466.24",AKARI CARE LTD.
Adult and Health Services,Head of Adults,Third Party Payments 4THIRD,470101,Purchase of Care,06/08/2019,3625682-2566741,"2,369.64",AKARI CARE LTD.
Adult and Health Services,Head of Adults,Third Party Payments 4THIRD,470101,Purchase of Care,06/08/2019,3625682-2566742,"2,369.64",AKARI CARE LTD.
Adult and Health Services,Head of Adults,Third Party Payments 4THIRD,474101,Purchase of Care,06/08/2019,3625682-2566743,"1,233.12",AKARI CARE LTD.
Adult and Health Services,Head of Adults,Third Party Payments 4THIRD,471101,Purchase of Care,06/08/2019,3625682-2566745,"2,457.00",AKARI CARE LTD.
Adult and Health Services,Head of Adults,Third Party Payments 4THIRD,474101,Purchase of Care,06/08/2019,3625682-2566746,"1,233.12",AKARI CARE LTD.
Adult and Health Services,Head of Adults,Third Party Payments 4THIRD,471101,Purchase of Care,06/08/2019,3625682-2566748,"2,457.00",AKARI CARE LTD.
Adult and Health Services,Head of Adults,Third Party Payments 4THIRD,471101,Purchase of Care,06/08/2019,3625682-2566749,"2,457.00",AKARI CARE LTD.
Adult and Health Services,Head of Adults,Third Party Payments 4THIRD,471101,Purchase of Care,06/08/2019,3625682-2566750,"2,457.00",AKARI CARE LTD.
Adult and Health Services,Head of Adults,Third Party Payments 4THIRD,471101,Purchase of Care,06/08/2019,3625682-2566751,"2,457.00",AKARI CARE LTD.
Adult and Health Services,Head of Adults,Third Party Payments 4THIRD,471101,Purchase of Care,06/08/2019,3625682-2566752,"2,457.00",AKARI CARE LTD.
Adult and Health Services,Head of Adults,Third Party Payments 4THIRD,471101,Purchase of Care,06/08/2019,3625682-2566753,"2,457.00",AKARI CARE LTD.
Adult and Health Services,Head of Adults,Third Party Payments 4THIRD,471101,Purchase of Care,06/08/2019,3625682-2566754,"2,457.00",AKARI CARE LTD.
Adult and Health Services,Head of Adults,Third Party Payments 4THIRD,471101,Purchase of Care,06/08/2019,3625682-2566755,"2,457.00",AKARI CARE LTD.
Adult and Health Services,Head of Adults,Third Party Payments 4THIRD,470101,Purchase of Care,06/08/2019,3625682-2566756,"2,369.64",AKARI CARE LTD.
Adult and Health Services,Head of Adults,Third Party Payments 4THIRD,470101,Purchase of Care,06/08/2019,3625682-2566757,"2,369.64",AKARI CARE LTD.
Adult and Health Services,Head of Adults,Third Party Payments 4THIRD,470101,Purchase of Care,06/08/2019,3625682-2566758,"2,369.64",AKARI CARE LTD.
Adult and Health Services,Head of Adults,Third Party Payments 4THIRD,471101,Purchase of Care,06/08/2019,3625682-2566759,"2,457.00",AKARI CARE LTD.
Adult and Health Services,Head of Adults,Third Party Payments 4THIRD,470101,Purchase of Care,06/08/2019,3625682-2568180,"1,689.64",AKARI CARE LTD.
Adult and Health Services,Head of Adults,Third Party Payments 4THIRD,471101,Purchase of Care,06/08/2019,3625682-2568229,"2,193.75",AKARI CARE LTD.
Adult and Health Services,Head of Adults,Third Party Payments 4THIRD,474101,Purchase of Care,06/08/2019,3625683-2565590,"2,399.20",AKARI CARE LTD.
Adult and Health Services,Head of Adults,Third Party Payments 4THIRD,474101,Purchase of Care,06/08/2019,3625683-2565591,"2,399.20",AKARI CARE LTD.
Adult and Health Services,Head of Adults,Third Party Payments 4THIRD,474101,Purchase of Care,06/08/2019,3625684-2567289,"2,527.92",AKARI CARE LTD.
Adult and Health Services,Head of Adults,Third Party Payments 4THIRD,470101,Purchase of Care,06/08/2019,3625685-2565254,"3,469.83",AKARI CARE LTD.
Adult and Health Services,Head of Adults,Third Party Payments 4THIRD,470101,Purchase of Care,06/08/2019,3625685-2565255,"2,369.64",AKARI CARE LTD.
Adult and Health Services,Head of Adults,Third Party Payments 4THIRD,470101,Purchase of Care,06/08/2019,3625685-2565256,"2,369.64",AKARI CARE LTD.
Adult and Health Services,Head of Adults,Third Party Payments 4THIRD,471101,Purchase of Care,06/08/2019,3625685-2565258,"2,457.00",AKARI CARE LTD.
Adult and Health Services,Head of Adults,Third Party Payments 4THIRD,471101,Purchase of Care,06/08/2019,3625685-2565259,"2,457.00",AKARI CARE LTD.
Adult and Health Services,Head of Adults,Third Party Payments 4THIRD,471101,Purchase of Care,06/08/2019,3625685-2565260,"2,457.00",AKARI CARE LTD.
Adult and Health Services,Head of Adults,Third Party Payments 4THIRD,471101,Purchase of Care,06/08/2019,3625685-2565261,"2,457.00",AKARI CARE LTD.
Adult and Health Services,Head of Adults,Third Party Payments 4THIRD,471101,Purchase of Care,06/08/2019,3625685-2565262,"2,457.00",AKARI CARE LTD.
Adult and Health Services,Head of Adults,Third Party Payments 4THIRD,470101,Purchase of Care,06/08/2019,3625685-2565263,"2,369.64",AKARI CARE LTD.
Adult and Health Services,Head of Adults,Third Party Payments 4THIRD,471101,Purchase of Care,06/08/2019,3625685-2565264,"2,457.00",AKARI CARE LTD.
Adult and Health Services,Head of Adults,Third Party Payments 4THIRD,470101,Purchase of Care,06/08/2019,3625685-2565265,"2,369.64",AKARI CARE LTD.
Adult and Health Services,Head of Adults,Third Party Payments 4THIRD,470101,Purchase of Care,06/08/2019,3625685-2565266,"6,431.88",AKARI CARE LTD.
Adult and Health Services,Head of Adults,Third Party Payments 4THIRD,470101,Purchase of Care,06/08/2019,3625685-2565267,"2,369.64",AKARI CARE LTD.
Adult and Health Services,Head of Adults,Third Party Payments 4THIRD,471101,Purchase of Care,06/08/2019,3625685-2565268,"2,457.00",AKARI CARE LTD.
Adult and Health Services,Head of Adults,Third Party Payments 4THIRD,470101,Purchase of Care,06/08/2019,3625685-2565269,"2,369.64",AKARI CARE LTD.
Adult and Health Services,Head of Adults,Third Party Payments 4THIRD,471101,Purchase of Care,06/08/2019,3625685-2565270,"2,457.00",AKARI CARE LTD.
Adult and Health Services,Head of Adults,Third Party Payments 4THIRD,470101,Purchase of Care,06/08/2019,3625685-2565271,761.67,AKARI CARE LTD.
Adult and Health Services,Head of Adults,Third Party Payments 4THIRD,471101,Purchase of Care,06/08/2019,3625685-2565272,"2,457.00",AKARI CARE LTD.
Adult and Health Services,Head of Adults,Third Party Payments 4THIRD,470101,Purchase of Care,06/08/2019,3625685-2565273,"2,369.64",AKARI CARE LTD.
Adult and Health Services,Head of Adults,Third Party Payments 4THIRD,471101,Purchase of Care,06/08/2019,3625685-2565274,"2,457.00",AKARI CARE LTD.
Adult and Health Services,Head of Adults,Third Party Payments 4THIRD,470101,Purchase of Care,06/08/2019,3625685-2565275,"2,369.64",AKARI CARE LTD.
Adult and Health Services,Head of Adults,Third Party Payments 4THIRD,470101,Purchase of Care,06/08/2019,3625685-2565276,"2,369.64",AKARI CARE LTD.
Adult and Health Services,Head of Adults,Third Party Payments 4THIRD,470101,Purchase of Care,06/08/2019,3625685-2565277,"2,369.64",AKARI CARE LTD.
Adult and Health Services,Head of Adults,Third Party Payments 4THIRD,470101,Purchase of Care,06/08/2019,3625685-2565278,"2,285.01",AKARI CARE LTD.
Adult and Health Services,Head of Adults,Third Party Payments 4THIRD,471101,Purchase of Care,06/08/2019,3625685-2565279,"2,457.00",AKARI CARE LTD.
Adult and Health Services,Head of Adults,Third Party Payments 4THIRD,470101,Purchase of Care,06/08/2019,3625685-2565280,"2,369.64",AKARI CARE LTD.
Adult and Health Services,Head of Adults,Third Party Payments 4THIRD,470101,Purchase of Care,06/08/2019,3625685-2565281,"2,369.64",AKARI CARE LTD.
Adult and Health Services,Head of Adults,Third Party Payments 4THIRD,470101,Purchase of Care,06/08/2019,3625685-2565282,"2,369.64",AKARI CARE LTD.
Adult and Health Services,Head of Adults,Third Party Payments 4THIRD,471101,Purchase of Care,06/08/2019,3625685-2565283,"2,457.00",AKARI CARE LTD.
Adult and Health Services,Head of Adults,Third Party Payments 4THIRD,470101,Purchase of Care,06/08/2019,3625685-2565284,"2,369.64",AKARI CARE LTD.
Adult and Health Services,Head of Adults,Third Party Payments 4THIRD,471101,Purchase of Care,06/08/2019,3625685-2565285,"2,457.00",AKARI CARE LTD.
Adult and Health Services,Head of Adults,Third Party Payments 4THIRD,471101,Purchase of Care,06/08/2019,3625685-2565286,"2,457.00",AKARI CARE LTD.
Adult and Health Services,Head of Adults,Third Party Payments 4THIRD,471101,Purchase of Care,06/08/2019,3625685-2565287,"2,457.00",AKARI CARE LTD.
Adult and Health Services,Head of Adults,Third Party Payments 4THIRD,471101,Purchase of Care,06/08/2019,3625685-2565288,"2,457.00",AKARI CARE LTD.
Adult and Health Services,Head of Adults,Third Party Payments 4THIRD,470101,Purchase of Care,06/08/2019,3625685-2565289,"2,369.64",AKARI CARE LTD.
Adult and Health Services,Head of Adults,Third Party Payments 4THIRD,470101,Purchase of Care,06/08/2019,3625685-2565290,"2,369.64",AKARI CARE LTD.
Adult and Health Services,Head of Adults,Third Party Payments 4THIRD,470101,Purchase of Care,06/08/2019,3625685-2565291,"2,369.64",AKARI CARE LTD.
Adult and Health Services,Head of Adults,Third Party Payments 4THIRD,470101,Purchase of Care,06/08/2019,3625685-2565292,"2,369.64",AKARI CARE LTD.
Adult and Health Services,Head of Adults,Third Party Payments 4THIRD,470101,Purchase of Care,06/08/2019,3625685-2565293,"1,139.48",AKARI CARE LTD.
Adult and Health Services,Head of Adults,Third Party Payments 4THIRD,470101,Purchase of Care,06/08/2019,3625685-2565294,"2,369.64",AKARI CARE LTD.
Adult and Health Services,Head of Adults,Third Party Payments 4THIRD,470101,Purchase of Care,06/08/2019,3625685-2565295,"2,369.64",AKARI CARE LTD.
Adult and Health Services,Head of Adults,Third Party Payments 4THIRD,474101,Purchase of Care,06/08/2019,3625686-2565556,"1,082.00",AKARI CARE LTD.
Adult and Health Services,Head of Adults,Third Party Payments 4THIRD,474101,Purchase of Care,06/08/2019,3625686-2565557,840.00,AKARI CARE LTD.
Adult and Health Services,Head of Adults,Third Party Payments 4THIRD,474101,Purchase of Care,06/08/2019,3625686-2565559,"1,082.00",AKARI CARE LTD.
Adult and Health Services,Head of Adults,Third Party Payments 4THIRD,474101,Purchase of Care,06/08/2019,3625686-2565560,"1,500.00",AKARI CARE LTD.
Adult and Health Services,Head of Adults,Third Party Payments 4THIRD,470101,Purchase of Care,06/08/2019,3625686-2565561,"1,052.00",AKARI CARE LTD.
Adult and Health Services,Head of Adults,Third Party Payments 4THIRD,470101,Purchase of Care,06/08/2019,3625687-2565241,"1,886.12",ALBANY CARE HOMES LTD.
Adult and Health Services,Head of Adults,Third Party Payments 4THIRD,470101,Purchase of Care,06/08/2019,3625687-2565242,683.76,ALBANY CARE HOMES LTD.
Adult and Health Services,Head of Adults,Third Party Payments 4THIRD,474101,Purchase of Care,06/08/2019,3625688-2567519,"3,152.00",ALDBOURNE NURSING HOME LTD.
Adult and Health Services,Head of Adults,Third Party Payments 4THIRD,470101,Purchase of Care,06/08/2019,3625692-2565128,"2,657.20",ALLIANCE CARE (TRENDLEWOOD) LTD.
Adult and Health Services,Head of Adults,Third Party Payments 4THIRD,470101,Purchase of Care,06/08/2019,3625692-2565129,"2,369.64",ALLIANCE CARE (TRENDLEWOOD) LTD.
Adult and Health Services,Head of Adults,Third Party Payments 4THIRD,474101,Purchase of Care,06/08/2019,3625692-2565130,"2,466.24",ALLIANCE CARE (TRENDLEWOOD) LTD.
Adult and Health Services,Head of Adults,Third Party Payments 4THIRD,470101,Purchase of Care,06/08/2019,3625692-2565133,846.30,ALLIANCE CARE (TRENDLEWOOD) LTD.
Adult and Health Services,Head of Adults,Third Party Payments 4THIRD,470101,Purchase of Care,06/08/2019,3625692-2565135,"2,369.64",ALLIANCE CARE (TRENDLEWOOD) LTD.
Adult and Health Services,Head of Adults,Third Party Payments 4THIRD,470101,Purchase of Care,06/08/2019,3625692-2565136,"2,369.64",ALLIANCE CARE (TRENDLEWOOD) LTD.
Adult and Health Services,Head of Adults,Third Party Payments 4THIRD,470101,Purchase of Care,06/08/2019,3625692-2565140,"2,369.64",ALLIANCE CARE (TRENDLEWOOD) LTD.
Adult and Health Services,Head of Adults,Third Party Payments 4THIRD,474101,Purchase of Care,06/08/2019,3625692-2565143,"2,466.24",ALLIANCE CARE (TRENDLEWOOD) LTD.
Adult and Health Services,Head of Adults,Third Party Payments 4THIRD,470101,Purchase of Care,06/08/2019,3625692-2565146,"2,369.64",ALLIANCE CARE (TRENDLEWOOD) LTD.
Adult and Health Services,Head of Adults,Third Party Payments 4THIRD,470101,Purchase of Care,06/08/2019,3625692-2565150,"2,369.64",ALLIANCE CARE (TRENDLEWOOD) LTD.
Adult and Health Services,Head of Adults,Third Party Payments 4THIRD,470101,Purchase of Care,06/08/2019,3625692-2565151,"2,369.64",ALLIANCE CARE (TRENDLEWOOD) LTD.
Adult and Health Services,Head of Adults,Third Party Payments 4THIRD,470101,Purchase of Care,06/08/2019,3625692-2565152,"2,369.64",ALLIANCE CARE (TRENDLEWOOD) LTD.
Adult and Health Services,Head of Adults,Third Party Payments 4THIRD,470101,Purchase of Care,06/08/2019,3625692-2565154,"2,369.64",ALLIANCE CARE (TRENDLEWOOD) LTD.
Adult and Health Services,Head of Adults,Third Party Payments 4THIRD,470101,Purchase of Care,06/08/2019,3625692-2565155,"2,369.64",ALLIANCE CARE (TRENDLEWOOD) LTD.
Adult and Health Services,Head of Adults,Third Party Payments 4THIRD,470101,Purchase of Care,06/08/2019,3625692-2565156,"2,369.64",ALLIANCE CARE (TRENDLEWOOD) LTD.
Adult and Health Services,Head of Adults,Third Party Payments 4THIRD,470101,Purchase of Care,06/08/2019,3625692-2565157,"2,369.64",ALLIANCE CARE (TRENDLEWOOD) LTD.
Adult and Health Services,Head of Adults,Third Party Payments 4THIRD,474101,Purchase of Care,06/08/2019,3625692-2565158,"2,466.24",ALLIANCE CARE (TRENDLEWOOD) LTD.
Adult and Health Services,Head of Adults,Third Party Payments 4THIRD,474101,Purchase of Care,06/08/2019,3625692-2565160,"2,466.24",ALLIANCE CARE (TRENDLEWOOD) LTD.
Adult and Health Services,Head of Adults,Third Party Payments 4THIRD,470101,Purchase of Care,06/08/2019,3625692-2565162,"1,184.84",ALLIANCE CARE (TRENDLEWOOD) LTD.
Adult and Health Services,Head of Adults,Third Party Payments 4THIRD,471101,Purchase of Care,06/08/2019,3625692-2565163,"2,457.00",ALLIANCE CARE (TRENDLEWOOD) LTD.
Adult and Health Services,Head of Adults,Third Party Payments 4THIRD,474101,Purchase of Care,06/08/2019,3625692-2565164,"2,466.24",ALLIANCE CARE (TRENDLEWOOD) LTD.
Adult and Health Services,Head of Adults,Third Party Payments 4THIRD,471101,Purchase of Care,06/08/2019,3625692-2565166,"2,457.00",ALLIANCE CARE (TRENDLEWOOD) LTD.
Adult and Health Services,Head of Adults,Third Party Payments 4THIRD,470101,Purchase of Care,06/08/2019,3625692-2565168,"2,369.64",ALLIANCE CARE (TRENDLEWOOD) LTD.
Adult and Health Services,Head of Adults,Third Party Payments 4THIRD,474101,Purchase of Care,06/08/2019,3625692-2565169,"2,466.24",ALLIANCE CARE (TRENDLEWOOD) LTD.
Adult and Health Services,Head of Adults,Third Party Payments 4THIRD,471101,Purchase of Care,06/08/2019,3625692-2565171,"2,457.00",ALLIANCE CARE (TRENDLEWOOD) LTD.
Adult and Health Services,Head of Adults,Third Party Payments 4THIRD,470101,Purchase of Care,06/08/2019,3625692-2565172,"2,657.20",ALLIANCE CARE (TRENDLEWOOD) LTD.
Adult and Health Services,Head of Adults,Third Party Payments 4THIRD,470101,Purchase of Care,06/08/2019,3625692-2567965,"1,269.45",ALLIANCE CARE (TRENDLEWOOD) LTD.
Adult and Health Services,Head of Adults,Third Party Payments 4THIRD,470101,Purchase of Care,06/08/2019,3625692-2568122,"1,523.34",ALLIANCE CARE (TRENDLEWOOD) LTD.
Adult and Health Services,Head of Adults,Third Party Payments 4THIRD,470101,Purchase of Care,06/08/2019,3625693-2566497,"2,320.00",ANCHOR CAREHOMES LTD.
Adult and Health Services,Head of Adults,Third Party Payments 4THIRD,470101,Purchase of Care,06/08/2019,3625693-2566498,"2,320.00",ANCHOR CAREHOMES LTD.
Adult and Health Services,Head of Adults,Third Party Payments 4THIRD,470101,Purchase of Care,06/08/2019,3625693-2566500,"1,160.00",ANCHOR CAREHOMES LTD.
Adult and Health Services,Head of Adults,Third Party Payments 4THIRD,470101,Purchase of Care,06/08/2019,3625695-2564656,"2,188.00",ANCHOR TRUST.
Adult and Health Services,Head of Adults,Third Party Payments 4THIRD,470101,Purchase of Care,06/08/2019,3625695-2564657,"2,188.00",ANCHOR TRUST.
Adult and Health Services,Head of Adults,Third Party Payments 4THIRD,470101,Purchase of Care,06/08/2019,3625695-2564658,"2,188.00",ANCHOR TRUST.
Adult and Health Services,Head of Adults,Third Party Payments 4THIRD,471101,Purchase of Care,06/08/2019,3625696-2564906,"2,019.76",ANDREW PASS.
Adult and Health Services,Commissioning inc Supporting People,Premises,145050,Cleaning and Domestic Supplies,06/08/2019,3625504-72676,"7,892.28",ANLABY OFFICE CLEANING SERVICES LTD.
Adult and Health Services,Head of Adults,Third Party Payments 4THIRD,474101,Purchase of Care,06/08/2019,3625697-2566205,"2,296.00",ARMSTRONG HOUSE.
Adult and Health Services,Head of Adults,Third Party Payments 4THIRD,470101,Purchase of Care,06/08/2019,3625699-2564207,"2,369.64",ASCOT CARE NORTH EAST LTD..
Adult and Health Services,Head of Adults,Third Party Payments 4THIRD,470101,Purchase of Care,06/08/2019,3625699-2564208,"2,369.64",ASCOT CARE NORTH EAST LTD..
Adult and Health Services,Head of Adults,Third Party Payments 4THIRD,470101,Purchase of Care,06/08/2019,3625699-2564210,"2,369.64",ASCOT CARE NORTH EAST LTD..
Adult and Health Services,Head of Adults,Third Party Payments 4THIRD,471101,Purchase of Care,06/08/2019,3625699-2564211,"1,228.52",ASCOT CARE NORTH EAST LTD..
Adult and Health Services,Head of Adults,Third Party Payments 4THIRD,471101,Purchase of Care,06/08/2019,3625699-2564212,831.54,ASCOT CARE NORTH EAST LTD..
Adult and Health Services,Head of Adults,Third Party Payments 4THIRD,470101,Purchase of Care,06/08/2019,3625699-2564213,"1,800.24",ASCOT CARE NORTH EAST LTD..
Adult and Health Services,Head of Adults,Third Party Payments 4THIRD,470101,Purchase of Care,06/08/2019,3625699-2564214,"1,884.28",ASCOT CARE NORTH EAST LTD..
Adult and Health Services,Head of Adults,Third Party Payments 4THIRD,471101,Purchase of Care,06/08/2019,3625699-2564215,959.46,ASCOT CARE NORTH EAST LTD..
Adult and Health Services,Head of Adults,Third Party Payments 4THIRD,470101,Purchase of Care,06/08/2019,3625699-2564216,"1,184.84",ASCOT CARE NORTH EAST LTD..
Adult and Health Services,Head of Adults,Third Party Payments 4THIRD,471101,Purchase of Care,06/08/2019,3625699-2564217,"2,457.00",ASCOT CARE NORTH EAST LTD..
Adult and Health Services,Head of Adults,Third Party Payments 4THIRD,471101,Purchase of Care,06/08/2019,3625699-2564218,"1,739.04",ASCOT CARE NORTH EAST LTD..
Adult and Health Services,Head of Adults,Third Party Payments 4THIRD,470101,Purchase of Care,06/08/2019,3625699-2564219,"1,472.00",ASCOT CARE NORTH EAST LTD..
Adult and Health Services,Head of Adults,Third Party Payments 4THIRD,470101,Purchase of Care,06/08/2019,3625699-2564220,"2,369.64",ASCOT CARE NORTH EAST LTD..
Adult and Health Services,Head of Adults,Third Party Payments 4THIRD,470101,Purchase of Care,06/08/2019,3625699-2564221,"2,369.64",ASCOT CARE NORTH EAST LTD..
Adult and Health Services,Head of Adults,Third Party Payments 4THIRD,470101,Purchase of Care,06/08/2019,3625699-2564222,"1,361.76",ASCOT CARE NORTH EAST LTD..
Adult and Health Services,Head of Adults,Third Party Payments 4THIRD,470101,Purchase of Care,06/08/2019,3625699-2564223,"1,489.76",ASCOT CARE NORTH EAST LTD..
Adult and Health Services,Head of Adults,Third Party Payments 4THIRD,470101,Purchase of Care,06/08/2019,3625699-2564224,"2,369.64",ASCOT CARE NORTH EAST LTD..
Adult and Health Services,Head of Adults,Third Party Payments 4THIRD,470101,Purchase of Care,06/08/2019,3625699-2564225,"1,800.24",ASCOT CARE NORTH EAST LTD..
Adult and Health Services,Head of Adults,Third Party Payments 4THIRD,470101,Purchase of Care,06/08/2019,3625699-2564226,"1,780.88",ASCOT CARE NORTH EAST LTD..
Adult and Health Services,Head of Adults,Third Party Payments 4THIRD,470101,Purchase of Care,06/08/2019,3625699-2564227,"1,774.28",ASCOT CARE NORTH EAST LTD..
Adult and Health Services,Head of Adults,Third Party Payments 4THIRD,471101,Purchase of Care,06/08/2019,3625699-2564228,"1,360.28",ASCOT CARE NORTH EAST LTD..
Adult and Health Services,Head of Adults,Third Party Payments 4THIRD,470101,Purchase of Care,06/08/2019,3625699-2564229,"1,800.24",ASCOT CARE NORTH EAST LTD..
Adult and Health Services,Head of Adults,Third Party Payments 4THIRD,470101,Purchase of Care,06/08/2019,3625699-2564230,"1,800.24",ASCOT CARE NORTH EAST LTD..
Adult and Health Services,Head of Adults,Third Party Payments 4THIRD,470101,Purchase of Care,06/08/2019,3625699-2564231,"2,369.64",ASCOT CARE NORTH EAST LTD..
Adult and Health Services,Head of Adults,Third Party Payments 4THIRD,471101,Purchase of Care,06/08/2019,3625699-2564232,"1,082.12",ASCOT CARE NORTH EAST LTD..
Adult and Health Services,Head of Adults,Third Party Payments 4THIRD,470101,Purchase of Care,06/08/2019,3625699-2564233,"1,494.04",ASCOT CARE NORTH EAST LTD..
Adult and Health Services,Head of Adults,Third Party Payments 4THIRD,470101,Purchase of Care,06/08/2019,3625699-2567775,"1,269.45",ASCOT CARE NORTH EAST LTD..
Adult and Health Services,Head of Adults,Third Party Payments 4THIRD,470101,Purchase of Care,06/08/2019,3625699-2567776,728.37,ASCOT CARE NORTH EAST LTD..
Adult and Health Services,Head of Adults,Third Party Payments 4THIRD,471101,Purchase of Care,06/08/2019,3625700-2567840,"2,920.37",ASHBOURNE LODGE CARE HOME.
Adult and Health Services,Head of Adults,Third Party Payments 4THIRD,470101,Purchase of Care,06/08/2019,3625701-2567652,"1,140.00",ASPIRE CARE GROUP T/A GRASMERE LODGE.
Adult and Health Services,Head of Adults,Third Party Payments 4THIRD,470101,Purchase of Care,06/08/2019,3625702-2564848,"2,043.92",ASPIRE CARE GROUP.
Adult and Health Services,Head of Adults,Third Party Payments 4THIRD,470101,Purchase of Care,06/08/2019,3625702-2564849,"2,043.92",ASPIRE CARE GROUP.
Adult and Health Services,Head of Adults,Third Party Payments 4THIRD,470101,Purchase of Care,06/08/2019,3625703-2567090,"1,021.96",ASPIRE CARE GROUP.
Adult and Health Services,Head of Adults,Third Party Payments 4THIRD,470101,Purchase of Care,06/08/2019,3625703-2567091,"2,043.92",ASPIRE CARE GROUP.
Adult and Health Services,Head of Adults,Third Party Payments 4THIRD,470101,Purchase of Care,06/08/2019,3625703-2567092,"2,043.92",ASPIRE CARE GROUP.
Adult and Health Services,Head of Adults,Third Party Payments 4THIRD,470101,Purchase of Care,06/08/2019,3625703-2567093,"1,629.72",ASPIRE CARE GROUP.
Adult and Health Services,Head of Adults,Third Party Payments 4THIRD,470101,Purchase of Care,06/08/2019,3625703-2567094,"1,344.28",ASPIRE CARE GROUP.
Adult and Health Services,Head of Adults,Third Party Payments 4THIRD,470101,Purchase of Care,06/08/2019,3625703-2567095,"1,471.28",ASPIRE CARE GROUP.
Adult and Health Services,Head of Adults,Third Party Payments 4THIRD,470101,Purchase of Care,06/08/2019,3625704-2566197,"1,734.00",ASPIRE CARE GROUP.
Adult and Health Services,Head of Adults,Third Party Payments 4THIRD,470101,Purchase of Care,06/08/2019,3625704-2566198,687.52,ASPIRE CARE GROUP.
Adult and Health Services,Head of Adults,Third Party Payments 4THIRD,470101,Purchase of Care,06/08/2019,3625704-2566199,"1,820.72",ASPIRE CARE GROUP.
Adult and Health Services,Head of Adults,Third Party Payments 4THIRD,470101,Purchase of Care,06/08/2019,3625704-2566200,"2,695.00",ASPIRE CARE GROUP.
Adult and Health Services,Head of Adults,Third Party Payments 4THIRD,470101,Purchase of Care,06/08/2019,3625704-2566201,"3,641.40",ASPIRE CARE GROUP.
Adult and Health Services,Head of Adults,Third Party Payments 4THIRD,470101,Purchase of Care,06/08/2019,3625704-2566202,"1,820.72",ASPIRE CARE GROUP.
Adult and Health Services,Head of Adults,Third Party Payments 4THIRD,470101,Purchase of Care,06/08/2019,3625704-2566203,668.64,ASPIRE CARE GROUP.
Adult and Health Services,Head of Adults,Third Party Payments 4THIRD,470101,Purchase of Care,06/08/2019,3625704-2566204,"2,043.92",ASPIRE CARE GROUP.
Adult and Health Services,Head of Adults,Third Party Payments 4THIRD,474101,Purchase of Care,06/08/2019,3625705-2567615,"2,400.00",ASTORIA HEALTHCARE LTD.
Adult and Health Services,Head of Adults,Third Party Payments 4THIRD,474101,Purchase of Care,06/08/2019,3625706-2567033,"2,476.00",ATLAS CARE HOMES LTD.
Adult and Health Services,Head of Adults,Third Party Payments 4THIRD,474101,Purchase of Care,06/08/2019,3625706-2567034,"1,288.00",ATLAS CARE HOMES LTD.
Adult and Health Services,Head of Adults,Third Party Payments 4THIRD,470101,Purchase of Care,06/08/2019,3625707-2565673,"2,240.00",ATLAS CARE HOMES LTD.
Adult and Health Services,Head of Adults,Third Party Payments 4THIRD,470101,Purchase of Care,06/08/2019,3625709-2566488,"2,043.92",AUTISM CARE UK (4) LTD.
Adult and Health Services,Head of Adults,Third Party Payments 4THIRD,470101,Purchase of Care,06/08/2019,3625709-2566489,"5,069.40",AUTISM CARE UK (4) LTD.
Adult and Health Services,Head of Adults,Third Party Payments 4THIRD,470101,Purchase of Care,06/08/2019,3625709-2566490,"2,043.92",AUTISM CARE UK (4) LTD.
Adult and Health Services,Head of Adults,Third Party Payments 4THIRD,470101,Purchase of Care,06/08/2019,3625709-2566491,"9,047.44",AUTISM CARE UK (4) LTD.
Adult and Health Services,Head of Adults,Third Party Payments 4THIRD,470101,Purchase of Care,06/08/2019,3625709-2566492,"4,416.28",AUTISM CARE UK (4) LTD.
Adult and Health Services,Head of Adults,Third Party Payments 4THIRD,470101,Purchase of Care,06/08/2019,3625709-2566493,"1,742.44",AUTISM CARE UK (4) LTD.
Adult and Health Services,Head of Adults,Third Party Payments 4THIRD,470101,Purchase of Care,06/08/2019,3625709-2566494,568.96,AUTISM CARE UK (4) LTD.
Adult and Health Services,Head of Adults,Third Party Payments 4THIRD,470101,Purchase of Care,06/08/2019,3625709-2566495,"3,153.04",AUTISM CARE UK (4) LTD.
Adult and Health Services,Head of Adults,Third Party Payments 4THIRD,474101,Purchase of Care,06/08/2019,3625710-2568231,"1,230.80",BARCHESTER HEALTHCARE HOMES LTD.
Adult and Health Services,Head of Adults,Third Party Payments 4THIRD,471101,Purchase of Care,06/08/2019,3625711-2567283,"1,284.00",BARCHESTER HEALTHCARE HOMES LTD.
Adult and Health Services,Head of Adults,Third Party Payments 4THIRD,470101,Purchase of Care,06/08/2019,3625712-2565820,"2,720.00",BARCHESTER HEALTHCARE HOMES LTD.
Adult and Health Services,Head of Adults,Third Party Payments 4THIRD,470101,Purchase of Care,06/08/2019,3625712-2565821,"2,700.00",BARCHESTER HEALTHCARE HOMES LTD.
Adult and Health Services,Head of Adults,Third Party Payments 4THIRD,470101,Purchase of Care,06/08/2019,3625712-2565822,"2,284.80",BARCHESTER HEALTHCARE HOMES LTD.
Adult and Health Services,Head of Adults,Third Party Payments 4THIRD,470101,Purchase of Care,06/08/2019,3625712-2565823,"2,700.00",BARCHESTER HEALTHCARE HOMES LTD.
Adult and Health Services,Head of Adults,Third Party Payments 4THIRD,470101,Purchase of Care,06/08/2019,3625712-2565824,"2,800.00",BARCHESTER HEALTHCARE HOMES LTD.
Adult and Health Services,Head of Adults,Third Party Payments 4THIRD,470101,Purchase of Care,06/08/2019,3625712-2565825,"2,700.00",BARCHESTER HEALTHCARE HOMES LTD.
Adult and Health Services,Head of Adults,Third Party Payments 4THIRD,474101,Purchase of Care,06/08/2019,3625712-2565826,"2,700.00",BARCHESTER HEALTHCARE HOMES LTD.
Adult and Health Services,Head of Adults,Third Party Payments 4THIRD,474101,Purchase of Care,06/08/2019,3625712-2565827,"2,700.00",BARCHESTER HEALTHCARE HOMES LTD.
Adult and Health Services,Head of Adults,Third Party Payments 4THIRD,474101,Purchase of Care,06/08/2019,3625712-2565828,"5,023.28",BARCHESTER HEALTHCARE HOMES LTD.
Adult and Health Services,Head of Adults,Third Party Payments 4THIRD,474101,Purchase of Care,06/08/2019,3625712-2565829,544.04,BARCHESTER HEALTHCARE HOMES LTD.
Adult and Health Services,Head of Adults,Third Party Payments 4THIRD,470101,Purchase of Care,06/08/2019,3625712-2565830,"2,700.00",BARCHESTER HEALTHCARE HOMES LTD.
Adult and Health Services,Head of Adults,Third Party Payments 4THIRD,470101,Purchase of Care,06/08/2019,3625712-2565831,"2,700.00",BARCHESTER HEALTHCARE HOMES LTD.
Adult and Health Services,Head of Adults,Third Party Payments 4THIRD,470101,Purchase of Care,06/08/2019,3625712-2565832,"2,700.00",BARCHESTER HEALTHCARE HOMES LTD.
Adult and Health Services,Head of Adults,Third Party Payments 4THIRD,474101,Purchase of Care,06/08/2019,3625712-2565833,"1,980.00",BARCHESTER HEALTHCARE HOMES LTD.
Adult and Health Services,Head of Adults,Third Party Payments 4THIRD,474101,Purchase of Care,06/08/2019,3625712-2565834,"1,204.52",BARCHESTER HEALTHCARE HOMES LTD.
Adult and Health Services,Head of Adults,Third Party Payments 4THIRD,474101,Purchase of Care,06/08/2019,3625712-2565835,"6,964.00",BARCHESTER HEALTHCARE HOMES LTD.
Adult and Health Services,Head of Adults,Third Party Payments 4THIRD,470101,Purchase of Care,06/08/2019,3625712-2568144,"10,125.00",BARCHESTER HEALTHCARE HOMES LTD.
Adult and Health Services,Head of Adults,Third Party Payments 4THIRD,470101,Purchase of Care,06/08/2019,3625713-2565569,"2,044.00",BARCHESTER HEALTHCARE HOMES LTD.
Adult and Health Services,Head of Adults,Third Party Payments 4THIRD,474101,Purchase of Care,06/08/2019,3625714-2567288,"2,580.00",BARCHESTER HEALTHCARE HOMES LTD.
Adult and Health Services,Head of Adults,Third Party Payments 4THIRD,471101,Purchase of Care,06/08/2019,3625715-2565666,"2,308.00",BARCHESTER HEALTHCARE HOMES LTD.
Adult and Health Services,Head of Adults,Third Party Payments 4THIRD,471101,Purchase of Care,06/08/2019,3625715-2565667,"2,308.00",BARCHESTER HEALTHCARE HOMES LTD.
Adult and Health Services,Head of Adults,Third Party Payments 4THIRD,470101,Purchase of Care,06/08/2019,3625715-2565668,"2,232.00",BARCHESTER HEALTHCARE HOMES LTD.
Adult and Health Services,Head of Adults,Third Party Payments 4THIRD,470101,Purchase of Care,06/08/2019,3625715-2565669,"2,232.00",BARCHESTER HEALTHCARE HOMES LTD.
Adult and Health Services,Head of Adults,Third Party Payments 4THIRD,470101,Purchase of Care,06/08/2019,3625715-2565670,"2,232.00",BARCHESTER HEALTHCARE HOMES LTD.
Adult and Health Services,Head of Adults,Third Party Payments 4THIRD,470101,Purchase of Care,06/08/2019,3625715-2565671,"2,232.00",BARCHESTER HEALTHCARE HOMES LTD.
Adult and Health Services,Head of Adults,Third Party Payments 4THIRD,471101,Purchase of Care,06/08/2019,3625715-2565672,"2,308.00",BARCHESTER HEALTHCARE HOMES LTD.
Adult and Health Services,Head of Adults,Third Party Payments 4THIRD,474101,Purchase of Care,06/08/2019,3625716-2559873,"2,340.24",BARCHESTER HEALTHCARE HOMES LTD.
Adult and Health Services,Head of Adults,Third Party Payments 4THIRD,474101,Purchase of Care,06/08/2019,3625716-2559875,"1,170.12",BARCHESTER HEALTHCARE HOMES LTD.
Adult and Health Services,Head of Adults,Third Party Payments 4THIRD,474101,Purchase of Care,06/08/2019,3625716-2559877,585.06,BARCHESTER HEALTHCARE HOMES LTD.
Adult and Health Services,Head of Adults,Third Party Payments 4THIRD,474101,Purchase of Care,06/08/2019,3625716-2559879,"2,340.24",BARCHESTER HEALTHCARE HOMES LTD.
Adult and Health Services,Head of Adults,Third Party Payments 4THIRD,474101,Purchase of Care,06/08/2019,3625716-2559881,"2,340.24",BARCHESTER HEALTHCARE HOMES LTD.
Adult and Health Services,Head of Adults,Third Party Payments 4THIRD,474101,Purchase of Care,06/08/2019,3625716-2559883,"1,755.18",BARCHESTER HEALTHCARE HOMES LTD.
Adult and Health Services,Head of Adults,Third Party Payments 4THIRD,474101,Purchase of Care,06/08/2019,3625716-2559885,"2,340.24",BARCHESTER HEALTHCARE HOMES LTD.
Adult and Health Services,Head of Adults,Third Party Payments 4THIRD,474101,Purchase of Care,06/08/2019,3625716-2559888,"2,340.24",BARCHESTER HEALTHCARE HOMES LTD.
Adult and Health Services,Head of Adults,Third Party Payments 4THIRD,474101,Purchase of Care,06/08/2019,3625716-2559890,"2,340.24",BARCHESTER HEALTHCARE HOMES LTD.
Adult and Health Services,Head of Adults,Third Party Payments 4THIRD,474101,Purchase of Care,06/08/2019,3625716-2559893,"2,340.24",BARCHESTER HEALTHCARE HOMES LTD.
Adult and Health Services,Head of Adults,Third Party Payments 4THIRD,474101,Purchase of Care,06/08/2019,3625716-2559896,"1,170.12",BARCHESTER HEALTHCARE HOMES LTD.
Adult and Health Services,Head of Adults,Third Party Payments 4THIRD,474101,Purchase of Care,06/08/2019,3625716-2559898,"1,170.12",BARCHESTER HEALTHCARE HOMES LTD.
Adult and Health Services,Head of Adults,Third Party Payments 4THIRD,474101,Purchase of Care,06/08/2019,3625716-2559900,"2,340.24",BARCHESTER HEALTHCARE HOMES LTD.
Adult and Health Services,Head of Adults,Third Party Payments 4THIRD,474101,Purchase of Care,06/08/2019,3625716-2559903,"2,552.20",BARCHESTER HEALTHCARE HOMES LTD.
Adult and Health Services,Head of Adults,Third Party Payments 4THIRD,474101,Purchase of Care,06/08/2019,3625716-2559906,"2,340.24",BARCHESTER HEALTHCARE HOMES LTD.
Adult and Health Services,Head of Adults,Third Party Payments 4THIRD,474101,Purchase of Care,06/08/2019,3625716-2559909,"2,340.24",BARCHESTER HEALTHCARE HOMES LTD.
Adult and Health Services,Head of Adults,Third Party Payments 4THIRD,474101,Purchase of Care,06/08/2019,3625716-2559912,"2,340.24",BARCHESTER HEALTHCARE HOMES LTD.
Adult and Health Services,Head of Adults,Third Party Payments 4THIRD,474101,Purchase of Care,06/08/2019,3625716-2564729,"1,170.12",BARCHESTER HEALTHCARE HOMES LTD.
Adult and Health Services,Head of Adults,Third Party Payments 4THIRD,474101,Purchase of Care,06/08/2019,3625716-2564731,"2,340.24",BARCHESTER HEALTHCARE HOMES LTD.
Adult and Health Services,Head of Adults,Third Party Payments 4THIRD,474101,Purchase of Care,06/08/2019,3625716-2564733,"2,340.24",BARCHESTER HEALTHCARE HOMES LTD.
Adult and Health Services,Head of Adults,Third Party Payments 4THIRD,474101,Purchase of Care,06/08/2019,3625716-2564735,"2,340.24",BARCHESTER HEALTHCARE HOMES LTD.
Adult and Health Services,Head of Adults,Third Party Payments 4THIRD,474101,Purchase of Care,06/08/2019,3625716-2564738,"2,340.24",BARCHESTER HEALTHCARE HOMES LTD.
Adult and Health Services,Head of Adults,Third Party Payments 4THIRD,474101,Purchase of Care,06/08/2019,3625716-2564740,"2,340.24",BARCHESTER HEALTHCARE HOMES LTD.
Adult and Health Services,Head of Adults,Third Party Payments 4THIRD,474101,Purchase of Care,06/08/2019,3625716-2564743,"2,340.24",BARCHESTER HEALTHCARE HOMES LTD.
Adult and Health Services,Head of Adults,Third Party Payments 4THIRD,474101,Purchase of Care,06/08/2019,3625716-2564746,"1,170.12",BARCHESTER HEALTHCARE HOMES LTD.
Adult and Health Services,Head of Adults,Third Party Payments 4THIRD,474101,Purchase of Care,06/08/2019,3625716-2564748,"1,170.12",BARCHESTER HEALTHCARE HOMES LTD.
Adult and Health Services,Head of Adults,Third Party Payments 4THIRD,474101,Purchase of Care,06/08/2019,3625716-2564750,"1,253.70",BARCHESTER HEALTHCARE HOMES LTD.
Adult and Health Services,Head of Adults,Third Party Payments 4THIRD,474101,Purchase of Care,06/08/2019,3625716-2564753,"2,552.20",BARCHESTER HEALTHCARE HOMES LTD.
Adult and Health Services,Head of Adults,Third Party Payments 4THIRD,474101,Purchase of Care,06/08/2019,3625716-2564756,"2,340.24",BARCHESTER HEALTHCARE HOMES LTD.
Adult and Health Services,Head of Adults,Third Party Payments 4THIRD,474101,Purchase of Care,06/08/2019,3625716-2564759,"2,340.24",BARCHESTER HEALTHCARE HOMES LTD.
Adult and Health Services,Head of Adults,Third Party Payments 4THIRD,474101,Purchase of Care,06/08/2019,3625716-2564762,"2,340.24",BARCHESTER HEALTHCARE HOMES LTD.
Adult and Health Services,Head of Adults,Third Party Payments 4THIRD,474101,Purchase of Care,06/08/2019,3625717-2566760,"2,296.00",BARCHESTER HEALTHCARE HOMES LTD.
Adult and Health Services,Head of Adults,Third Party Payments 4THIRD,471101,Purchase of Care,06/08/2019,3625720-2566568,"1,626.36",BEAMISH RESIDENTIAL CARE HOME LTD.
Adult and Health Services,Head of Adults,Third Party Payments 4THIRD,471101,Purchase of Care,06/08/2019,3625720-2566569,"1,761.88",BEAMISH RESIDENTIAL CARE HOME LTD.
Adult and Health Services,Head of Adults,Third Party Payments 4THIRD,470101,Purchase of Care,06/08/2019,3625720-2566570,"2,242.52",BEAMISH RESIDENTIAL CARE HOME LTD.
Adult and Health Services,Head of Adults,Third Party Payments 4THIRD,471101,Purchase of Care,06/08/2019,3625720-2566571,"1,556.00",BEAMISH RESIDENTIAL CARE HOME LTD.
Adult and Health Services,Head of Adults,Third Party Payments 4THIRD,470101,Purchase of Care,06/08/2019,3625720-2566572,"2,242.52",BEAMISH RESIDENTIAL CARE HOME LTD.
Adult and Health Services,Head of Adults,Third Party Payments 4THIRD,470101,Purchase of Care,06/08/2019,3625720-2566573,"2,242.52",BEAMISH RESIDENTIAL CARE HOME LTD.
Adult and Health Services,Head of Adults,Third Party Payments 4THIRD,471101,Purchase of Care,06/08/2019,3625720-2566574,"1,761.88",BEAMISH RESIDENTIAL CARE HOME LTD.
Adult and Health Services,Head of Adults,Third Party Payments 4THIRD,471101,Purchase of Care,06/08/2019,3625720-2566575,"2,331.28",BEAMISH RESIDENTIAL CARE HOME LTD.
Adult and Health Services,Head of Adults,Third Party Payments 4THIRD,470101,Purchase of Care,06/08/2019,3625720-2566576,"1,650.84",BEAMISH RESIDENTIAL CARE HOME LTD.
Adult and Health Services,Head of Adults,Third Party Payments 4THIRD,470101,Purchase of Care,06/08/2019,3625720-2566577,"1,121.24",BEAMISH RESIDENTIAL CARE HOME LTD.
Adult and Health Services,Head of Adults,Third Party Payments 4THIRD,470101,Purchase of Care,06/08/2019,3625720-2566578,"2,242.52",BEAMISH RESIDENTIAL CARE HOME LTD.
Adult and Health Services,Head of Adults,Third Party Payments 4THIRD,470101,Purchase of Care,06/08/2019,3625720-2566579,"2,242.52",BEAMISH RESIDENTIAL CARE HOME LTD.
Adult and Health Services,Head of Adults,Third Party Payments 4THIRD,470101,Purchase of Care,06/08/2019,3625720-2566580,"2,242.52",BEAMISH RESIDENTIAL CARE HOME LTD.
Adult and Health Services,Head of Adults,Third Party Payments 4THIRD,470101,Purchase of Care,06/08/2019,3625720-2566581,528.00,BEAMISH RESIDENTIAL CARE HOME LTD.
Adult and Health Services,Head of Adults,Third Party Payments 4THIRD,470101,Purchase of Care,06/08/2019,3625720-2566582,"2,242.52",BEAMISH RESIDENTIAL CARE HOME LTD.
Adult and Health Services,Head of Adults,Third Party Payments 4THIRD,470101,Purchase of Care,06/08/2019,3625721-2567655,"1,021.96",BENTON CARE SERVICES LTD.
Adult and Health Services,Head of Adults,Third Party Payments 4THIRD,470101,Purchase of Care,06/08/2019,3625721-2567656,"3,182.60",BENTON CARE SERVICES LTD.
Adult and Health Services,Head of Adults,Third Party Payments 4THIRD,470101,Purchase of Care,06/08/2019,3625721-2567657,"3,182.60",BENTON CARE SERVICES LTD.
Adult and Health Services,Head of Adults,Third Party Payments 4THIRD,470101,Purchase of Care,06/08/2019,3625721-2567658,"2,043.92",BENTON CARE SERVICES LTD.
Adult and Health Services,Head of Adults,Third Party Payments 4THIRD,470101,Purchase of Care,06/08/2019,3625721-2567659,"3,182.60",BENTON CARE SERVICES LTD.
Adult and Health Services,Head of Adults,Third Party Payments 4THIRD,470101,Purchase of Care,06/08/2019,3625721-2567660,"3,182.60",BENTON CARE SERVICES LTD.
Adult and Health Services,Head of Adults,Third Party Payments 4THIRD,470101,Purchase of Care,06/08/2019,3625721-2567661,"3,182.60",BENTON CARE SERVICES LTD.
Adult and Health Services,Head of Adults,Third Party Payments 4THIRD,470101,Purchase of Care,06/08/2019,3625721-2567662,"3,182.60",BENTON CARE SERVICES LTD.
Adult and Health Services,Head of Adults,Third Party Payments 4THIRD,470101,Purchase of Care,06/08/2019,3625724-2564926,"2,424.00",BONDCARE WILLINGTON LTD.
Adult and Health Services,Head of Adults,Third Party Payments 4THIRD,474101,Purchase of Care,06/08/2019,3625724-2564927,"1,233.12",BONDCARE WILLINGTON LTD.
Adult and Health Services,Head of Adults,Third Party Payments 4THIRD,470101,Purchase of Care,06/08/2019,3625724-2564929,"2,444.12",BONDCARE WILLINGTON LTD.
Adult and Health Services,Head of Adults,Third Party Payments 4THIRD,470101,Purchase of Care,06/08/2019,3625724-2564930,736.40,BONDCARE WILLINGTON LTD.
Adult and Health Services,Head of Adults,Third Party Payments 4THIRD,470101,Purchase of Care,06/08/2019,3625724-2564931,"5,150.11",BONDCARE WILLINGTON LTD.
Adult and Health Services,Head of Adults,Third Party Payments 4THIRD,474101,Purchase of Care,06/08/2019,3625724-2564932,"2,466.24",BONDCARE WILLINGTON LTD.
Adult and Health Services,Head of Adults,Third Party Payments 4THIRD,474101,Purchase of Care,06/08/2019,3625724-2564934,"1,233.12",BONDCARE WILLINGTON LTD.
Adult and Health Services,Head of Adults,Third Party Payments 4THIRD,474101,Purchase of Care,06/08/2019,3625724-2564935,"2,393.32",BONDCARE WILLINGTON LTD.
Adult and Health Services,Head of Adults,Third Party Payments 4THIRD,471101,Purchase of Care,06/08/2019,3625724-2564937,"2,457.00",BONDCARE WILLINGTON LTD.
Adult and Health Services,Head of Adults,Third Party Payments 4THIRD,471101,Purchase of Care,06/08/2019,3625724-2564938,"2,457.00",BONDCARE WILLINGTON LTD.
Adult and Health Services,Head of Adults,Third Party Payments 4THIRD,470101,Purchase of Care,06/08/2019,3625724-2564939,"2,444.12",BONDCARE WILLINGTON LTD.
Adult and Health Services,Head of Adults,Third Party Payments 4THIRD,470101,Purchase of Care,06/08/2019,3625724-2564940,"2,444.12",BONDCARE WILLINGTON LTD.
Adult and Health Services,Head of Adults,Third Party Payments 4THIRD,470101,Purchase of Care,06/08/2019,3625724-2564941,"2,444.12",BONDCARE WILLINGTON LTD.
Adult and Health Services,Head of Adults,Third Party Payments 4THIRD,470101,Purchase of Care,06/08/2019,3625724-2564942,526.00,BONDCARE WILLINGTON LTD.
Adult and Health Services,Head of Adults,Third Party Payments 4THIRD,470101,Purchase of Care,06/08/2019,3625724-2564943,"2,444.12",BONDCARE WILLINGTON LTD.
Adult and Health Services,Head of Adults,Third Party Payments 4THIRD,474101,Purchase of Care,06/08/2019,3625724-2564945,"1,233.12",BONDCARE WILLINGTON LTD.
Adult and Health Services,Head of Adults,Third Party Payments 4THIRD,470101,Purchase of Care,06/08/2019,3625724-2564947,"2,444.12",BONDCARE WILLINGTON LTD.
Adult and Health Services,Head of Adults,Third Party Payments 4THIRD,474101,Purchase of Care,06/08/2019,3625724-2564948,"1,233.12",BONDCARE WILLINGTON LTD.
Adult and Health Services,Head of Adults,Third Party Payments 4THIRD,474101,Purchase of Care,06/08/2019,3625724-2564949,"4,373.60",BONDCARE WILLINGTON LTD.
Adult and Health Services,Head of Adults,Third Party Payments 4THIRD,470101,Purchase of Care,06/08/2019,3625724-2564951,"2,444.12",BONDCARE WILLINGTON LTD.
Adult and Health Services,Head of Adults,Third Party Payments 4THIRD,474101,Purchase of Care,06/08/2019,3625724-2564952,"1,585.44",BONDCARE WILLINGTON LTD.
Adult and Health Services,Head of Adults,Third Party Payments 4THIRD,470101,Purchase of Care,06/08/2019,3625724-2564954,"2,424.00",BONDCARE WILLINGTON LTD.
Adult and Health Services,Head of Adults,Third Party Payments 4THIRD,474101,Purchase of Care,06/08/2019,3625724-2564955,"1,233.12",BONDCARE WILLINGTON LTD.
Adult and Health Services,Head of Adults,Third Party Payments 4THIRD,474101,Purchase of Care,06/08/2019,3625724-2564957,"1,233.12",BONDCARE WILLINGTON LTD.
Adult and Health Services,Head of Adults,Third Party Payments 4THIRD,474101,Purchase of Care,06/08/2019,3625724-2564959,"2,466.24",BONDCARE WILLINGTON LTD.
Adult and Health Services,Head of Adults,Third Party Payments 4THIRD,474101,Purchase of Care,06/08/2019,3625724-2564961,"2,466.24",BONDCARE WILLINGTON LTD.
Adult and Health Services,Head of Adults,Third Party Payments 4THIRD,471101,Purchase of Care,06/08/2019,3625724-2564963,"2,457.00",BONDCARE WILLINGTON LTD.
Adult and Health Services,Head of Adults,Third Party Payments 4THIRD,470101,Purchase of Care,06/08/2019,3625724-2564964,"2,444.12",BONDCARE WILLINGTON LTD.
Adult and Health Services,Head of Adults,Third Party Payments 4THIRD,474101,Purchase of Care,06/08/2019,3625724-2564965,"1,233.12",BONDCARE WILLINGTON LTD.
Adult and Health Services,Head of Adults,Third Party Payments 4THIRD,474101,Purchase of Care,06/08/2019,3625724-2564966,920.52,BONDCARE WILLINGTON LTD.
Adult and Health Services,Head of Adults,Third Party Payments 4THIRD,474101,Purchase of Care,06/08/2019,3625724-2564968,"2,466.24",BONDCARE WILLINGTON LTD.
Adult and Health Services,Head of Adults,Third Party Payments 4THIRD,470101,Purchase of Care,06/08/2019,3625724-2564970,"2,444.12",BONDCARE WILLINGTON LTD.
Adult and Health Services,Head of Adults,Third Party Payments 4THIRD,474101,Purchase of Care,06/08/2019,3625724-2564971,"1,233.12",BONDCARE WILLINGTON LTD.
Adult and Health Services,Head of Adults,Third Party Payments 4THIRD,470101,Purchase of Care,06/08/2019,3625724-2564974,"2,444.12",BONDCARE WILLINGTON LTD.
Adult and Health Services,Head of Adults,Third Party Payments 4THIRD,470101,Purchase of Care,06/08/2019,3625724-2564975,"1,222.08",BONDCARE WILLINGTON LTD.
Adult and Health Services,Head of Adults,Third Party Payments 4THIRD,470101,Purchase of Care,06/08/2019,3625724-2564976,552.32,BONDCARE WILLINGTON LTD.
Adult and Health Services,Head of Adults,Third Party Payments 4THIRD,474101,Purchase of Care,06/08/2019,3625724-2564977,"2,466.24",BONDCARE WILLINGTON LTD.
Adult and Health Services,Head of Adults,Third Party Payments 4THIRD,474101,Purchase of Care,06/08/2019,3625724-2564979,"2,466.24",BONDCARE WILLINGTON LTD.
Adult and Health Services,Head of Adults,Third Party Payments 4THIRD,470101,Purchase of Care,06/08/2019,3625724-2564981,"2,444.12",BONDCARE WILLINGTON LTD.
Adult and Health Services,Head of Adults,Third Party Payments 4THIRD,470101,Purchase of Care,06/08/2019,3625724-2564982,"2,444.12",BONDCARE WILLINGTON LTD.
Adult and Health Services,Head of Adults,Third Party Payments 4THIRD,470101,Purchase of Care,06/08/2019,3625724-2564983,736.40,BONDCARE WILLINGTON LTD.
Adult and Health Services,Head of Adults,Third Party Payments 4THIRD,470101,Purchase of Care,06/08/2019,3625724-2564984,"2,444.12",BONDCARE WILLINGTON LTD.
Adult and Health Services,Head of Adults,Third Party Payments 4THIRD,470101,Purchase of Care,06/08/2019,3625724-2564985,"2,444.12",BONDCARE WILLINGTON LTD.
Adult and Health Services,Head of Adults,Third Party Payments 4THIRD,474101,Purchase of Care,06/08/2019,3625724-2564986,"2,466.24",BONDCARE WILLINGTON LTD.
Adult and Health Services,Head of Adults,Third Party Payments 4THIRD,470101,Purchase of Care,06/08/2019,3625724-2564988,"2,444.12",BONDCARE WILLINGTON LTD.
Adult and Health Services,Head of Adults,Third Party Payments 4THIRD,470101,Purchase of Care,06/08/2019,3625724-2564989,"2,444.12",BONDCARE WILLINGTON LTD.
Adult and Health Services,Head of Adults,Third Party Payments 4THIRD,470101,Purchase of Care,06/08/2019,3625724-2564990,"1,222.08",BONDCARE WILLINGTON LTD.
Adult and Health Services,Head of Adults,Third Party Payments 4THIRD,474101,Purchase of Care,06/08/2019,3625724-2564991,"1,233.12",BONDCARE WILLINGTON LTD.
Adult and Health Services,Head of Adults,Third Party Payments 4THIRD,470101,Purchase of Care,06/08/2019,3625724-2567886,785.61,BONDCARE WILLINGTON LTD.
Adult and Health Services,Head of Adults,Third Party Payments 4THIRD,470101,Purchase of Care,06/08/2019,3625724-2568170,698.32,BONDCARE WILLINGTON LTD.
Adult and Health Services,Head of Adults,Third Party Payments 4THIRD,471101,Purchase of Care,06/08/2019,3625725-2565097,"2,457.00",BONDCARE WILLINGTON LTD.
Adult and Health Services,Head of Adults,Third Party Payments 4THIRD,471101,Purchase of Care,06/08/2019,3625725-2565098,"2,457.00",BONDCARE WILLINGTON LTD.
Adult and Health Services,Head of Adults,Third Party Payments 4THIRD,471101,Purchase of Care,06/08/2019,3625725-2565099,"2,457.00",BONDCARE WILLINGTON LTD.
Adult and Health Services,Head of Adults,Third Party Payments 4THIRD,471101,Purchase of Care,06/08/2019,3625725-2565100,"2,457.00",BONDCARE WILLINGTON LTD.
Adult and Health Services,Head of Adults,Third Party Payments 4THIRD,471101,Purchase of Care,06/08/2019,3625725-2565101,"2,457.00",BONDCARE WILLINGTON LTD.
Adult and Health Services,Head of Adults,Third Party Payments 4THIRD,471101,Purchase of Care,06/08/2019,3625725-2565102,"2,457.00",BONDCARE WILLINGTON LTD.
Adult and Health Services,Head of Adults,Third Party Payments 4THIRD,471101,Purchase of Care,06/08/2019,3625725-2565104,"2,457.00",BONDCARE WILLINGTON LTD.
Adult and Health Services,Head of Adults,Third Party Payments 4THIRD,471101,Purchase of Care,06/08/2019,3625725-2565105,"2,457.00",BONDCARE WILLINGTON LTD.
Adult and Health Services,Head of Adults,Third Party Payments 4THIRD,471101,Purchase of Care,06/08/2019,3625725-2565106,"1,228.52",BONDCARE WILLINGTON LTD.
Adult and Health Services,Head of Adults,Third Party Payments 4THIRD,470101,Purchase of Care,06/08/2019,3625725-2565107,"2,444.12",BONDCARE WILLINGTON LTD.
Adult and Health Services,Head of Adults,Third Party Payments 4THIRD,471101,Purchase of Care,06/08/2019,3625725-2565108,"2,457.00",BONDCARE WILLINGTON LTD.
Adult and Health Services,Head of Adults,Third Party Payments 4THIRD,471101,Purchase of Care,06/08/2019,3625725-2565109,"2,457.00",BONDCARE WILLINGTON LTD.
Adult and Health Services,Head of Adults,Third Party Payments 4THIRD,471101,Purchase of Care,06/08/2019,3625725-2565110,"2,457.00",BONDCARE WILLINGTON LTD.
Adult and Health Services,Head of Adults,Third Party Payments 4THIRD,471101,Purchase of Care,06/08/2019,3625725-2565111,"2,457.00",BONDCARE WILLINGTON LTD.
Adult and Health Services,Head of Adults,Third Party Payments 4THIRD,470101,Purchase of Care,06/08/2019,3625725-2565112,"2,444.12",BONDCARE WILLINGTON LTD.
Adult and Health Services,Head of Adults,Third Party Payments 4THIRD,471101,Purchase of Care,06/08/2019,3625725-2565113,"2,457.00",BONDCARE WILLINGTON LTD.
Adult and Health Services,Head of Adults,Third Party Payments 4THIRD,471101,Purchase of Care,06/08/2019,3625725-2565114,"1,228.52",BONDCARE WILLINGTON LTD.
Adult and Health Services,Head of Adults,Third Party Payments 4THIRD,470101,Purchase of Care,06/08/2019,3625725-2565115,"2,444.12",BONDCARE WILLINGTON LTD.
Adult and Health Services,Head of Adults,Third Party Payments 4THIRD,470101,Purchase of Care,06/08/2019,3625725-2565116,"2,444.12",BONDCARE WILLINGTON LTD.
Adult and Health Services,Head of Adults,Third Party Payments 4THIRD,471101,Purchase of Care,06/08/2019,3625725-2565118,"2,457.00",BONDCARE WILLINGTON LTD.
Adult and Health Services,Head of Adults,Third Party Payments 4THIRD,470101,Purchase of Care,06/08/2019,3625725-2565119,"2,444.12",BONDCARE WILLINGTON LTD.
Adult and Health Services,Head of Adults,Third Party Payments 4THIRD,471101,Purchase of Care,06/08/2019,3625725-2565120,"2,457.00",BONDCARE WILLINGTON LTD.
Adult and Health Services,Head of Adults,Third Party Payments 4THIRD,470101,Purchase of Care,06/08/2019,3625725-2565121,"2,444.12",BONDCARE WILLINGTON LTD.
Adult and Health Services,Head of Adults,Third Party Payments 4THIRD,471101,Purchase of Care,06/08/2019,3625725-2565122,"2,457.00",BONDCARE WILLINGTON LTD.
Adult and Health Services,Head of Adults,Third Party Payments 4THIRD,471101,Purchase of Care,06/08/2019,3625725-2565123,"2,457.00",BONDCARE WILLINGTON LTD.
Adult and Health Services,Head of Adults,Third Party Payments 4THIRD,471101,Purchase of Care,06/08/2019,3625725-2565124,"2,457.00",BONDCARE WILLINGTON LTD.
Adult and Health Services,Head of Adults,Third Party Payments 4THIRD,471101,Purchase of Care,06/08/2019,3625725-2565125,"2,457.00",BONDCARE WILLINGTON LTD.
Adult and Health Services,Head of Adults,Third Party Payments 4THIRD,471101,Purchase of Care,06/08/2019,3625725-2568226,"1,842.75",BONDCARE WILLINGTON LTD.
Adult and Health Services,Head of Adults,Third Party Payments 4THIRD,474101,Purchase of Care,06/08/2019,3625726-2563372,"2,029.36",BONDCARE WILLINGTON LTD.
Adult and Health Services,Head of Adults,Third Party Payments 4THIRD,470101,Purchase of Care,06/08/2019,3625726-2563374,"2,986.48",BONDCARE WILLINGTON LTD.
Adult and Health Services,Head of Adults,Third Party Payments 4THIRD,474101,Purchase of Care,06/08/2019,3625726-2563375,"2,466.24",BONDCARE WILLINGTON LTD.
Adult and Health Services,Head of Adults,Third Party Payments 4THIRD,470101,Purchase of Care,06/08/2019,3625726-2563378,846.31,BONDCARE WILLINGTON LTD.
Adult and Health Services,Head of Adults,Third Party Payments 4THIRD,470101,Purchase of Care,06/08/2019,3625726-2563379,"2,369.64",BONDCARE WILLINGTON LTD.
Adult and Health Services,Head of Adults,Third Party Payments 4THIRD,470101,Purchase of Care,06/08/2019,3625726-2563382,"2,369.64",BONDCARE WILLINGTON LTD.
Adult and Health Services,Head of Adults,Third Party Payments 4THIRD,470101,Purchase of Care,06/08/2019,3625726-2563383,"2,369.64",BONDCARE WILLINGTON LTD.
Adult and Health Services,Head of Adults,Third Party Payments 4THIRD,474101,Purchase of Care,06/08/2019,3625726-2563384,"3,023.32",BONDCARE WILLINGTON LTD.
Adult and Health Services,Head of Adults,Third Party Payments 4THIRD,470101,Purchase of Care,06/08/2019,3625726-2563386,"2,369.64",BONDCARE WILLINGTON LTD.
Adult and Health Services,Head of Adults,Third Party Payments 4THIRD,470101,Purchase of Care,06/08/2019,3625726-2563387,"2,444.12",BONDCARE WILLINGTON LTD.
Adult and Health Services,Head of Adults,Third Party Payments 4THIRD,470101,Purchase of Care,06/08/2019,3625726-2563388,"2,369.64",BONDCARE WILLINGTON LTD.
Adult and Health Services,Head of Adults,Third Party Payments 4THIRD,470101,Purchase of Care,06/08/2019,3625726-2563390,"2,369.64",BONDCARE WILLINGTON LTD.
Adult and Health Services,Head of Adults,Third Party Payments 4THIRD,470101,Purchase of Care,06/08/2019,3625726-2563391,"2,369.64",BONDCARE WILLINGTON LTD.
Adult and Health Services,Head of Adults,Third Party Payments 4THIRD,474101,Purchase of Care,06/08/2019,3625726-2563392,"2,466.24",BONDCARE WILLINGTON LTD.
Adult and Health Services,Head of Adults,Third Party Payments 4THIRD,474101,Purchase of Care,06/08/2019,3625726-2563394,"3,023.32",BONDCARE WILLINGTON LTD.
Adult and Health Services,Head of Adults,Third Party Payments 4THIRD,470101,Purchase of Care,06/08/2019,3625726-2563396,"2,986.48",BONDCARE WILLINGTON LTD.
Adult and Health Services,Head of Adults,Third Party Payments 4THIRD,470101,Purchase of Care,06/08/2019,3625726-2563397,"2,657.20",BONDCARE WILLINGTON LTD.
Adult and Health Services,Head of Adults,Third Party Payments 4THIRD,470101,Purchase of Care,06/08/2019,3625726-2563398,"2,986.48",BONDCARE WILLINGTON LTD.
Adult and Health Services,Head of Adults,Third Party Payments 4THIRD,470101,Purchase of Care,06/08/2019,3625726-2563399,"2,369.64",BONDCARE WILLINGTON LTD.
Adult and Health Services,Head of Adults,Third Party Payments 4THIRD,470101,Purchase of Care,06/08/2019,3625726-2563400,"2,444.12",BONDCARE WILLINGTON LTD.
Adult and Health Services,Head of Adults,Third Party Payments 4THIRD,474101,Purchase of Care,06/08/2019,3625726-2563401,"2,466.24",BONDCARE WILLINGTON LTD.
Adult and Health Services,Head of Adults,Third Party Payments 4THIRD,470101,Purchase of Care,06/08/2019,3625726-2563403,"2,369.64",BONDCARE WILLINGTON LTD.
Adult and Health Services,Head of Adults,Third Party Payments 4THIRD,474101,Purchase of Care,06/08/2019,3625726-2563405,"2,466.24",BONDCARE WILLINGTON LTD.
Adult and Health Services,Head of Adults,Third Party Payments 4THIRD,470101,Purchase of Care,06/08/2019,3625726-2563407,"2,444.12",BONDCARE WILLINGTON LTD.
Adult and Health Services,Head of Adults,Third Party Payments 4THIRD,470101,Purchase of Care,06/08/2019,3625726-2563408,"2,369.64",BONDCARE WILLINGTON LTD.
Adult and Health Services,Head of Adults,Third Party Payments 4THIRD,474101,Purchase of Care,06/08/2019,3625726-2563409,"2,476.88",BONDCARE WILLINGTON LTD.
Adult and Health Services,Head of Adults,Third Party Payments 4THIRD,470101,Purchase of Care,06/08/2019,3625726-2563411,"2,444.12",BONDCARE WILLINGTON LTD.
Adult and Health Services,Head of Adults,Third Party Payments 4THIRD,474101,Purchase of Care,06/08/2019,3625726-2563412,"2,466.24",BONDCARE WILLINGTON LTD.
Adult and Health Services,Head of Adults,Third Party Payments 4THIRD,470101,Purchase of Care,06/08/2019,3625726-2563414,"2,369.64",BONDCARE WILLINGTON LTD.
Adult and Health Services,Head of Adults,Third Party Payments 4THIRD,470101,Purchase of Care,06/08/2019,3625726-2563415,"2,444.12",BONDCARE WILLINGTON LTD.
Adult and Health Services,Head of Adults,Third Party Payments 4THIRD,474101,Purchase of Care,06/08/2019,3625726-2563416,"2,466.24",BONDCARE WILLINGTON LTD.
Adult and Health Services,Head of Adults,Third Party Payments 4THIRD,470101,Purchase of Care,06/08/2019,3625726-2563418,"2,444.12",BONDCARE WILLINGTON LTD.
Adult and Health Services,Head of Adults,Third Party Payments 4THIRD,470101,Purchase of Care,06/08/2019,3625726-2563419,"2,444.12",BONDCARE WILLINGTON LTD.
Adult and Health Services,Head of Adults,Third Party Payments 4THIRD,470101,Purchase of Care,06/08/2019,3625726-2563420,"2,444.12",BONDCARE WILLINGTON LTD.
Adult and Health Services,Head of Adults,Third Party Payments 4THIRD,474101,Purchase of Care,06/08/2019,3625726-2567714,"2,314.01",BONDCARE WILLINGTON LTD.
Adult and Health Services,Head of Adults,Third Party Payments 4THIRD,474101,Purchase of Care,06/08/2019,3625726-2567718,549.40,BONDCARE WILLINGTON LTD.
Adult and Health Services,Head of Adults,Third Party Payments 4THIRD,470101,Purchase of Care,06/08/2019,3625726-2567743,"1,438.71",BONDCARE WILLINGTON LTD.
Adult and Health Services,Head of Adults,Third Party Payments 4THIRD,470101,Purchase of Care,06/08/2019,3625726-2567939,719.34,BONDCARE WILLINGTON LTD.
Adult and Health Services,Head of Adults,Third Party Payments 4THIRD,470101,Purchase of Care,06/08/2019,3625726-2568167,"2,559.84",BONDCARE WILLINGTON LTD.
Adult and Health Services,Head of Adults,Third Party Payments 4THIRD,470101,Purchase of Care,06/08/2019,3625727-2566313,"2,144.00",BONDCARE WILLINGTON LTD.
Adult and Health Services,Head of Adults,Third Party Payments 4THIRD,471101,Purchase of Care,06/08/2019,3625728-2564003,"2,457.00",BROOMHOUSE CARE LTD.
Adult and Health Services,Head of Adults,Third Party Payments 4THIRD,471101,Purchase of Care,06/08/2019,3625728-2564004,"2,457.00",BROOMHOUSE CARE LTD.
Adult and Health Services,Head of Adults,Third Party Payments 4THIRD,471101,Purchase of Care,06/08/2019,3625728-2564005,"2,457.00",BROOMHOUSE CARE LTD.
Adult and Health Services,Head of Adults,Third Party Payments 4THIRD,471101,Purchase of Care,06/08/2019,3625728-2564006,"2,457.00",BROOMHOUSE CARE LTD.
Adult and Health Services,Head of Adults,Third Party Payments 4THIRD,471101,Purchase of Care,06/08/2019,3625728-2564007,"2,457.00",BROOMHOUSE CARE LTD.
Adult and Health Services,Head of Adults,Third Party Payments 4THIRD,471101,Purchase of Care,06/08/2019,3625728-2564008,"2,457.00",BROOMHOUSE CARE LTD.
Adult and Health Services,Head of Adults,Third Party Payments 4THIRD,471101,Purchase of Care,06/08/2019,3625728-2564009,"1,228.52",BROOMHOUSE CARE LTD.
Adult and Health Services,Head of Adults,Third Party Payments 4THIRD,470101,Purchase of Care,06/08/2019,3625728-2564010,"2,369.64",BROOMHOUSE CARE LTD.
Adult and Health Services,Head of Adults,Third Party Payments 4THIRD,471101,Purchase of Care,06/08/2019,3625728-2564011,"2,457.00",BROOMHOUSE CARE LTD.
Adult and Health Services,Head of Adults,Third Party Payments 4THIRD,470101,Purchase of Care,06/08/2019,3625728-2564012,"2,369.64",BROOMHOUSE CARE LTD.
Adult and Health Services,Head of Adults,Third Party Payments 4THIRD,471101,Purchase of Care,06/08/2019,3625728-2564013,"2,457.00",BROOMHOUSE CARE LTD.
Adult and Health Services,Head of Adults,Third Party Payments 4THIRD,471101,Purchase of Care,06/08/2019,3625728-2564014,"2,457.00",BROOMHOUSE CARE LTD.
Adult and Health Services,Head of Adults,Third Party Payments 4THIRD,470101,Purchase of Care,06/08/2019,3625728-2564015,"2,369.64",BROOMHOUSE CARE LTD.
Adult and Health Services,Head of Adults,Third Party Payments 4THIRD,471101,Purchase of Care,06/08/2019,3625728-2564016,"2,457.00",BROOMHOUSE CARE LTD.
Adult and Health Services,Head of Adults,Third Party Payments 4THIRD,470101,Purchase of Care,06/08/2019,3625728-2564017,"2,369.64",BROOMHOUSE CARE LTD.
Adult and Health Services,Head of Adults,Third Party Payments 4THIRD,471101,Purchase of Care,06/08/2019,3625728-2564018,"2,457.00",BROOMHOUSE CARE LTD.
Adult and Health Services,Head of Adults,Third Party Payments 4THIRD,471101,Purchase of Care,06/08/2019,3625728-2564019,"2,457.00",BROOMHOUSE CARE LTD.
Adult and Health Services,Head of Adults,Third Party Payments 4THIRD,470101,Purchase of Care,06/08/2019,3625728-2564020,"2,369.64",BROOMHOUSE CARE LTD.
Adult and Health Services,Head of Adults,Third Party Payments 4THIRD,470101,Purchase of Care,06/08/2019,3625728-2564021,"2,369.64",BROOMHOUSE CARE LTD.
Adult and Health Services,Head of Adults,Third Party Payments 4THIRD,471101,Purchase of Care,06/08/2019,3625728-2567813,"2,193.75",BROOMHOUSE CARE LTD.
Adult and Health Services,Head of Adults,Third Party Payments 4THIRD,471101,Purchase of Care,06/08/2019,3625728-2567814,509.93,BROOMHOUSE CARE LTD.
Adult and Health Services,Head of Adults,Third Party Payments 4THIRD,470101,Purchase of Care,06/08/2019,3625728-2568250,"1,607.97",BROOMHOUSE CARE LTD.
Adult and Health Services,Head of Adults,Third Party Payments 4THIRD,470101,Purchase of Care,06/08/2019,3625729-2566868,"2,199.40",BURLINGTON CARE (YORKSHIRE) LTD.
Adult and Health Services,Head of Adults,Third Party Payments 4THIRD,470101,Purchase of Care,06/08/2019,3625730-2567616,"1,120.00",BURLINGTON CARE (YORKSHIRE) LTD.
Adult and Health Services,Head of Adults,Third Party Payments 4THIRD,470101,Purchase of Care,06/08/2019,3625731-2565837,"2,204.00",BURLINGTON CARE LTD.
Adult and Health Services,Head of Adults,Third Party Payments 4THIRD,470101,Purchase of Care,06/08/2019,3625731-2565838,"2,204.00",BURLINGTON CARE LTD.
Adult and Health Services,Head of Adults,Third Party Payments 4THIRD,471101,Purchase of Care,06/08/2019,3625732-2567284,"2,504.00",CARE UK COMMUNITY PARTNERSHIPS LTD.
Adult and Health Services,Head of Adults,Third Party Payments 4THIRD,471101,Purchase of Care,06/08/2019,3625732-2567285,"2,504.00",CARE UK COMMUNITY PARTNERSHIPS LTD.
Adult and Health Services,Head of Adults,Third Party Payments 4THIRD,471101,Purchase of Care,06/08/2019,3625732-2567286,"2,504.00",CARE UK COMMUNITY PARTNERSHIPS LTD.
Adult and Health Services,Head of Adults,Third Party Payments 4THIRD,470101,Purchase of Care,06/08/2019,3625733-2565962,"2,369.64",CARE UK COMMUNITY PARTNERSHIPS LTD.
Adult and Health Services,Head of Adults,Third Party Payments 4THIRD,471101,Purchase of Care,06/08/2019,3625733-2565963,"2,457.00",CARE UK COMMUNITY PARTNERSHIPS LTD.
Adult and Health Services,Head of Adults,Third Party Payments 4THIRD,470101,Purchase of Care,06/08/2019,3625733-2565964,"2,369.64",CARE UK COMMUNITY PARTNERSHIPS LTD.
Adult and Health Services,Head of Adults,Third Party Payments 4THIRD,471101,Purchase of Care,06/08/2019,3625733-2565965,"2,457.00",CARE UK COMMUNITY PARTNERSHIPS LTD.
Adult and Health Services,Head of Adults,Third Party Payments 4THIRD,471101,Purchase of Care,06/08/2019,3625733-2565966,"2,457.00",CARE UK COMMUNITY PARTNERSHIPS LTD.
Adult and Health Services,Head of Adults,Third Party Payments 4THIRD,470101,Purchase of Care,06/08/2019,3625733-2565967,"2,369.64",CARE UK COMMUNITY PARTNERSHIPS LTD.
Adult and Health Services,Head of Adults,Third Party Payments 4THIRD,471101,Purchase of Care,06/08/2019,3625733-2565968,"2,457.00",CARE UK COMMUNITY PARTNERSHIPS LTD.
Adult and Health Services,Head of Adults,Third Party Payments 4THIRD,471101,Purchase of Care,06/08/2019,3625733-2565969,"2,457.00",CARE UK COMMUNITY PARTNERSHIPS LTD.
Adult and Health Services,Head of Adults,Third Party Payments 4THIRD,471101,Purchase of Care,06/08/2019,3625733-2565970,"2,457.00",CARE UK COMMUNITY PARTNERSHIPS LTD.
Adult and Health Services,Head of Adults,Third Party Payments 4THIRD,471101,Purchase of Care,06/08/2019,3625733-2565971,"2,457.00",CARE UK COMMUNITY PARTNERSHIPS LTD.
Adult and Health Services,Head of Adults,Third Party Payments 4THIRD,471101,Purchase of Care,06/08/2019,3625733-2565972,"2,457.00",CARE UK COMMUNITY PARTNERSHIPS LTD.
Adult and Health Services,Head of Adults,Third Party Payments 4THIRD,471101,Purchase of Care,06/08/2019,3625733-2565974,"2,457.00",CARE UK COMMUNITY PARTNERSHIPS LTD.
Adult and Health Services,Head of Adults,Third Party Payments 4THIRD,471101,Purchase of Care,06/08/2019,3625733-2565975,"1,228.52",CARE UK COMMUNITY PARTNERSHIPS LTD.
Adult and Health Services,Head of Adults,Third Party Payments 4THIRD,470101,Purchase of Care,06/08/2019,3625733-2565976,"2,369.64",CARE UK COMMUNITY PARTNERSHIPS LTD.
Adult and Health Services,Head of Adults,Third Party Payments 4THIRD,470101,Purchase of Care,06/08/2019,3625733-2565977,"2,369.64",CARE UK COMMUNITY PARTNERSHIPS LTD.
Adult and Health Services,Head of Adults,Third Party Payments 4THIRD,470101,Purchase of Care,06/08/2019,3625733-2565978,"1,184.80",CARE UK COMMUNITY PARTNERSHIPS LTD.
Adult and Health Services,Head of Adults,Third Party Payments 4THIRD,471101,Purchase of Care,06/08/2019,3625733-2565979,"2,457.00",CARE UK COMMUNITY PARTNERSHIPS LTD.
Adult and Health Services,Head of Adults,Third Party Payments 4THIRD,471101,Purchase of Care,06/08/2019,3625733-2565980,"2,457.00",CARE UK COMMUNITY PARTNERSHIPS LTD.
Adult and Health Services,Head of Adults,Third Party Payments 4THIRD,471101,Purchase of Care,06/08/2019,3625733-2565981,"2,457.00",CARE UK COMMUNITY PARTNERSHIPS LTD.
Adult and Health Services,Head of Adults,Third Party Payments 4THIRD,470101,Purchase of Care,06/08/2019,3625733-2565982,"2,369.64",CARE UK COMMUNITY PARTNERSHIPS LTD.
Adult and Health Services,Head of Adults,Third Party Payments 4THIRD,470101,Purchase of Care,06/08/2019,3625733-2565983,"2,369.64",CARE UK COMMUNITY PARTNERSHIPS LTD.
Adult and Health Services,Head of Adults,Third Party Payments 4THIRD,471101,Purchase of Care,06/08/2019,3625733-2565984,"2,457.00",CARE UK COMMUNITY PARTNERSHIPS LTD.
Adult and Health Services,Head of Adults,Third Party Payments 4THIRD,470101,Purchase of Care,06/08/2019,3625733-2565985,"2,369.64",CARE UK COMMUNITY PARTNERSHIPS LTD.
Adult and Health Services,Head of Adults,Third Party Payments 4THIRD,470101,Purchase of Care,06/08/2019,3625733-2565986,"2,369.64",CARE UK COMMUNITY PARTNERSHIPS LTD.
Adult and Health Services,Head of Adults,Third Party Payments 4THIRD,471101,Purchase of Care,06/08/2019,3625733-2567851,"1,404.00",CARE UK COMMUNITY PARTNERSHIPS LTD.
Adult and Health Services,Head of Adults,Third Party Payments 4THIRD,474101,Purchase of Care,06/08/2019,3625734-2566111,"1,233.12",CARE UK COMMUNITY PARTNERSHIPS LTD.
Adult and Health Services,Head of Adults,Third Party Payments 4THIRD,471101,Purchase of Care,06/08/2019,3625734-2566113,"2,457.00",CARE UK COMMUNITY PARTNERSHIPS LTD.
Adult and Health Services,Head of Adults,Third Party Payments 4THIRD,470101,Purchase of Care,06/08/2019,3625734-2566114,"2,369.64",CARE UK COMMUNITY PARTNERSHIPS LTD.
Adult and Health Services,Head of Adults,Third Party Payments 4THIRD,471101,Purchase of Care,06/08/2019,3625734-2566115,"2,281.50",CARE UK COMMUNITY PARTNERSHIPS LTD.
Adult and Health Services,Head of Adults,Third Party Payments 4THIRD,471101,Purchase of Care,06/08/2019,3625734-2566116,"1,228.52",CARE UK COMMUNITY PARTNERSHIPS LTD.
Adult and Health Services,Head of Adults,Third Party Payments 4THIRD,470101,Purchase of Care,06/08/2019,3625734-2566117,"2,369.64",CARE UK COMMUNITY PARTNERSHIPS LTD.
Adult and Health Services,Head of Adults,Third Party Payments 4THIRD,471101,Purchase of Care,06/08/2019,3625734-2566118,"2,457.00",CARE UK COMMUNITY PARTNERSHIPS LTD.
Adult and Health Services,Head of Adults,Third Party Payments 4THIRD,471101,Purchase of Care,06/08/2019,3625734-2566119,"2,457.00",CARE UK COMMUNITY PARTNERSHIPS LTD.
Adult and Health Services,Head of Adults,Third Party Payments 4THIRD,474101,Purchase of Care,06/08/2019,3625734-2566120,"1,233.12",CARE UK COMMUNITY PARTNERSHIPS LTD.
Adult and Health Services,Head of Adults,Third Party Payments 4THIRD,471101,Purchase of Care,06/08/2019,3625734-2566122,"2,457.00",CARE UK COMMUNITY PARTNERSHIPS LTD.
Adult and Health Services,Head of Adults,Third Party Payments 4THIRD,470101,Purchase of Care,06/08/2019,3625734-2566123,"2,369.64",CARE UK COMMUNITY PARTNERSHIPS LTD.
Adult and Health Services,Head of Adults,Third Party Payments 4THIRD,470101,Purchase of Care,06/08/2019,3625734-2566124,"2,369.64",CARE UK COMMUNITY PARTNERSHIPS LTD.
Adult and Health Services,Head of Adults,Third Party Payments 4THIRD,471101,Purchase of Care,06/08/2019,3625734-2566125,"2,457.00",CARE UK COMMUNITY PARTNERSHIPS LTD.
Adult and Health Services,Head of Adults,Third Party Payments 4THIRD,471101,Purchase of Care,06/08/2019,3625734-2566126,"3,156.16",CARE UK COMMUNITY PARTNERSHIPS LTD.
Adult and Health Services,Head of Adults,Third Party Payments 4THIRD,470101,Purchase of Care,06/08/2019,3625734-2566127,"2,369.64",CARE UK COMMUNITY PARTNERSHIPS LTD.
Adult and Health Services,Head of Adults,Third Party Payments 4THIRD,470101,Purchase of Care,06/08/2019,3625734-2566128,"2,369.64",CARE UK COMMUNITY PARTNERSHIPS LTD.
Adult and Health Services,Head of Adults,Third Party Payments 4THIRD,470101,Purchase of Care,06/08/2019,3625734-2566129,"2,369.64",CARE UK COMMUNITY PARTNERSHIPS LTD.
Adult and Health Services,Head of Adults,Third Party Payments 4THIRD,470101,Purchase of Care,06/08/2019,3625734-2566130,"2,369.64",CARE UK COMMUNITY PARTNERSHIPS LTD.
Adult and Health Services,Head of Adults,Third Party Payments 4THIRD,470101,Purchase of Care,06/08/2019,3625734-2566131,"2,369.64",CARE UK COMMUNITY PARTNERSHIPS LTD.
Adult and Health Services,Head of Adults,Third Party Payments 4THIRD,470101,Purchase of Care,06/08/2019,3625734-2566132,"2,369.64",CARE UK COMMUNITY PARTNERSHIPS LTD.
Adult and Health Services,Head of Adults,Third Party Payments 4THIRD,471101,Purchase of Care,06/08/2019,3625734-2566133,"2,457.00",CARE UK COMMUNITY PARTNERSHIPS LTD.
Adult and Health Services,Head of Adults,Third Party Payments 4THIRD,470101,Purchase of Care,06/08/2019,3625734-2566134,"2,369.64",CARE UK COMMUNITY PARTNERSHIPS LTD.
Adult and Health Services,Head of Adults,Third Party Payments 4THIRD,470101,Purchase of Care,06/08/2019,3625734-2566135,"2,369.64",CARE UK COMMUNITY PARTNERSHIPS LTD.
Adult and Health Services,Head of Adults,Third Party Payments 4THIRD,470101,Purchase of Care,06/08/2019,3625734-2566136,"2,369.64",CARE UK COMMUNITY PARTNERSHIPS LTD.
Adult and Health Services,Head of Adults,Third Party Payments 4THIRD,474101,Purchase of Care,06/08/2019,3625734-2566137,"2,466.24",CARE UK COMMUNITY PARTNERSHIPS LTD.
Adult and Health Services,Head of Adults,Third Party Payments 4THIRD,474101,Purchase of Care,06/08/2019,3625734-2566139,"2,466.24",CARE UK COMMUNITY PARTNERSHIPS LTD.
Adult and Health Services,Head of Adults,Third Party Payments 4THIRD,471101,Purchase of Care,06/08/2019,3625734-2566141,"2,457.00",CARE UK COMMUNITY PARTNERSHIPS LTD.
Adult and Health Services,Head of Adults,Third Party Payments 4THIRD,471101,Purchase of Care,06/08/2019,3625734-2566142,"2,457.00",CARE UK COMMUNITY PARTNERSHIPS LTD.
Adult and Health Services,Head of Adults,Third Party Payments 4THIRD,474101,Purchase of Care,06/08/2019,3625734-2566143,"2,466.24",CARE UK COMMUNITY PARTNERSHIPS LTD.
Adult and Health Services,Head of Adults,Third Party Payments 4THIRD,471101,Purchase of Care,06/08/2019,3625734-2566145,"2,457.00",CARE UK COMMUNITY PARTNERSHIPS LTD.
Adult and Health Services,Head of Adults,Third Party Payments 4THIRD,471101,Purchase of Care,06/08/2019,3625734-2566146,"2,457.00",CARE UK COMMUNITY PARTNERSHIPS LTD.
Adult and Health Services,Head of Adults,Third Party Payments 4THIRD,474101,Purchase of Care,06/08/2019,3625734-2566147,"2,466.24",CARE UK COMMUNITY PARTNERSHIPS LTD.
Adult and Health Services,Head of Adults,Third Party Payments 4THIRD,471101,Purchase of Care,06/08/2019,3625734-2566149,"2,457.00",CARE UK COMMUNITY PARTNERSHIPS LTD.
Adult and Health Services,Head of Adults,Third Party Payments 4THIRD,474101,Purchase of Care,06/08/2019,3625734-2566150,"2,466.24",CARE UK COMMUNITY PARTNERSHIPS LTD.
Adult and Health Services,Head of Adults,Third Party Payments 4THIRD,470101,Purchase of Care,06/08/2019,3625734-2566152,"2,369.64",CARE UK COMMUNITY PARTNERSHIPS LTD.
Adult and Health Services,Head of Adults,Third Party Payments 4THIRD,474101,Purchase of Care,06/08/2019,3625734-2566153,"1,233.12",CARE UK COMMUNITY PARTNERSHIPS LTD.
Adult and Health Services,Head of Adults,Third Party Payments 4THIRD,470101,Purchase of Care,06/08/2019,3625734-2566155,"2,369.64",CARE UK COMMUNITY PARTNERSHIPS LTD.
Adult and Health Services,Head of Adults,Third Party Payments 4THIRD,470101,Purchase of Care,06/08/2019,3625734-2566156,"2,369.64",CARE UK COMMUNITY PARTNERSHIPS LTD.
Adult and Health Services,Head of Adults,Third Party Payments 4THIRD,470101,Purchase of Care,06/08/2019,3625734-2566157,"2,369.64",CARE UK COMMUNITY PARTNERSHIPS LTD.
Adult and Health Services,Head of Adults,Third Party Payments 4THIRD,470101,Purchase of Care,06/08/2019,3625734-2566158,"2,369.64",CARE UK COMMUNITY PARTNERSHIPS LTD.
Adult and Health Services,Head of Adults,Third Party Payments 4THIRD,470101,Purchase of Care,06/08/2019,3625735-2565988,"1,574.28",CARE UK COMMUNITY PARTNERSHIPS LTD.
Adult and Health Services,Head of Adults,Third Party Payments 4THIRD,470101,Purchase of Care,06/08/2019,3625735-2565989,"2,320.00",CARE UK COMMUNITY PARTNERSHIPS LTD.
Adult and Health Services,Head of Adults,Third Party Payments 4THIRD,471101,Purchase of Care,06/08/2019,3625736-2567845,"2,920.37",CARE UK COMMUNITY PARTNERSHIPS LTD.
Adult and Health Services,Head of Adults,Third Party Payments 4THIRD,470101,Purchase of Care,06/08/2019,3625736-2567846,"2,824.19",CARE UK COMMUNITY PARTNERSHIPS LTD.
Adult and Health Services,Head of Adults,Third Party Payments 4THIRD,471101,Purchase of Care,06/08/2019,3625736-2567847,"2,920.37",CARE UK COMMUNITY PARTNERSHIPS LTD.
Adult and Health Services,Head of Adults,Third Party Payments 4THIRD,470101,Purchase of Care,06/08/2019,3625737-2564659,"1,100.19",CARE UK COMMUNITY PARTNERSHIPS LTD.
Adult and Health Services,Head of Adults,Third Party Payments 4THIRD,470101,Purchase of Care,06/08/2019,3625737-2564660,"2,369.64",CARE UK COMMUNITY PARTNERSHIPS LTD.
Adult and Health Services,Head of Adults,Third Party Payments 4THIRD,470101,Purchase of Care,06/08/2019,3625737-2564661,"2,369.64",CARE UK COMMUNITY PARTNERSHIPS LTD.
Adult and Health Services,Head of Adults,Third Party Payments 4THIRD,470101,Purchase of Care,06/08/2019,3625737-2564662,"2,369.64",CARE UK COMMUNITY PARTNERSHIPS LTD.
Adult and Health Services,Head of Adults,Third Party Payments 4THIRD,470101,Purchase of Care,06/08/2019,3625737-2564663,"2,369.64",CARE UK COMMUNITY PARTNERSHIPS LTD.
Adult and Health Services,Head of Adults,Third Party Payments 4THIRD,470101,Purchase of Care,06/08/2019,3625737-2564664,"2,369.64",CARE UK COMMUNITY PARTNERSHIPS LTD.
Adult and Health Services,Head of Adults,Third Party Payments 4THIRD,470101,Purchase of Care,06/08/2019,3625737-2564665,"2,369.64",CARE UK COMMUNITY PARTNERSHIPS LTD.
Adult and Health Services,Head of Adults,Third Party Payments 4THIRD,470101,Purchase of Care,06/08/2019,3625737-2564666,"2,369.64",CARE UK COMMUNITY PARTNERSHIPS LTD.
Adult and Health Services,Head of Adults,Third Party Payments 4THIRD,470101,Purchase of Care,06/08/2019,3625737-2564667,"2,369.64",CARE UK COMMUNITY PARTNERSHIPS LTD.
Adult and Health Services,Head of Adults,Third Party Payments 4THIRD,470101,Purchase of Care,06/08/2019,3625737-2564668,"2,369.64",CARE UK COMMUNITY PARTNERSHIPS LTD.
Adult and Health Services,Head of Adults,Third Party Payments 4THIRD,470101,Purchase of Care,06/08/2019,3625737-2564670,"2,369.64",CARE UK COMMUNITY PARTNERSHIPS LTD.
Adult and Health Services,Head of Adults,Third Party Payments 4THIRD,470101,Purchase of Care,06/08/2019,3625737-2564671,"2,369.64",CARE UK COMMUNITY PARTNERSHIPS LTD.
Adult and Health Services,Head of Adults,Third Party Payments 4THIRD,470101,Purchase of Care,06/08/2019,3625737-2564672,"2,369.64",CARE UK COMMUNITY PARTNERSHIPS LTD.
Adult and Health Services,Head of Adults,Third Party Payments 4THIRD,470101,Purchase of Care,06/08/2019,3625737-2564673,"2,369.64",CARE UK COMMUNITY PARTNERSHIPS LTD.
Adult and Health Services,Head of Adults,Third Party Payments 4THIRD,470101,Purchase of Care,06/08/2019,3625737-2564674,"2,369.64",CARE UK COMMUNITY PARTNERSHIPS LTD.
Adult and Health Services,Head of Adults,Third Party Payments 4THIRD,470101,Purchase of Care,06/08/2019,3625737-2564675,"2,369.64",CARE UK COMMUNITY PARTNERSHIPS LTD.
Adult and Health Services,Head of Adults,Third Party Payments 4THIRD,470101,Purchase of Care,06/08/2019,3625737-2564676,"2,369.64",CARE UK COMMUNITY PARTNERSHIPS LTD.
Adult and Health Services,Head of Adults,Third Party Payments 4THIRD,470101,Purchase of Care,06/08/2019,3625737-2564677,"2,369.64",CARE UK COMMUNITY PARTNERSHIPS LTD.
Adult and Health Services,Head of Adults,Third Party Payments 4THIRD,470101,Purchase of Care,06/08/2019,3625737-2564678,"2,489.64",CARE UK COMMUNITY PARTNERSHIPS LTD.
Adult and Health Services,Head of Adults,Third Party Payments 4THIRD,474101,Purchase of Care,06/08/2019,3625738-2563368,937.71,CARE UK COMMUNITY PARTNERSHIPS LTD.
Adult and Health Services,Head of Adults,Third Party Payments 4THIRD,471101,Purchase of Care,06/08/2019,3625738-2563370,"2,268.00",CARE UK COMMUNITY PARTNERSHIPS LTD.
Adult and Health Services,Head of Adults,Third Party Payments 4THIRD,470101,Purchase of Care,06/08/2019,3625739-2566820,"2,227.12",CARE UK COMMUNITY PARTNERSHIPS LTD.
Adult and Health Services,Head of Adults,Third Party Payments 4THIRD,474101,Purchase of Care,06/08/2019,3625740-2567280,"4,103.40",CARELINE LIFESTYLES (UK) LTD.
Adult and Health Services,Head of Adults,Third Party Payments 4THIRD,474101,Purchase of Care,06/08/2019,3625740-2567281,"2,415.00",CARELINE LIFESTYLES (UK) LTD.
Adult and Health Services,Head of Adults,Third Party Payments 4THIRD,470101,Purchase of Care,06/08/2019,3625740-2567282,740.88,CARELINE LIFESTYLES (UK) LTD.
Adult and Health Services,Head of Adults,Third Party Payments 4THIRD,474101,Purchase of Care,06/08/2019,3625741-2567041,"2,808.00",CARELINE LIFESTYLES (UK) LTD.
Adult and Health Services,Head of Adults,Third Party Payments 4THIRD,470101,Purchase of Care,06/08/2019,3625742-2566291,"2,719.52",CARELINE LIFESTYLES (UK) LTD.
Adult and Health Services,Head of Adults,Third Party Payments 4THIRD,470101,Purchase of Care,06/08/2019,3625742-2566292,"2,016.00",CARELINE LIFESTYLES (UK) LTD.
Adult and Health Services,Head of Adults,Third Party Payments 4THIRD,470101,Purchase of Care,06/08/2019,3625743-2565987,"2,461.68",CARELINE LIFESTYLES (UK) LTD.
Adult and Health Services,Head of Adults,Third Party Payments 4THIRD,474101,Purchase of Care,06/08/2019,3625744-2567642,"3,088.00",CARELINE LIFESTYLES.
Adult and Health Services,Head of Adults,Third Party Payments 4THIRD,474101,Purchase of Care,06/08/2019,3625744-2567644,"3,242.00",CARELINE LIFESTYLES.
Adult and Health Services,Head of Adults,Third Party Payments 4THIRD,474101,Purchase of Care,06/08/2019,3625744-2567645,"4,278.12",CARELINE LIFESTYLES.
Adult and Health Services,Head of Adults,Third Party Payments 4THIRD,474101,Purchase of Care,06/08/2019,3625744-2567647,"3,242.00",CARELINE LIFESTYLES.
Adult and Health Services,Head of Adults,Third Party Payments 4THIRD,474101,Purchase of Care,06/08/2019,3625744-2567648,"3,088.00",CARELINE LIFESTYLES.
Adult and Health Services,Head of Adults,Third Party Payments 4THIRD,474101,Purchase of Care,06/08/2019,3625744-2567649,"1,481.76",CARELINE LIFESTYLES.
Adult and Health Services,Head of Adults,Third Party Payments 4THIRD,474101,Purchase of Care,06/08/2019,3625745-2564235,"2,091.60",CAREWELL (HEALTH CARE) LTD.
Adult and Health Services,Head of Adults,Third Party Payments 4THIRD,470101,Purchase of Care,06/08/2019,3625745-2564240,"1,995.28",CAREWELL (HEALTH CARE) LTD.
Adult and Health Services,Head of Adults,Third Party Payments 4THIRD,470101,Purchase of Care,06/08/2019,3625745-2564241,"1,781.50",CAREWELL (HEALTH CARE) LTD.
Adult and Health Services,Head of Adults,Third Party Payments 4THIRD,470101,Purchase of Care,06/08/2019,3625745-2564242,"1,995.28",CAREWELL (HEALTH CARE) LTD.
Adult and Health Services,Head of Adults,Third Party Payments 4THIRD,470101,Purchase of Care,06/08/2019,3625745-2564244,"1,995.28",CAREWELL (HEALTH CARE) LTD.
Adult and Health Services,Head of Adults,Third Party Payments 4THIRD,470101,Purchase of Care,06/08/2019,3625745-2564245,"1,995.28",CAREWELL (HEALTH CARE) LTD.
Adult and Health Services,Head of Adults,Third Party Payments 4THIRD,470101,Purchase of Care,06/08/2019,3625745-2564247,"1,995.28",CAREWELL (HEALTH CARE) LTD.
Adult and Health Services,Head of Adults,Third Party Payments 4THIRD,470101,Purchase of Care,06/08/2019,3625745-2564248,"1,995.28",CAREWELL (HEALTH CARE) LTD.
Adult and Health Services,Head of Adults,Third Party Payments 4THIRD,470101,Purchase of Care,06/08/2019,3625745-2564251,"1,995.28",CAREWELL (HEALTH CARE) LTD.
Adult and Health Services,Head of Adults,Third Party Payments 4THIRD,470101,Purchase of Care,06/08/2019,3625745-2564254,"1,995.28",CAREWELL (HEALTH CARE) LTD.
Adult and Health Services,Head of Adults,Third Party Payments 4THIRD,474101,Purchase of Care,06/08/2019,3625745-2564255,"2,091.60",CAREWELL (HEALTH CARE) LTD.
Adult and Health Services,Head of Adults,Third Party Payments 4THIRD,470101,Purchase of Care,06/08/2019,3625745-2564257,"1,995.28",CAREWELL (HEALTH CARE) LTD.
Adult and Health Services,Head of Adults,Third Party Payments 4THIRD,474101,Purchase of Care,06/08/2019,3625745-2564258,"2,091.60",CAREWELL (HEALTH CARE) LTD.
Adult and Health Services,Head of Adults,Third Party Payments 4THIRD,470101,Purchase of Care,06/08/2019,3625745-2564261,"1,995.28",CAREWELL (HEALTH CARE) LTD.
Adult and Health Services,Head of Adults,Third Party Payments 4THIRD,470101,Purchase of Care,06/08/2019,3625745-2564262,"1,995.28",CAREWELL (HEALTH CARE) LTD.
Adult and Health Services,Head of Adults,Third Party Payments 4THIRD,470101,Purchase of Care,06/08/2019,3625745-2568077,"1,995.28",CAREWELL (HEALTH CARE) LTD.
Adult and Health Services,Head of Adults,Third Party Payments 4THIRD,470101,Purchase of Care,06/08/2019,3625745-2568129,"2,132.64",CAREWELL (HEALTH CARE) LTD.
Adult and Health Services,Head of Adults,Third Party Payments 4THIRD,471101,Purchase of Care,06/08/2019,3625746-2567518,"2,108.68",CARING HOMES HEALTHCARE GROUP LTD.
Adult and Health Services,Head of Adults,Third Party Payments 4THIRD,470101,Purchase of Care,06/08/2019,3625747-2564641,"2,369.64",CASTLEBANK CARE HOME LTD.
Adult and Health Services,Head of Adults,Third Party Payments 4THIRD,471101,Purchase of Care,06/08/2019,3625747-2564642,877.50,CASTLEBANK CARE HOME LTD.
Adult and Health Services,Head of Adults,Third Party Payments 4THIRD,470101,Purchase of Care,06/08/2019,3625747-2564643,"2,369.64",CASTLEBANK CARE HOME LTD.
Adult and Health Services,Head of Adults,Third Party Payments 4THIRD,471101,Purchase of Care,06/08/2019,3625747-2564644,"2,457.00",CASTLEBANK CARE HOME LTD.
Adult and Health Services,Head of Adults,Third Party Payments 4THIRD,470101,Purchase of Care,06/08/2019,3625747-2564645,"2,369.64",CASTLEBANK CARE HOME LTD.
Adult and Health Services,Head of Adults,Third Party Payments 4THIRD,471101,Purchase of Care,06/08/2019,3625747-2564646,"2,457.00",CASTLEBANK CARE HOME LTD.
Adult and Health Services,Head of Adults,Third Party Payments 4THIRD,470101,Purchase of Care,06/08/2019,3625747-2564647,"2,369.64",CASTLEBANK CARE HOME LTD.
Adult and Health Services,Head of Adults,Third Party Payments 4THIRD,471101,Purchase of Care,06/08/2019,3625747-2564648,"1,228.52",CASTLEBANK CARE HOME LTD.
Adult and Health Services,Head of Adults,Third Party Payments 4THIRD,470101,Purchase of Care,06/08/2019,3625747-2564649,"2,369.64",CASTLEBANK CARE HOME LTD.
Adult and Health Services,Head of Adults,Third Party Payments 4THIRD,470101,Purchase of Care,06/08/2019,3625747-2564650,"2,369.64",CASTLEBANK CARE HOME LTD.
Adult and Health Services,Head of Adults,Third Party Payments 4THIRD,471101,Purchase of Care,06/08/2019,3625747-2564651,"2,457.00",CASTLEBANK CARE HOME LTD.
Adult and Health Services,Head of Adults,Third Party Payments 4THIRD,470101,Purchase of Care,06/08/2019,3625747-2564652,"2,369.64",CASTLEBANK CARE HOME LTD.
Adult and Health Services,Head of Adults,Third Party Payments 4THIRD,470101,Purchase of Care,06/08/2019,3625747-2564653,"2,369.64",CASTLEBANK CARE HOME LTD.
Adult and Health Services,Head of Adults,Third Party Payments 4THIRD,471101,Purchase of Care,06/08/2019,3625747-2564654,"2,457.00",CASTLEBANK CARE HOME LTD.
Adult and Health Services,Head of Adults,Third Party Payments 4THIRD,470101,Purchase of Care,06/08/2019,3625747-2567676,"2,031.12",CASTLEBANK CARE HOME LTD.
Adult and Health Services,Head of Adults,Third Party Payments 4THIRD,470101,Purchase of Care,06/08/2019,3625752-2566869,"9,832.80",COLEG ELIDYR CAMPHILL COMMUNITIES.
Adult and Health Services,Head of Adults,Third Party Payments 4THIRD,486020,Service level agreements E486,06/08/2019,3625753-PIG_25063,"8,362.32",COMMUNITY INTEGRATED CARE LTD.
Adult and Health Services,Head of Adults,Third Party Payments 4THIRD,470101,Purchase of Care,06/08/2019,3625755-2560941,"2,313.00",CONAGS CARE LTD.
Adult and Health Services,Head of Adults,Third Party Payments 4THIRD,470101,Purchase of Care,06/08/2019,3625757-2566917,"7,773.80",CONSENSUS SUPPORT SERVICES LTD.
Adult and Health Services,Head of Adults,Third Party Payments 4THIRD,474101,Purchase of Care,06/08/2019,3625758-2567856,"2,730.81",COUNTRYWIDE CARE HOMES (2) LTD.
Adult and Health Services,Head of Adults,Third Party Payments 4THIRD,470101,Purchase of Care,06/08/2019,3625759-2564047,"2,444.12",COUNTRYWIDE CARE HOMES (2) LTD.
Adult and Health Services,Head of Adults,Third Party Payments 4THIRD,470101,Purchase of Care,06/08/2019,3625759-2564048,"2,369.64",COUNTRYWIDE CARE HOMES (2) LTD.
Adult and Health Services,Head of Adults,Third Party Payments 4THIRD,471101,Purchase of Care,06/08/2019,3625759-2564049,"2,457.00",COUNTRYWIDE CARE HOMES (2) LTD.
Adult and Health Services,Head of Adults,Third Party Payments 4THIRD,470101,Purchase of Care,06/08/2019,3625759-2564050,"2,444.12",COUNTRYWIDE CARE HOMES (2) LTD.
Adult and Health Services,Head of Adults,Third Party Payments 4THIRD,474101,Purchase of Care,06/08/2019,3625759-2564051,"2,476.88",COUNTRYWIDE CARE HOMES (2) LTD.
Adult and Health Services,Head of Adults,Third Party Payments 4THIRD,474101,Purchase of Care,06/08/2019,3625759-2564054,"1,233.12",COUNTRYWIDE CARE HOMES (2) LTD.
Adult and Health Services,Head of Adults,Third Party Payments 4THIRD,474101,Purchase of Care,06/08/2019,3625759-2564056,"2,466.24",COUNTRYWIDE CARE HOMES (2) LTD.
Adult and Health Services,Head of Adults,Third Party Payments 4THIRD,470101,Purchase of Care,06/08/2019,3625759-2564058,"2,444.12",COUNTRYWIDE CARE HOMES (2) LTD.
Adult and Health Services,Head of Adults,Third Party Payments 4THIRD,474101,Purchase of Care,06/08/2019,3625759-2564059,"2,466.24",COUNTRYWIDE CARE HOMES (2) LTD.
Adult and Health Services,Head of Adults,Third Party Payments 4THIRD,470101,Purchase of Care,06/08/2019,3625759-2564061,"2,444.12",COUNTRYWIDE CARE HOMES (2) LTD.
Adult and Health Services,Head of Adults,Third Party Payments 4THIRD,470101,Purchase of Care,06/08/2019,3625759-2564062,"2,444.12",COUNTRYWIDE CARE HOMES (2) LTD.
Adult and Health Services,Head of Adults,Third Party Payments 4THIRD,471101,Purchase of Care,06/08/2019,3625760-2565792,"2,457.00",COUNTRYWIDE CARE HOMES (2) LTD.
Adult and Health Services,Head of Adults,Third Party Payments 4THIRD,470101,Purchase of Care,06/08/2019,3625760-2565793,"2,369.64",COUNTRYWIDE CARE HOMES (2) LTD.
Adult and Health Services,Head of Adults,Third Party Payments 4THIRD,470101,Purchase of Care,06/08/2019,3625760-2565794,"2,369.64",COUNTRYWIDE CARE HOMES (2) LTD.
Adult and Health Services,Head of Adults,Third Party Payments 4THIRD,471101,Purchase of Care,06/08/2019,3625760-2565795,"1,228.50",COUNTRYWIDE CARE HOMES (2) LTD.
Adult and Health Services,Head of Adults,Third Party Payments 4THIRD,470101,Purchase of Care,06/08/2019,3625760-2565797,"2,369.64",COUNTRYWIDE CARE HOMES (2) LTD.
Adult and Health Services,Head of Adults,Third Party Payments 4THIRD,471101,Purchase of Care,06/08/2019,3625760-2565798,"2,457.00",COUNTRYWIDE CARE HOMES (2) LTD.
Adult and Health Services,Head of Adults,Third Party Payments 4THIRD,471101,Purchase of Care,06/08/2019,3625760-2565800,"2,457.00",COUNTRYWIDE CARE HOMES (2) LTD.
Adult and Health Services,Head of Adults,Third Party Payments 4THIRD,471101,Purchase of Care,06/08/2019,3625760-2565801,"2,457.00",COUNTRYWIDE CARE HOMES (2) LTD.
Adult and Health Services,Head of Adults,Third Party Payments 4THIRD,471101,Purchase of Care,06/08/2019,3625760-2565802,"2,457.00",COUNTRYWIDE CARE HOMES (2) LTD.
Adult and Health Services,Head of Adults,Third Party Payments 4THIRD,471101,Purchase of Care,06/08/2019,3625760-2565803,"2,577.00",COUNTRYWIDE CARE HOMES (2) LTD.
Adult and Health Services,Head of Adults,Third Party Payments 4THIRD,470101,Purchase of Care,06/08/2019,3625760-2565804,"2,369.64",COUNTRYWIDE CARE HOMES (2) LTD.
Adult and Health Services,Head of Adults,Third Party Payments 4THIRD,471101,Purchase of Care,06/08/2019,3625760-2565805,"2,457.00",COUNTRYWIDE CARE HOMES (2) LTD.
Adult and Health Services,Head of Adults,Third Party Payments 4THIRD,470101,Purchase of Care,06/08/2019,3625760-2565806,"2,369.64",COUNTRYWIDE CARE HOMES (2) LTD.
Adult and Health Services,Head of Adults,Third Party Payments 4THIRD,470101,Purchase of Care,06/08/2019,3625760-2565807,"2,369.64",COUNTRYWIDE CARE HOMES (2) LTD.
Adult and Health Services,Head of Adults,Third Party Payments 4THIRD,471101,Purchase of Care,06/08/2019,3625760-2565808,"2,457.00",COUNTRYWIDE CARE HOMES (2) LTD.
Adult and Health Services,Head of Adults,Third Party Payments 4THIRD,470101,Purchase of Care,06/08/2019,3625760-2565809,"2,369.64",COUNTRYWIDE CARE HOMES (2) LTD.
Adult and Health Services,Head of Adults,Third Party Payments 4THIRD,470101,Purchase of Care,06/08/2019,3625760-2565810,"2,369.64",COUNTRYWIDE CARE HOMES (2) LTD.
Adult and Health Services,Head of Adults,Third Party Payments 4THIRD,471101,Purchase of Care,06/08/2019,3625760-2565811,"2,457.00",COUNTRYWIDE CARE HOMES (2) LTD.
Adult and Health Services,Head of Adults,Third Party Payments 4THIRD,470101,Purchase of Care,06/08/2019,3625760-2565812,"2,369.64",COUNTRYWIDE CARE HOMES (2) LTD.
Adult and Health Services,Head of Adults,Third Party Payments 4THIRD,471101,Purchase of Care,06/08/2019,3625760-2565813,"2,557.00",COUNTRYWIDE CARE HOMES (2) LTD.
Adult and Health Services,Head of Adults,Third Party Payments 4THIRD,470101,Purchase of Care,06/08/2019,3625760-2565814,"2,369.64",COUNTRYWIDE CARE HOMES (2) LTD.
Adult and Health Services,Head of Adults,Third Party Payments 4THIRD,470101,Purchase of Care,06/08/2019,3625760-2565815,"2,369.64",COUNTRYWIDE CARE HOMES (2) LTD.
Adult and Health Services,Head of Adults,Third Party Payments 4THIRD,470101,Purchase of Care,06/08/2019,3625760-2565816,"2,369.64",COUNTRYWIDE CARE HOMES (2) LTD.
Adult and Health Services,Head of Adults,Third Party Payments 4THIRD,470101,Purchase of Care,06/08/2019,3625760-2565817,"2,369.64",COUNTRYWIDE CARE HOMES (2) LTD.
Adult and Health Services,Head of Adults,Third Party Payments 4THIRD,471101,Purchase of Care,06/08/2019,3625760-2565818,"2,457.00",COUNTRYWIDE CARE HOMES (2) LTD.
Adult and Health Services,Head of Adults,Third Party Payments 4THIRD,470101,Purchase of Care,06/08/2019,3625760-2568239,"1,269.45",COUNTRYWIDE CARE HOMES (2) LTD.
Adult and Health Services,Head of Adults,Third Party Payments 4THIRD,470101,Purchase of Care,06/08/2019,3625760-2568240,"1,100.19",COUNTRYWIDE CARE HOMES (2) LTD.
Adult and Health Services,Head of Adults,Third Party Payments 4THIRD,471101,Purchase of Care,06/08/2019,3625761-2564493,"1,228.48",COUNTRYWIDE CARE HOMES (2) LTD.
Adult and Health Services,Head of Adults,Third Party Payments 4THIRD,474101,Purchase of Care,06/08/2019,3625761-2564494,"1,233.12",COUNTRYWIDE CARE HOMES (2) LTD.
Adult and Health Services,Head of Adults,Third Party Payments 4THIRD,471101,Purchase of Care,06/08/2019,3625761-2564496,"2,577.00",COUNTRYWIDE CARE HOMES (2) LTD.
Adult and Health Services,Head of Adults,Third Party Payments 4THIRD,474101,Purchase of Care,06/08/2019,3625761-2564497,"2,466.24",COUNTRYWIDE CARE HOMES (2) LTD.
Adult and Health Services,Head of Adults,Third Party Payments 4THIRD,474101,Purchase of Care,06/08/2019,3625761-2564499,"2,466.24",COUNTRYWIDE CARE HOMES (2) LTD.
Adult and Health Services,Head of Adults,Third Party Payments 4THIRD,470101,Purchase of Care,06/08/2019,3625761-2564501,"2,369.64",COUNTRYWIDE CARE HOMES (2) LTD.
Adult and Health Services,Head of Adults,Third Party Payments 4THIRD,474101,Purchase of Care,06/08/2019,3625761-2564503,"2,466.24",COUNTRYWIDE CARE HOMES (2) LTD.
Adult and Health Services,Head of Adults,Third Party Payments 4THIRD,471101,Purchase of Care,06/08/2019,3625761-2564505,"2,457.00",COUNTRYWIDE CARE HOMES (2) LTD.
Adult and Health Services,Head of Adults,Third Party Payments 4THIRD,474101,Purchase of Care,06/08/2019,3625761-2564506,"1,233.12",COUNTRYWIDE CARE HOMES (2) LTD.
Adult and Health Services,Head of Adults,Third Party Payments 4THIRD,474101,Purchase of Care,06/08/2019,3625761-2564508,"1,233.12",COUNTRYWIDE CARE HOMES (2) LTD.
Adult and Health Services,Head of Adults,Third Party Payments 4THIRD,474101,Purchase of Care,06/08/2019,3625761-2564511,"2,156.96",COUNTRYWIDE CARE HOMES (2) LTD.
Adult and Health Services,Head of Adults,Third Party Payments 4THIRD,470101,Purchase of Care,06/08/2019,3625761-2564513,"2,369.64",COUNTRYWIDE CARE HOMES (2) LTD.
Adult and Health Services,Head of Adults,Third Party Payments 4THIRD,474101,Purchase of Care,06/08/2019,3625761-2564514,"2,466.24",COUNTRYWIDE CARE HOMES (2) LTD.
Adult and Health Services,Head of Adults,Third Party Payments 4THIRD,474101,Purchase of Care,06/08/2019,3625761-2564516,"2,466.24",COUNTRYWIDE CARE HOMES (2) LTD.
Adult and Health Services,Head of Adults,Third Party Payments 4THIRD,474101,Purchase of Care,06/08/2019,3625761-2564519,"1,233.12",COUNTRYWIDE CARE HOMES (2) LTD.
Adult and Health Services,Head of Adults,Third Party Payments 4THIRD,471101,Purchase of Care,06/08/2019,3625761-2564521,"2,457.00",COUNTRYWIDE CARE HOMES (2) LTD.
Adult and Health Services,Head of Adults,Third Party Payments 4THIRD,474101,Purchase of Care,06/08/2019,3625761-2564523,"1,233.12",COUNTRYWIDE CARE HOMES (2) LTD.
Adult and Health Services,Head of Adults,Third Party Payments 4THIRD,470101,Purchase of Care,06/08/2019,3625761-2564525,"1,184.80",COUNTRYWIDE CARE HOMES (2) LTD.
Adult and Health Services,Head of Adults,Third Party Payments 4THIRD,474101,Purchase of Care,06/08/2019,3625761-2564526,"2,466.24",COUNTRYWIDE CARE HOMES (2) LTD.
Adult and Health Services,Head of Adults,Third Party Payments 4THIRD,470101,Purchase of Care,06/08/2019,3625761-2564528,"2,369.64",COUNTRYWIDE CARE HOMES (2) LTD.
Adult and Health Services,Head of Adults,Third Party Payments 4THIRD,470101,Purchase of Care,06/08/2019,3625761-2568223,"1,354.08",COUNTRYWIDE CARE HOMES (2) LTD.
Adult and Health Services,Head of Adults,Third Party Payments 4THIRD,471101,Purchase of Care,06/08/2019,3625762-2566870,"2,457.00",COUNTRYWIDE CARE HOMES (2) LTD.
Adult and Health Services,Head of Adults,Third Party Payments 4THIRD,471101,Purchase of Care,06/08/2019,3625762-2566871,"1,491.75",COUNTRYWIDE CARE HOMES (2) LTD.
Adult and Health Services,Head of Adults,Third Party Payments 4THIRD,470101,Purchase of Care,06/08/2019,3625762-2566872,"2,489.64",COUNTRYWIDE CARE HOMES (2) LTD.
Adult and Health Services,Head of Adults,Third Party Payments 4THIRD,471101,Purchase of Care,06/08/2019,3625762-2566873,"2,577.00",COUNTRYWIDE CARE HOMES (2) LTD.
Adult and Health Services,Head of Adults,Third Party Payments 4THIRD,470101,Purchase of Care,06/08/2019,3625762-2566874,"2,489.64",COUNTRYWIDE CARE HOMES (2) LTD.
Adult and Health Services,Head of Adults,Third Party Payments 4THIRD,470101,Purchase of Care,06/08/2019,3625762-2566875,"2,369.64",COUNTRYWIDE CARE HOMES (2) LTD.
Adult and Health Services,Head of Adults,Third Party Payments 4THIRD,470101,Purchase of Care,06/08/2019,3625762-2566876,"4,888.64",COUNTRYWIDE CARE HOMES (2) LTD.
Adult and Health Services,Head of Adults,Third Party Payments 4THIRD,470101,Purchase of Care,06/08/2019,3625762-2566877,"2,489.64",COUNTRYWIDE CARE HOMES (2) LTD.
Adult and Health Services,Head of Adults,Third Party Payments 4THIRD,470101,Purchase of Care,06/08/2019,3625762-2566878,"2,489.64",COUNTRYWIDE CARE HOMES (2) LTD.
Adult and Health Services,Head of Adults,Third Party Payments 4THIRD,470101,Purchase of Care,06/08/2019,3625762-2566879,"2,489.64",COUNTRYWIDE CARE HOMES (2) LTD.
Adult and Health Services,Head of Adults,Third Party Payments 4THIRD,471101,Purchase of Care,06/08/2019,3625762-2566880,"2,577.00",COUNTRYWIDE CARE HOMES (2) LTD.
Adult and Health Services,Head of Adults,Third Party Payments 4THIRD,470101,Purchase of Care,06/08/2019,3625762-2566881,930.93,COUNTRYWIDE CARE HOMES (2) LTD.
Adult and Health Services,Head of Adults,Third Party Payments 4THIRD,470101,Purchase of Care,06/08/2019,3625762-2566882,"2,489.64",COUNTRYWIDE CARE HOMES (2) LTD.
Adult and Health Services,Head of Adults,Third Party Payments 4THIRD,471101,Purchase of Care,06/08/2019,3625762-2566883,"6,074.36",COUNTRYWIDE CARE HOMES (2) LTD.
Adult and Health Services,Head of Adults,Third Party Payments 4THIRD,470101,Purchase of Care,06/08/2019,3625762-2566886,"2,489.64",COUNTRYWIDE CARE HOMES (2) LTD.
Adult and Health Services,Head of Adults,Third Party Payments 4THIRD,470101,Purchase of Care,06/08/2019,3625762-2566887,"2,489.64",COUNTRYWIDE CARE HOMES (2) LTD.
Adult and Health Services,Head of Adults,Third Party Payments 4THIRD,470101,Purchase of Care,06/08/2019,3625762-2566888,"2,489.64",COUNTRYWIDE CARE HOMES (2) LTD.
Adult and Health Services,Head of Adults,Third Party Payments 4THIRD,470101,Purchase of Care,06/08/2019,3625762-2566889,"2,489.64",COUNTRYWIDE CARE HOMES (2) LTD.
Adult and Health Services,Head of Adults,Third Party Payments 4THIRD,470101,Purchase of Care,06/08/2019,3625762-2566890,"1,867.23",COUNTRYWIDE CARE HOMES (2) LTD.
Adult and Health Services,Head of Adults,Third Party Payments 4THIRD,471101,Purchase of Care,06/08/2019,3625762-2566891,"2,457.00",COUNTRYWIDE CARE HOMES (2) LTD.
Adult and Health Services,Head of Adults,Third Party Payments 4THIRD,470101,Purchase of Care,06/08/2019,3625762-2566892,"3,645.54",COUNTRYWIDE CARE HOMES (2) LTD.
Adult and Health Services,Head of Adults,Third Party Payments 4THIRD,470101,Purchase of Care,06/08/2019,3625762-2566893,"2,489.64",COUNTRYWIDE CARE HOMES (2) LTD.
Adult and Health Services,Head of Adults,Third Party Payments 4THIRD,471101,Purchase of Care,06/08/2019,3625762-2566894,"2,577.00",COUNTRYWIDE CARE HOMES (2) LTD.
Adult and Health Services,Head of Adults,Third Party Payments 4THIRD,470101,Purchase of Care,06/08/2019,3625762-2566895,"2,489.64",COUNTRYWIDE CARE HOMES (2) LTD.
Adult and Health Services,Head of Adults,Third Party Payments 4THIRD,470101,Purchase of Care,06/08/2019,3625762-2566896,"2,489.64",COUNTRYWIDE CARE HOMES (2) LTD.
Adult and Health Services,Head of Adults,Third Party Payments 4THIRD,471101,Purchase of Care,06/08/2019,3625762-2566897,"1,404.00",COUNTRYWIDE CARE HOMES (2) LTD.
Adult and Health Services,Head of Adults,Third Party Payments 4THIRD,471101,Purchase of Care,06/08/2019,3625762-2566898,"2,577.00",COUNTRYWIDE CARE HOMES (2) LTD.
Adult and Health Services,Head of Adults,Third Party Payments 4THIRD,470101,Purchase of Care,06/08/2019,3625762-2566899,"2,669.64",COUNTRYWIDE CARE HOMES (2) LTD.
Adult and Health Services,Head of Adults,Third Party Payments 4THIRD,471101,Purchase of Care,06/08/2019,3625762-2566900,"2,577.00",COUNTRYWIDE CARE HOMES (2) LTD.
Adult and Health Services,Head of Adults,Third Party Payments 4THIRD,471101,Purchase of Care,06/08/2019,3625762-2566901,"1,228.52",COUNTRYWIDE CARE HOMES (2) LTD.
Adult and Health Services,Head of Adults,Third Party Payments 4THIRD,471101,Purchase of Care,06/08/2019,3625762-2566902,"2,457.00",COUNTRYWIDE CARE HOMES (2) LTD.
Adult and Health Services,Head of Adults,Third Party Payments 4THIRD,470101,Purchase of Care,06/08/2019,3625762-2566903,"1,184.84",COUNTRYWIDE CARE HOMES (2) LTD.
Adult and Health Services,Head of Adults,Third Party Payments 4THIRD,470101,Purchase of Care,06/08/2019,3625762-2566904,"2,369.64",COUNTRYWIDE CARE HOMES (2) LTD.
Adult and Health Services,Head of Adults,Third Party Payments 4THIRD,470101,Purchase of Care,06/08/2019,3625762-2566905,"2,469.64",COUNTRYWIDE CARE HOMES (2) LTD.
Adult and Health Services,Head of Adults,Third Party Payments 4THIRD,470101,Purchase of Care,06/08/2019,3625762-2566906,"2,489.64",COUNTRYWIDE CARE HOMES (2) LTD.
Adult and Health Services,Head of Adults,Third Party Payments 4THIRD,471101,Purchase of Care,06/08/2019,3625762-2566907,"2,457.00",COUNTRYWIDE CARE HOMES (2) LTD.
Adult and Health Services,Head of Adults,Third Party Payments 4THIRD,471101,Purchase of Care,06/08/2019,3625762-2566908,"2,457.00",COUNTRYWIDE CARE HOMES (2) LTD.
Adult and Health Services,Head of Adults,Third Party Payments 4THIRD,471101,Purchase of Care,06/08/2019,3625762-2566909,"2,457.00",COUNTRYWIDE CARE HOMES (2) LTD.
